Body Name,Date Paid,Transaction Number,Amount,Supplier Name,Supplier Type,Expense Area,Cost Centre Description,Expense Type
Cambridgeshire County Council,01-Sep-22,51301847428,637.80,Redacted Personal Data,PARENT/GUARDIAN,Adoption Allowances,Adoption Allowances,Childcare Costs
Cambridgeshire County Council,01-Sep-22,51301847429,"2,489.10",Redacted Personal Data,FOSTER PARENT,Adoption Allowances,Adoption Allowances,Childcare Costs
Cambridgeshire County Council,01-Sep-22,51301839330,"20,511.00",Stigma Statistics Ltd,COMPANY,Drug & Alcohol Misuse,PH - CJ Universal Grant,Professional Fees and Hired Services
Cambridgeshire County Council,02-Sep-22,51301847544,"-5,796.00",THE CAMBRIDGE NURSING CENTRE,CARE ESTABLISHMENT,OPPD - Cost of Care - City South Blocks,City and South - Long term blocks,Nursing Care
Cambridgeshire County Council,02-Sep-22,51301847544,"-5,796.00",THE CAMBRIDGE NURSING CENTRE,CARE ESTABLISHMENT,OPPD - Cost of Care - City South Blocks,City and South - Long term blocks,Nursing Care
Cambridgeshire County Council,02-Sep-22,51301847544,"-5,796.00",THE CAMBRIDGE NURSING CENTRE,CARE ESTABLISHMENT,OPPD - Cost of Care - City South Blocks,City and South - Long term blocks,Nursing Care
Cambridgeshire County Council,02-Sep-22,51301847544,"-5,796.00",THE CAMBRIDGE NURSING CENTRE,CARE ESTABLISHMENT,OPPD - Cost of Care - City South Blocks,City and South - Long term blocks,Nursing Care
Cambridgeshire County Council,02-Sep-22,51301847544,"-5,796.00",THE CAMBRIDGE NURSING CENTRE,CARE ESTABLISHMENT,OPPD - Cost of Care - City South Blocks,City and South - Long term blocks,Nursing Care
Cambridgeshire County Council,02-Sep-22,51301847544,"-5,796.00",THE CAMBRIDGE NURSING CENTRE,CARE ESTABLISHMENT,OPPD - Cost of Care - City South Blocks,City and South - Long term blocks,Nursing Care
Cambridgeshire County Council,02-Sep-22,51301847544,"-5,796.00",THE CAMBRIDGE NURSING CENTRE,CARE ESTABLISHMENT,OPPD - Cost of Care - City South Blocks,City and South - Long term blocks,Nursing Care
Cambridgeshire County Council,02-Sep-22,51301847549,"-4,900.00",Maven Healthcare,CARE ESTABLISHMENT,OPPD - Cost of Care - City South Blocks,City and South - Long term blocks,Nursing Care
Cambridgeshire County Council,02-Sep-22,51301847549,"-4,900.00",Maven Healthcare,CARE ESTABLISHMENT,OPPD - Cost of Care - City South Blocks,City and South - Long term blocks,Nursing Care
Cambridgeshire County Council,02-Sep-22,51301847549,"-4,900.00",Maven Healthcare,CARE ESTABLISHMENT,OPPD - Cost of Care - City South Blocks,City and South - Long term blocks,Nursing Care
Cambridgeshire County Council,02-Sep-22,51301847563,"-4,471.20",THE GABLES SPECIALIST NURSING HOME,CARE ESTABLISHMENT,OPPD - Cost of Care - Fenland Blocks,Fenland - Long term blocks,Nursing Care
Cambridgeshire County Council,02-Sep-22,51301847563,"-4,471.20",THE GABLES SPECIALIST NURSING HOME,CARE ESTABLISHMENT,OPPD - Cost of Care - Fenland Blocks,Fenland - Long term blocks,Nursing Care
Cambridgeshire County Council,02-Sep-22,51301847563,"-4,471.20",THE GABLES SPECIALIST NURSING HOME,CARE ESTABLISHMENT,OPPD - Cost of Care - Fenland Blocks,Fenland - Long term blocks,Nursing Care
Cambridgeshire County Council,02-Sep-22,51301847563,"-4,471.20",THE GABLES SPECIALIST NURSING HOME,CARE ESTABLISHMENT,OPPD - Cost of Care - Fenland Blocks,Fenland - Long term blocks,Nursing Care
Cambridgeshire County Council,02-Sep-22,51301847563,"-4,471.20",THE GABLES SPECIALIST NURSING HOME,CARE ESTABLISHMENT,OPPD - Cost of Care - Fenland Blocks,Fenland - Long term blocks,Nursing Care
Cambridgeshire County Council,02-Sep-22,51301847563,"-4,471.20",THE GABLES SPECIALIST NURSING HOME,CARE ESTABLISHMENT,OPPD - Cost of Care - Fenland Blocks,Fenland - Long term blocks,Nursing Care
Cambridgeshire County Council,02-Sep-22,51301847563,"-4,471.20",THE GABLES SPECIALIST NURSING HOME,CARE ESTABLISHMENT,OPPD - Cost of Care - Fenland Blocks,Fenland - Long term blocks,Nursing Care
Cambridgeshire County Council,02-Sep-22,51301847530,"-4,347.00",HC-ONE,CARE ESTABLISHMENT,OPPD - Cost of Care - Huntingdon Blocks,Hunts - Long term blocks,Nursing Care
Cambridgeshire County Council,02-Sep-22,51301847530,"-4,347.00",HC-ONE,CARE ESTABLISHMENT,OPPD - Cost of Care - Huntingdon Blocks,Hunts - Long term blocks,Nursing Care
Cambridgeshire County Council,02-Sep-22,51301847549,"-4,200.00",Maven Healthcare,CARE ESTABLISHMENT,OPPD - Cost of Care - City South Blocks,City and South - Long term blocks,Nursing Care
Cambridgeshire County Council,02-Sep-22,51301847530,"-3,726.00",HC-ONE,CARE ESTABLISHMENT,OPPD - Cost of Care - Huntingdon Blocks,Hunts - Long term blocks,Nursing Care
Cambridgeshire County Council,02-Sep-22,51301847613,"-3,522.15",FITZROY SUPPORTED,CARE ESTABLISHMENT,LD - Fenland Locality - Cost of Care,LD - Fenland  - Special Needs,Supported Living
Cambridgeshire County Council,02-Sep-22,51301847613,"-3,522.15",FITZROY SUPPORTED,CARE ESTABLISHMENT,LD - Fenland Locality - Cost of Care,LD - Fenland  - Special Needs,Supported Living
Cambridgeshire County Council,02-Sep-22,51301847613,"-3,522.15",FITZROY SUPPORTED,CARE ESTABLISHMENT,LD - Fenland Locality - Cost of Care,LD - Fenland  - Special Needs,Supported Living
Cambridgeshire County Council,02-Sep-22,51301847613,"-3,522.15",FITZROY SUPPORTED,CARE ESTABLISHMENT,LD - Fenland Locality - Cost of Care,LD - Fenland  - Special Needs,Supported Living
Cambridgeshire County Council,02-Sep-22,51301847613,"-3,522.15",FITZROY SUPPORTED,CARE ESTABLISHMENT,LD - Fenland Locality - Cost of Care,LD - Fenland  - Special Needs,Supported Living
Cambridgeshire County Council,02-Sep-22,51301847613,"-3,522.15",FITZROY SUPPORTED,CARE ESTABLISHMENT,LD - Fenland Locality - Cost of Care,LD - Fenland  - Special Needs,Supported Living
Cambridgeshire County Council,02-Sep-22,51301847613,"-3,522.15",FITZROY SUPPORTED,CARE ESTABLISHMENT,LD - Fenland Locality - Cost of Care,LD - Fenland  - Special Needs,Supported Living
Cambridgeshire County Council,02-Sep-22,51301847613,"-3,522.15",FITZROY SUPPORTED,CARE ESTABLISHMENT,LD - Fenland Locality - Cost of Care,LD - Fenland  - Special Needs,Supported Living
Cambridgeshire County Council,02-Sep-22,51301847613,"-3,522.15",FITZROY SUPPORTED,CARE ESTABLISHMENT,LD - Fenland Locality - Cost of Care,LD - Fenland  - Special Needs,Supported Living
Cambridgeshire County Council,02-Sep-22,51301847613,"-3,522.15",FITZROY SUPPORTED,CARE ESTABLISHMENT,LD - Fenland Locality - Cost of Care,LD - Fenland  - Special Needs,Supported Living
Cambridgeshire County Council,02-Sep-22,51301847613,"-3,522.15",FITZROY SUPPORTED,CARE ESTABLISHMENT,LD - Fenland Locality - Cost of Care,LD - Fenland  - Special Needs,Supported Living
Cambridgeshire County Council,02-Sep-22,51301847613,"-3,522.15",FITZROY SUPPORTED,CARE ESTABLISHMENT,LD - Fenland Locality - Cost of Care,LD - Fenland  - Special Needs,Supported Living
Cambridgeshire County Council,02-Sep-22,51301847613,"-3,522.15",FITZROY SUPPORTED,CARE ESTABLISHMENT,LD - Fenland Locality - Cost of Care,LD - Fenland  - Special Needs,Supported Living
Cambridgeshire County Council,02-Sep-22,51301847613,"-3,522.15",FITZROY SUPPORTED,CARE ESTABLISHMENT,LD - Fenland Locality - Cost of Care,LD - Fenland  - Special Needs,Supported Living
Cambridgeshire County Council,02-Sep-22,51301847613,"-3,522.15",FITZROY SUPPORTED,CARE ESTABLISHMENT,LD - Fenland Locality - Cost of Care,LD - Fenland  - Special Needs,Supported Living
Cambridgeshire County Council,02-Sep-22,51301847613,"-3,522.15",FITZROY SUPPORTED,CARE ESTABLISHMENT,LD - Fenland Locality - Cost of Care,LD - Fenland  - Special Needs,Supported Living
Cambridgeshire County Council,02-Sep-22,51301847613,"-3,522.15",FITZROY SUPPORTED,CARE ESTABLISHMENT,LD - Fenland Locality - Cost of Care,LD - Fenland  - Special Needs,Supported Living
Cambridgeshire County Council,02-Sep-22,51301847613,"-3,522.15",FITZROY SUPPORTED,CARE ESTABLISHMENT,LD - Fenland Locality - Cost of Care,LD - Fenland  - Special Needs,Supported Living
Cambridgeshire County Council,02-Sep-22,51301847613,"-3,522.15",FITZROY SUPPORTED,CARE ESTABLISHMENT,LD - Fenland Locality - Cost of Care,LD - Fenland  - Special Needs,Supported Living
Cambridgeshire County Council,02-Sep-22,51301847613,"-3,522.15",FITZROY SUPPORTED,CARE ESTABLISHMENT,LD - Fenland Locality - Cost of Care,LD - Fenland  - Special Needs,Supported Living
Cambridgeshire County Council,02-Sep-22,51301847613,"-3,522.15",FITZROY SUPPORTED,CARE ESTABLISHMENT,LD - Fenland Locality - Cost of Care,LD - Fenland  - Special Needs,Supported Living
Cambridgeshire County Council,02-Sep-22,51301847613,"-3,522.15",FITZROY SUPPORTED,CARE ESTABLISHMENT,LD - Fenland Locality - Cost of Care,LD - Fenland  - Special Needs,Supported Living
Cambridgeshire County Council,02-Sep-22,51301847613,"-3,522.15",FITZROY SUPPORTED,CARE ESTABLISHMENT,LD - Fenland Locality - Cost of Care,LD - Fenland  - Special Needs,Supported Living
Cambridgeshire County Council,02-Sep-22,51301847280,"-3,500.00",MOVING UP CARE,CARE ESTABLISHMENT,LAC Placements,Placements - supported accommodation,Agency Placements - In County
Cambridgeshire County Council,02-Sep-22,51301847283,"-3,500.00",MOVING UP CARE,CARE ESTABLISHMENT,LAC Placements,Placements - supported accommodation,Agency Placements - In County
Cambridgeshire County Council,02-Sep-22,51301847286,"-3,500.00",MOVING UP CARE,CARE ESTABLISHMENT,LAC Placements,Placements - supported accommodation,Agency Placements - In County
Cambridgeshire County Council,02-Sep-22,51301847544,"-3,436.20",THE CAMBRIDGE NURSING CENTRE,CARE ESTABLISHMENT,OPPD - Cost of Care - City South Blocks,City and South - Long term blocks,Nursing Care
Cambridgeshire County Council,02-Sep-22,51301847544,"-3,436.20",THE CAMBRIDGE NURSING CENTRE,CARE ESTABLISHMENT,OPPD - Cost of Care - City South Blocks,City and South - Long term blocks,Nursing Care
Cambridgeshire County Council,02-Sep-22,51301847544,"-3,436.20",THE CAMBRIDGE NURSING CENTRE,CARE ESTABLISHMENT,OPPD - Cost of Care - City South Blocks,City and South - Long term blocks,Nursing Care
Cambridgeshire County Council,02-Sep-22,51301847544,"-3,436.20",THE CAMBRIDGE NURSING CENTRE,CARE ESTABLISHMENT,OPPD - Cost of Care - City South Blocks,City and South - Long term blocks,Nursing Care
Cambridgeshire County Council,02-Sep-22,51301847544,"-3,436.20",THE CAMBRIDGE NURSING CENTRE,CARE ESTABLISHMENT,OPPD - Cost of Care - City South Blocks,City and South - Long term blocks,Nursing Care
Cambridgeshire County Council,02-Sep-22,51301847544,"-3,436.20",THE CAMBRIDGE NURSING CENTRE,CARE ESTABLISHMENT,OPPD - Cost of Care - City South Blocks,City and South - Long term blocks,Nursing Care
Cambridgeshire County Council,02-Sep-22,51301847544,"-3,436.20",THE CAMBRIDGE NURSING CENTRE,CARE ESTABLISHMENT,OPPD - Cost of Care - City South Blocks,City and South - Long term blocks,Nursing Care
Cambridgeshire County Council,02-Sep-22,51301847544,"-3,425.85",THE CAMBRIDGE NURSING CENTRE,CARE ESTABLISHMENT,OPPD - Cost of Care - City South Blocks,City and South - Long term blocks,Nursing Care
Cambridgeshire County Council,02-Sep-22,51301847544,"-3,425.85",THE CAMBRIDGE NURSING CENTRE,CARE ESTABLISHMENT,OPPD - Cost of Care - City South Blocks,City and South - Long term blocks,Nursing Care
Cambridgeshire County Council,02-Sep-22,51301847544,"-3,425.85",THE CAMBRIDGE NURSING CENTRE,CARE ESTABLISHMENT,OPPD - Cost of Care - City South Blocks,City and South - Long term blocks,Nursing Care
Cambridgeshire County Council,02-Sep-22,51301847544,"-3,425.85",THE CAMBRIDGE NURSING CENTRE,CARE ESTABLISHMENT,OPPD - Cost of Care - City South Blocks,City and South - Long term blocks,Nursing Care
Cambridgeshire County Council,02-Sep-22,51301847544,"-3,425.85",THE CAMBRIDGE NURSING CENTRE,CARE ESTABLISHMENT,OPPD - Cost of Care - City South Blocks,City and South - Long term blocks,Nursing Care
Cambridgeshire County Council,02-Sep-22,51301847544,"-3,425.85",THE CAMBRIDGE NURSING CENTRE,CARE ESTABLISHMENT,OPPD - Cost of Care - City South Blocks,City and South - Long term blocks,Nursing Care
Cambridgeshire County Council,02-Sep-22,51301847544,"-3,425.85",THE CAMBRIDGE NURSING CENTRE,CARE ESTABLISHMENT,OPPD - Cost of Care - City South Blocks,City and South - Long term blocks,Nursing Care
Cambridgeshire County Council,02-Sep-22,51301847583,"-3,288.61",RADIS COMMUNITY CARE,CARE ESTABLISHMENT,OPPD - Cost of Care - Fenland - Over 65,Older People - Fenland - Care,Supported Living
Cambridgeshire County Council,02-Sep-22,51301847583,"-3,288.61",RADIS COMMUNITY CARE,CARE ESTABLISHMENT,OPPD - Cost of Care - Fenland - Over 65,Older People - Fenland - Care,Supported Living
Cambridgeshire County Council,02-Sep-22,51301847583,"-3,288.61",RADIS COMMUNITY CARE,CARE ESTABLISHMENT,OPPD - Cost of Care - Fenland - Over 65,Older People - Fenland - Care,Supported Living
Cambridgeshire County Council,02-Sep-22,51301847583,"-3,288.61",RADIS COMMUNITY CARE,CARE ESTABLISHMENT,OPPD - Cost of Care - Fenland - Over 65,Older People - Fenland - Care,Supported Living
Cambridgeshire County Council,02-Sep-22,51301847583,"-3,288.61",RADIS COMMUNITY CARE,CARE ESTABLISHMENT,OPPD - Cost of Care - Fenland - Over 65,Older People - Fenland - Care,Supported Living
Cambridgeshire County Council,02-Sep-22,51301847583,"-3,288.61",RADIS COMMUNITY CARE,CARE ESTABLISHMENT,OPPD - Cost of Care - Fenland - Over 65,Older People - Fenland - Care,Supported Living
Cambridgeshire County Council,02-Sep-22,51301847583,"-3,288.61",RADIS COMMUNITY CARE,CARE ESTABLISHMENT,OPPD - Cost of Care - Fenland - Over 65,Older People - Fenland - Care,Supported Living
Cambridgeshire County Council,02-Sep-22,51301847583,"-3,288.61",RADIS COMMUNITY CARE,CARE ESTABLISHMENT,OPPD - Cost of Care - Fenland - Over 65,Older People - Fenland - Care,Supported Living
Cambridgeshire County Council,02-Sep-22,51301847583,"-3,288.61",RADIS COMMUNITY CARE,CARE ESTABLISHMENT,OPPD - Cost of Care - Fenland - Over 65,Older People - Fenland - Care,Supported Living
Cambridgeshire County Council,02-Sep-22,51301847583,"-3,288.61",RADIS COMMUNITY CARE,CARE ESTABLISHMENT,OPPD - Cost of Care - Fenland - Over 65,Older People - Fenland - Care,Supported Living
Cambridgeshire County Council,02-Sep-22,51301847583,"-3,288.61",RADIS COMMUNITY CARE,CARE ESTABLISHMENT,OPPD - Cost of Care - Fenland - Over 65,Older People - Fenland - Care,Supported Living
Cambridgeshire County Council,02-Sep-22,51301847583,"-3,288.61",RADIS COMMUNITY CARE,CARE ESTABLISHMENT,OPPD - Cost of Care - Fenland - Over 65,Older People - Fenland - Care,Supported Living
Cambridgeshire County Council,02-Sep-22,51301847583,"-3,288.61",RADIS COMMUNITY CARE,CARE ESTABLISHMENT,OPPD - Cost of Care - Fenland - Over 65,Older People - Fenland - Care,Supported Living
Cambridgeshire County Council,02-Sep-22,51301847583,"-3,288.61",RADIS COMMUNITY CARE,CARE ESTABLISHMENT,OPPD - Cost of Care - Fenland - Over 65,Older People - Fenland - Care,Supported Living
Cambridgeshire County Council,02-Sep-22,51301847583,"-3,288.61",RADIS COMMUNITY CARE,CARE ESTABLISHMENT,OPPD - Cost of Care - Fenland - Over 65,Older People - Fenland - Care,Supported Living
Cambridgeshire County Council,02-Sep-22,51301847586,"-3,288.61",RADIS COMMUNITY CARE,CARE ESTABLISHMENT,OPPD - Cost of Care - Huntingdon - Over 65,Hunts OP Team - Care,Supported Living
Cambridgeshire County Council,02-Sep-22,51301847586,"-3,288.61",RADIS COMMUNITY CARE,CARE ESTABLISHMENT,OPPD - Cost of Care - Huntingdon - Over 65,Hunts OP Team - Care,Supported Living
Cambridgeshire County Council,02-Sep-22,51301847586,"-3,288.61",RADIS COMMUNITY CARE,CARE ESTABLISHMENT,OPPD - Cost of Care - Huntingdon - Over 65,Hunts OP Team - Care,Supported Living
Cambridgeshire County Council,02-Sep-22,51301847586,"-3,288.61",RADIS COMMUNITY CARE,CARE ESTABLISHMENT,OPPD - Cost of Care - Huntingdon - Over 65,Hunts OP Team - Care,Supported Living
Cambridgeshire County Council,02-Sep-22,51301847586,"-3,288.61",RADIS COMMUNITY CARE,CARE ESTABLISHMENT,OPPD - Cost of Care - Huntingdon - Over 65,Hunts OP Team - Care,Supported Living
Cambridgeshire County Council,02-Sep-22,51301847586,"-3,288.61",RADIS COMMUNITY CARE,CARE ESTABLISHMENT,OPPD - Cost of Care - Huntingdon - Over 65,Hunts OP Team - Care,Supported Living
Cambridgeshire County Council,02-Sep-22,51301847586,"-3,288.61",RADIS COMMUNITY CARE,CARE ESTABLISHMENT,OPPD - Cost of Care - Huntingdon - Over 65,Hunts OP Team - Care,Supported Living
Cambridgeshire County Council,02-Sep-22,51301847586,"-3,288.61",RADIS COMMUNITY CARE,CARE ESTABLISHMENT,OPPD - Cost of Care - Huntingdon - Over 65,Hunts OP Team - Care,Supported Living
Cambridgeshire County Council,02-Sep-22,51301847586,"-3,288.61",RADIS COMMUNITY CARE,CARE ESTABLISHMENT,OPPD - Cost of Care - Huntingdon - Over 65,Hunts OP Team - Care,Supported Living
Cambridgeshire County Council,02-Sep-22,51301847586,"-3,288.61",RADIS COMMUNITY CARE,CARE ESTABLISHMENT,OPPD - Cost of Care - Huntingdon - Over 65,Hunts OP Team - Care,Supported Living
Cambridgeshire County Council,02-Sep-22,51301847586,"-3,288.61",RADIS COMMUNITY CARE,CARE ESTABLISHMENT,OPPD - Cost of Care - Huntingdon - Over 65,Hunts OP Team - Care,Supported Living
Cambridgeshire County Council,02-Sep-22,51301847586,"-3,288.61",RADIS COMMUNITY CARE,CARE ESTABLISHMENT,OPPD - Cost of Care - Huntingdon - Over 65,Hunts OP Team - Care,Supported Living
Cambridgeshire County Council,02-Sep-22,51301847586,"-3,288.61",RADIS COMMUNITY CARE,CARE ESTABLISHMENT,OPPD - Cost of Care - Huntingdon - Over 65,Hunts OP Team - Care,Supported Living
Cambridgeshire County Council,02-Sep-22,51301847586,"-3,288.61",RADIS COMMUNITY CARE,CARE ESTABLISHMENT,OPPD - Cost of Care - Huntingdon - Over 65,Hunts OP Team - Care,Supported Living
Cambridgeshire County Council,02-Sep-22,51301847586,"-3,288.61",RADIS COMMUNITY CARE,CARE ESTABLISHMENT,OPPD - Cost of Care - Huntingdon - Over 65,Hunts OP Team - Care,Supported Living
Cambridgeshire County Council,02-Sep-22,51301847584,"-3,248.01",RADIS COMMUNITY CARE,CARE ESTABLISHMENT,OPPD - Cost of Care - City South - Over 65,Older People - City & South - Care,Supported Living
Cambridgeshire County Council,02-Sep-22,51301847584,"-3,248.01",RADIS COMMUNITY CARE,CARE ESTABLISHMENT,OPPD - Cost of Care - City South - Over 65,Older People - City & South - Care,Supported Living
Cambridgeshire County Council,02-Sep-22,51301847584,"-3,248.01",RADIS COMMUNITY CARE,CARE ESTABLISHMENT,OPPD - Cost of Care - City South - Over 65,Older People - City & South - Care,Supported Living
Cambridgeshire County Council,02-Sep-22,51301847584,"-3,248.01",RADIS COMMUNITY CARE,CARE ESTABLISHMENT,OPPD - Cost of Care - City South - Over 65,Older People - City & South - Care,Supported Living
Cambridgeshire County Council,02-Sep-22,51301847584,"-3,248.01",RADIS COMMUNITY CARE,CARE ESTABLISHMENT,OPPD - Cost of Care - City South - Over 65,Older People - City & South - Care,Supported Living
Cambridgeshire County Council,02-Sep-22,51301847584,"-3,248.01",RADIS COMMUNITY CARE,CARE ESTABLISHMENT,OPPD - Cost of Care - City South - Over 65,Older People - City & South - Care,Supported Living
Cambridgeshire County Council,02-Sep-22,51301847584,"-3,248.01",RADIS COMMUNITY CARE,CARE ESTABLISHMENT,OPPD - Cost of Care - City South - Over 65,Older People - City & South - Care,Supported Living
Cambridgeshire County Council,02-Sep-22,51301847584,"-3,248.01",RADIS COMMUNITY CARE,CARE ESTABLISHMENT,OPPD - Cost of Care - City South - Over 65,Older People - City & South - Care,Supported Living
Cambridgeshire County Council,02-Sep-22,51301847584,"-3,248.01",RADIS COMMUNITY CARE,CARE ESTABLISHMENT,OPPD - Cost of Care - City South - Over 65,Older People - City & South - Care,Supported Living
Cambridgeshire County Council,02-Sep-22,51301847584,"-3,248.01",RADIS COMMUNITY CARE,CARE ESTABLISHMENT,OPPD - Cost of Care - City South - Over 65,Older People - City & South - Care,Supported Living
Cambridgeshire County Council,02-Sep-22,51301847584,"-3,248.01",RADIS COMMUNITY CARE,CARE ESTABLISHMENT,OPPD - Cost of Care - City South - Over 65,Older People - City & South - Care,Supported Living
Cambridgeshire County Council,02-Sep-22,51301847584,"-3,248.01",RADIS COMMUNITY CARE,CARE ESTABLISHMENT,OPPD - Cost of Care - City South - Over 65,Older People - City & South - Care,Supported Living
Cambridgeshire County Council,02-Sep-22,51301847584,"-3,248.01",RADIS COMMUNITY CARE,CARE ESTABLISHMENT,OPPD - Cost of Care - City South - Over 65,Older People - City & South - Care,Supported Living
Cambridgeshire County Council,02-Sep-22,51301847584,"-3,248.01",RADIS COMMUNITY CARE,CARE ESTABLISHMENT,OPPD - Cost of Care - City South - Over 65,Older People - City & South - Care,Supported Living
Cambridgeshire County Council,02-Sep-22,51301847584,"-3,248.01",RADIS COMMUNITY CARE,CARE ESTABLISHMENT,OPPD - Cost of Care - City South - Over 65,Older People - City & South - Care,Supported Living
Cambridgeshire County Council,02-Sep-22,51301847585,"-3,111.87",RADIS COMMUNITY CARE,CARE ESTABLISHMENT,OPPD - Cost of Care - Fenland - Over 65,Older People - Fenland - Care,Supported Living
Cambridgeshire County Council,02-Sep-22,51301847585,"-3,111.87",RADIS COMMUNITY CARE,CARE ESTABLISHMENT,OPPD - Cost of Care - Fenland - Over 65,Older People - Fenland - Care,Supported Living
Cambridgeshire County Council,02-Sep-22,51301847585,"-3,111.87",RADIS COMMUNITY CARE,CARE ESTABLISHMENT,OPPD - Cost of Care - Fenland - Over 65,Older People - Fenland - Care,Supported Living
Cambridgeshire County Council,02-Sep-22,51301847585,"-3,111.87",RADIS COMMUNITY CARE,CARE ESTABLISHMENT,OPPD - Cost of Care - Fenland - Over 65,Older People - Fenland - Care,Supported Living
Cambridgeshire County Council,02-Sep-22,51301847585,"-3,111.87",RADIS COMMUNITY CARE,CARE ESTABLISHMENT,OPPD - Cost of Care - Fenland - Over 65,Older People - Fenland - Care,Supported Living
Cambridgeshire County Council,02-Sep-22,51301847585,"-3,111.87",RADIS COMMUNITY CARE,CARE ESTABLISHMENT,OPPD - Cost of Care - Fenland - Over 65,Older People - Fenland - Care,Supported Living
Cambridgeshire County Council,02-Sep-22,51301847585,"-3,111.87",RADIS COMMUNITY CARE,CARE ESTABLISHMENT,OPPD - Cost of Care - Fenland - Over 65,Older People - Fenland - Care,Supported Living
Cambridgeshire County Council,02-Sep-22,51301847585,"-3,111.87",RADIS COMMUNITY CARE,CARE ESTABLISHMENT,OPPD - Cost of Care - Fenland - Over 65,Older People - Fenland - Care,Supported Living
Cambridgeshire County Council,02-Sep-22,51301847585,"-3,111.87",RADIS COMMUNITY CARE,CARE ESTABLISHMENT,OPPD - Cost of Care - Fenland - Over 65,Older People - Fenland - Care,Supported Living
Cambridgeshire County Council,02-Sep-22,51301847585,"-3,111.87",RADIS COMMUNITY CARE,CARE ESTABLISHMENT,OPPD - Cost of Care - Fenland - Over 65,Older People - Fenland - Care,Supported Living
Cambridgeshire County Council,02-Sep-22,51301847585,"-3,111.87",RADIS COMMUNITY CARE,CARE ESTABLISHMENT,OPPD - Cost of Care - Fenland - Over 65,Older People - Fenland - Care,Supported Living
Cambridgeshire County Council,02-Sep-22,51301847585,"-3,111.87",RADIS COMMUNITY CARE,CARE ESTABLISHMENT,OPPD - Cost of Care - Fenland - Over 65,Older People - Fenland - Care,Supported Living
Cambridgeshire County Council,02-Sep-22,51301847585,"-3,111.87",RADIS COMMUNITY CARE,CARE ESTABLISHMENT,OPPD - Cost of Care - Fenland - Over 65,Older People - Fenland - Care,Supported Living
Cambridgeshire County Council,02-Sep-22,51301847585,"-3,111.87",RADIS COMMUNITY CARE,CARE ESTABLISHMENT,OPPD - Cost of Care - Fenland - Over 65,Older People - Fenland - Care,Supported Living
Cambridgeshire County Council,02-Sep-22,51301847585,"-3,111.87",RADIS COMMUNITY CARE,CARE ESTABLISHMENT,OPPD - Cost of Care - Fenland - Over 65,Older People - Fenland - Care,Supported Living
Cambridgeshire County Council,02-Sep-22,51301847585,"-2,971.89",RADIS COMMUNITY CARE,CARE ESTABLISHMENT,OPPD - Cost of Care - Fenland - Over 65,Older People - Fenland - Care,Supported Living
Cambridgeshire County Council,02-Sep-22,51301847585,"-2,971.89",RADIS COMMUNITY CARE,CARE ESTABLISHMENT,OPPD - Cost of Care - Fenland - Over 65,Older People - Fenland - Care,Supported Living
Cambridgeshire County Council,02-Sep-22,51301847585,"-2,971.89",RADIS COMMUNITY CARE,CARE ESTABLISHMENT,OPPD - Cost of Care - Fenland - Over 65,Older People - Fenland - Care,Supported Living
Cambridgeshire County Council,02-Sep-22,51301847585,"-2,971.89",RADIS COMMUNITY CARE,CARE ESTABLISHMENT,OPPD - Cost of Care - Fenland - Over 65,Older People - Fenland - Care,Supported Living
Cambridgeshire County Council,02-Sep-22,51301847585,"-2,971.89",RADIS COMMUNITY CARE,CARE ESTABLISHMENT,OPPD - Cost of Care - Fenland - Over 65,Older People - Fenland - Care,Supported Living
Cambridgeshire County Council,02-Sep-22,51301847585,"-2,971.89",RADIS COMMUNITY CARE,CARE ESTABLISHMENT,OPPD - Cost of Care - Fenland - Over 65,Older People - Fenland - Care,Supported Living
Cambridgeshire County Council,02-Sep-22,51301847585,"-2,971.89",RADIS COMMUNITY CARE,CARE ESTABLISHMENT,OPPD - Cost of Care - Fenland - Over 65,Older People - Fenland - Care,Supported Living
Cambridgeshire County Council,02-Sep-22,51301847585,"-2,971.89",RADIS COMMUNITY CARE,CARE ESTABLISHMENT,OPPD - Cost of Care - Fenland - Over 65,Older People - Fenland - Care,Supported Living
Cambridgeshire County Council,02-Sep-22,51301847585,"-2,971.89",RADIS COMMUNITY CARE,CARE ESTABLISHMENT,OPPD - Cost of Care - Fenland - Over 65,Older People - Fenland - Care,Supported Living
Cambridgeshire County Council,02-Sep-22,51301847585,"-2,971.89",RADIS COMMUNITY CARE,CARE ESTABLISHMENT,OPPD - Cost of Care - Fenland - Over 65,Older People - Fenland - Care,Supported Living
Cambridgeshire County Council,02-Sep-22,51301847585,"-2,971.89",RADIS COMMUNITY CARE,CARE ESTABLISHMENT,OPPD - Cost of Care - Fenland - Over 65,Older People - Fenland - Care,Supported Living
Cambridgeshire County Council,02-Sep-22,51301847585,"-2,971.89",RADIS COMMUNITY CARE,CARE ESTABLISHMENT,OPPD - Cost of Care - Fenland - Over 65,Older People - Fenland - Care,Supported Living
Cambridgeshire County Council,02-Sep-22,51301847585,"-2,971.89",RADIS COMMUNITY CARE,CARE ESTABLISHMENT,OPPD - Cost of Care - Fenland - Over 65,Older People - Fenland - Care,Supported Living
Cambridgeshire County Council,02-Sep-22,51301847585,"-2,971.89",RADIS COMMUNITY CARE,CARE ESTABLISHMENT,OPPD - Cost of Care - Fenland - Over 65,Older People - Fenland - Care,Supported Living
Cambridgeshire County Council,02-Sep-22,51301847585,"-2,971.89",RADIS COMMUNITY CARE,CARE ESTABLISHMENT,OPPD - Cost of Care - Fenland - Over 65,Older People - Fenland - Care,Supported Living
Cambridgeshire County Council,02-Sep-22,51301847560,"-2,898.00",THE ELMS NURSING HOME,CARE ESTABLISHMENT,OPPD - Cost of Care - Fenland Blocks,Fenland - Long term blocks,Nursing Care
Cambridgeshire County Council,02-Sep-22,51301847560,"-2,898.00",THE ELMS NURSING HOME,CARE ESTABLISHMENT,OPPD - Cost of Care - Fenland Blocks,Fenland - Long term blocks,Nursing Care
Cambridgeshire County Council,02-Sep-22,51301847586,"-2,349.01",RADIS COMMUNITY CARE,CARE ESTABLISHMENT,OPPD - Cost of Care - Huntingdon - Over 65,Hunts OP Team - Care,Supported Living
Cambridgeshire County Council,02-Sep-22,51301847583,"-2,349.01",RADIS COMMUNITY CARE,CARE ESTABLISHMENT,OPPD - Cost of Care - Fenland - Over 65,Older People - Fenland - Care,Supported Living
Cambridgeshire County Council,02-Sep-22,51301847584,"-2,320.01",RADIS COMMUNITY CARE,CARE ESTABLISHMENT,OPPD - Cost of Care - City South - Over 65,Older People - City & South - Care,Supported Living
Cambridgeshire County Council,02-Sep-22,51301847545,"-2,248.02",CARE UK LIMITED,CARE ESTABLISHMENT,OPPD - Cost of Care - Huntingdon Blocks,Hunts - Long term blocks,Nursing Care
Cambridgeshire County Council,02-Sep-22,51301847545,"-2,248.02",CARE UK LIMITED,CARE ESTABLISHMENT,OPPD - Cost of Care - Huntingdon Blocks,Hunts - Long term blocks,Nursing Care
Cambridgeshire County Council,02-Sep-22,51301847545,"-2,248.02",CARE UK LIMITED,CARE ESTABLISHMENT,OPPD - Cost of Care - Huntingdon Blocks,Hunts - Long term blocks,Nursing Care
Cambridgeshire County Council,02-Sep-22,51301847545,"-2,248.02",CARE UK LIMITED,CARE ESTABLISHMENT,OPPD - Cost of Care - Huntingdon Blocks,Hunts - Long term blocks,Nursing Care
Cambridgeshire County Council,02-Sep-22,51301847545,"-2,248.02",CARE UK LIMITED,CARE ESTABLISHMENT,OPPD - Cost of Care - Huntingdon Blocks,Hunts - Long term blocks,Nursing Care
Cambridgeshire County Council,02-Sep-22,51301847545,"-2,248.02",CARE UK LIMITED,CARE ESTABLISHMENT,OPPD - Cost of Care - Huntingdon Blocks,Hunts - Long term blocks,Nursing Care
Cambridgeshire County Council,02-Sep-22,51301847545,"-2,248.02",CARE UK LIMITED,CARE ESTABLISHMENT,OPPD - Cost of Care - Huntingdon Blocks,Hunts - Long term blocks,Nursing Care
Cambridgeshire County Council,02-Sep-22,51301847545,"-2,248.02",CARE UK LIMITED,CARE ESTABLISHMENT,OPPD - Cost of Care - Huntingdon Blocks,Hunts - Long term blocks,Nursing Care
Cambridgeshire County Council,02-Sep-22,51301847585,"-2,222.76",RADIS COMMUNITY CARE,CARE ESTABLISHMENT,OPPD - Cost of Care - Fenland - Over 65,Older People - Fenland - Care,Supported Living
Cambridgeshire County Council,02-Sep-22,51301847585,"-2,122.78",RADIS COMMUNITY CARE,CARE ESTABLISHMENT,OPPD - Cost of Care - Fenland - Over 65,Older People - Fenland - Care,Supported Living
Cambridgeshire County Council,02-Sep-22,51301847545,"-1,926.87",CARE UK LIMITED,CARE ESTABLISHMENT,OPPD - Cost of Care - Huntingdon Blocks,Hunts - Long term blocks,Nursing Care
Cambridgeshire County Council,02-Sep-22,51301847563,"-1,916.23",THE GABLES SPECIALIST NURSING HOME,CARE ESTABLISHMENT,OPPD - Cost of Care - Fenland Blocks,Fenland - Long term blocks,Nursing Care
Cambridgeshire County Council,02-Sep-22,51301847596,"-1,872.88",FITZROY SUPPORT RE 28 RIVERBANK,CARE ESTABLISHMENT,LD - Fenland Locality - Cost of Care,LD - Fenland  - Care,Supported Living
Cambridgeshire County Council,02-Sep-22,51301847596,"-1,872.88",FITZROY SUPPORT RE 28 RIVERBANK,CARE ESTABLISHMENT,LD - Fenland Locality - Cost of Care,LD - Fenland  - Care,Supported Living
Cambridgeshire County Council,02-Sep-22,51301847596,"-1,872.88",FITZROY SUPPORT RE 28 RIVERBANK,CARE ESTABLISHMENT,LD - Fenland Locality - Cost of Care,LD - Fenland  - Care,Supported Living
Cambridgeshire County Council,02-Sep-22,51301847596,"-1,872.88",FITZROY SUPPORT RE 28 RIVERBANK,CARE ESTABLISHMENT,LD - Fenland Locality - Cost of Care,LD - Fenland  - Care,Supported Living
Cambridgeshire County Council,02-Sep-22,51301847596,"-1,872.88",FITZROY SUPPORT RE 28 RIVERBANK,CARE ESTABLISHMENT,LD - Fenland Locality - Cost of Care,LD - Fenland  - Care,Supported Living
Cambridgeshire County Council,02-Sep-22,51301847596,"-1,872.88",FITZROY SUPPORT RE 28 RIVERBANK,CARE ESTABLISHMENT,LD - Fenland Locality - Cost of Care,LD - Fenland  - Care,Supported Living
Cambridgeshire County Council,02-Sep-22,51301847596,"-1,872.88",FITZROY SUPPORT RE 28 RIVERBANK,CARE ESTABLISHMENT,LD - Fenland Locality - Cost of Care,LD - Fenland  - Care,Supported Living
Cambridgeshire County Council,02-Sep-22,51301847596,"-1,872.88",FITZROY SUPPORT RE 28 RIVERBANK,CARE ESTABLISHMENT,LD - Fenland Locality - Cost of Care,LD - Fenland  - Care,Supported Living
Cambridgeshire County Council,02-Sep-22,51301847596,"-1,872.88",FITZROY SUPPORT RE 28 RIVERBANK,CARE ESTABLISHMENT,LD - Fenland Locality - Cost of Care,LD - Fenland  - Care,Supported Living
Cambridgeshire County Council,02-Sep-22,51301847596,"-1,872.88",FITZROY SUPPORT RE 28 RIVERBANK,CARE ESTABLISHMENT,LD - Fenland Locality - Cost of Care,LD - Fenland  - Care,Supported Living
Cambridgeshire County Council,02-Sep-22,51301847596,"-1,872.88",FITZROY SUPPORT RE 28 RIVERBANK,CARE ESTABLISHMENT,LD - Fenland Locality - Cost of Care,LD - Fenland  - Care,Supported Living
Cambridgeshire County Council,02-Sep-22,51301847596,"-1,872.88",FITZROY SUPPORT RE 28 RIVERBANK,CARE ESTABLISHMENT,LD - Fenland Locality - Cost of Care,LD - Fenland  - Care,Supported Living
Cambridgeshire County Council,02-Sep-22,51301847596,"-1,872.88",FITZROY SUPPORT RE 28 RIVERBANK,CARE ESTABLISHMENT,LD - Fenland Locality - Cost of Care,LD - Fenland  - Care,Supported Living
Cambridgeshire County Council,02-Sep-22,51301847596,"-1,872.88",FITZROY SUPPORT RE 28 RIVERBANK,CARE ESTABLISHMENT,LD - Fenland Locality - Cost of Care,LD - Fenland  - Care,Supported Living
Cambridgeshire County Council,02-Sep-22,51301847596,"-1,872.88",FITZROY SUPPORT RE 28 RIVERBANK,CARE ESTABLISHMENT,LD - Fenland Locality - Cost of Care,LD - Fenland  - Care,Supported Living
Cambridgeshire County Council,02-Sep-22,51301847596,"-1,872.88",FITZROY SUPPORT RE 28 RIVERBANK,CARE ESTABLISHMENT,LD - Fenland Locality - Cost of Care,LD - Fenland  - Care,Supported Living
Cambridgeshire County Council,02-Sep-22,51301847596,"-1,872.88",FITZROY SUPPORT RE 28 RIVERBANK,CARE ESTABLISHMENT,LD - Fenland Locality - Cost of Care,LD - Fenland  - Care,Supported Living
Cambridgeshire County Council,02-Sep-22,51301847596,"-1,872.88",FITZROY SUPPORT RE 28 RIVERBANK,CARE ESTABLISHMENT,LD - Fenland Locality - Cost of Care,LD - Fenland  - Care,Supported Living
Cambridgeshire County Council,02-Sep-22,51301847596,"-1,872.88",FITZROY SUPPORT RE 28 RIVERBANK,CARE ESTABLISHMENT,LD - Fenland Locality - Cost of Care,LD - Fenland  - Care,Supported Living
Cambridgeshire County Council,02-Sep-22,51301847596,"-1,872.88",FITZROY SUPPORT RE 28 RIVERBANK,CARE ESTABLISHMENT,LD - Fenland Locality - Cost of Care,LD - Fenland  - Care,Supported Living
Cambridgeshire County Council,02-Sep-22,51301847596,"-1,872.88",FITZROY SUPPORT RE 28 RIVERBANK,CARE ESTABLISHMENT,LD - Fenland Locality - Cost of Care,LD - Fenland  - Care,Supported Living
Cambridgeshire County Council,02-Sep-22,51301847596,"-1,872.88",FITZROY SUPPORT RE 28 RIVERBANK,CARE ESTABLISHMENT,LD - Fenland Locality - Cost of Care,LD - Fenland  - Care,Supported Living
Cambridgeshire County Council,02-Sep-22,51301847596,"-1,872.88",FITZROY SUPPORT RE 28 RIVERBANK,CARE ESTABLISHMENT,LD - Fenland Locality - Cost of Care,LD - Fenland  - Care,Supported Living
Cambridgeshire County Council,02-Sep-22,51301847544,"-1,718.10",THE CAMBRIDGE NURSING CENTRE,CARE ESTABLISHMENT,OPPD - Cost of Care - City South Blocks,City and South - Long term blocks,Nursing Care
Cambridgeshire County Council,02-Sep-22,51301847544,"-1,718.10",THE CAMBRIDGE NURSING CENTRE,CARE ESTABLISHMENT,OPPD - Cost of Care - City South Blocks,City and South - Long term blocks,Nursing Care
Cambridgeshire County Council,02-Sep-22,51301847544,"-1,718.10",THE CAMBRIDGE NURSING CENTRE,CARE ESTABLISHMENT,OPPD - Cost of Care - City South Blocks,City and South - Long term blocks,Nursing Care
Cambridgeshire County Council,02-Sep-22,51301847544,"-1,718.10",THE CAMBRIDGE NURSING CENTRE,CARE ESTABLISHMENT,OPPD - Cost of Care - City South Blocks,City and South - Long term blocks,Nursing Care
Cambridgeshire County Council,02-Sep-22,51301847544,"-1,718.10",THE CAMBRIDGE NURSING CENTRE,CARE ESTABLISHMENT,OPPD - Cost of Care - City South Blocks,City and South - Long term blocks,Nursing Care
Cambridgeshire County Council,02-Sep-22,51301847544,"-1,718.10",THE CAMBRIDGE NURSING CENTRE,CARE ESTABLISHMENT,OPPD - Cost of Care - City South Blocks,City and South - Long term blocks,Nursing Care
Cambridgeshire County Council,02-Sep-22,51301847544,"-1,718.10",THE CAMBRIDGE NURSING CENTRE,CARE ESTABLISHMENT,OPPD - Cost of Care - City South Blocks,City and South - Long term blocks,Nursing Care
Cambridgeshire County Council,02-Sep-22,51301847597,"-1,677.15",FITZROY SUPPORT RE 28 RIVERBANK,CARE ESTABLISHMENT,LD - Fenland Locality - Cost of Care,LD - Fenland  - Care,Supported Living
Cambridgeshire County Council,02-Sep-22,51301847597,"-1,677.15",FITZROY SUPPORT RE 28 RIVERBANK,CARE ESTABLISHMENT,LD - Fenland Locality - Cost of Care,LD - Fenland  - Care,Supported Living
Cambridgeshire County Council,02-Sep-22,51301847597,"-1,677.15",FITZROY SUPPORT RE 28 RIVERBANK,CARE ESTABLISHMENT,LD - Fenland Locality - Cost of Care,LD - Fenland  - Care,Supported Living
Cambridgeshire County Council,02-Sep-22,51301847597,"-1,677.15",FITZROY SUPPORT RE 28 RIVERBANK,CARE ESTABLISHMENT,LD - Fenland Locality - Cost of Care,LD - Fenland  - Care,Supported Living
Cambridgeshire County Council,02-Sep-22,51301847597,"-1,677.15",FITZROY SUPPORT RE 28 RIVERBANK,CARE ESTABLISHMENT,LD - Fenland Locality - Cost of Care,LD - Fenland  - Care,Supported Living
Cambridgeshire County Council,02-Sep-22,51301847597,"-1,677.15",FITZROY SUPPORT RE 28 RIVERBANK,CARE ESTABLISHMENT,LD - Fenland Locality - Cost of Care,LD - Fenland  - Care,Supported Living
Cambridgeshire County Council,02-Sep-22,51301847597,"-1,677.15",FITZROY SUPPORT RE 28 RIVERBANK,CARE ESTABLISHMENT,LD - Fenland Locality - Cost of Care,LD - Fenland  - Care,Supported Living
Cambridgeshire County Council,02-Sep-22,51301847597,"-1,677.15",FITZROY SUPPORT RE 28 RIVERBANK,CARE ESTABLISHMENT,LD - Fenland Locality - Cost of Care,LD - Fenland  - Care,Supported Living
Cambridgeshire County Council,02-Sep-22,51301847597,"-1,677.15",FITZROY SUPPORT RE 28 RIVERBANK,CARE ESTABLISHMENT,LD - Fenland Locality - Cost of Care,LD - Fenland  - Care,Supported Living
Cambridgeshire County Council,02-Sep-22,51301847597,"-1,677.15",FITZROY SUPPORT RE 28 RIVERBANK,CARE ESTABLISHMENT,LD - Fenland Locality - Cost of Care,LD - Fenland  - Care,Supported Living
Cambridgeshire County Council,02-Sep-22,51301847597,"-1,677.15",FITZROY SUPPORT RE 28 RIVERBANK,CARE ESTABLISHMENT,LD - Fenland Locality - Cost of Care,LD - Fenland  - Care,Supported Living
Cambridgeshire County Council,02-Sep-22,51301847597,"-1,677.15",FITZROY SUPPORT RE 28 RIVERBANK,CARE ESTABLISHMENT,LD - Fenland Locality - Cost of Care,LD - Fenland  - Care,Supported Living
Cambridgeshire County Council,02-Sep-22,51301847597,"-1,677.15",FITZROY SUPPORT RE 28 RIVERBANK,CARE ESTABLISHMENT,LD - Fenland Locality - Cost of Care,LD - Fenland  - Care,Supported Living
Cambridgeshire County Council,02-Sep-22,51301847597,"-1,677.15",FITZROY SUPPORT RE 28 RIVERBANK,CARE ESTABLISHMENT,LD - Fenland Locality - Cost of Care,LD - Fenland  - Care,Supported Living
Cambridgeshire County Council,02-Sep-22,51301847597,"-1,677.15",FITZROY SUPPORT RE 28 RIVERBANK,CARE ESTABLISHMENT,LD - Fenland Locality - Cost of Care,LD - Fenland  - Care,Supported Living
Cambridgeshire County Council,02-Sep-22,51301847597,"-1,677.15",FITZROY SUPPORT RE 28 RIVERBANK,CARE ESTABLISHMENT,LD - Fenland Locality - Cost of Care,LD - Fenland  - Care,Supported Living
Cambridgeshire County Council,02-Sep-22,51301847597,"-1,677.15",FITZROY SUPPORT RE 28 RIVERBANK,CARE ESTABLISHMENT,LD - Fenland Locality - Cost of Care,LD - Fenland  - Care,Supported Living
Cambridgeshire County Council,02-Sep-22,51301847597,"-1,677.15",FITZROY SUPPORT RE 28 RIVERBANK,CARE ESTABLISHMENT,LD - Fenland Locality - Cost of Care,LD - Fenland  - Care,Supported Living
Cambridgeshire County Council,02-Sep-22,51301847597,"-1,677.15",FITZROY SUPPORT RE 28 RIVERBANK,CARE ESTABLISHMENT,LD - Fenland Locality - Cost of Care,LD - Fenland  - Care,Supported Living
Cambridgeshire County Council,02-Sep-22,51301847597,"-1,677.15",FITZROY SUPPORT RE 28 RIVERBANK,CARE ESTABLISHMENT,LD - Fenland Locality - Cost of Care,LD - Fenland  - Care,Supported Living
Cambridgeshire County Council,02-Sep-22,51301847597,"-1,677.15",FITZROY SUPPORT RE 28 RIVERBANK,CARE ESTABLISHMENT,LD - Fenland Locality - Cost of Care,LD - Fenland  - Care,Supported Living
Cambridgeshire County Council,02-Sep-22,51301847597,"-1,677.15",FITZROY SUPPORT RE 28 RIVERBANK,CARE ESTABLISHMENT,LD - Fenland Locality - Cost of Care,LD - Fenland  - Care,Supported Living
Cambridgeshire County Council,02-Sep-22,51301847597,"-1,677.15",FITZROY SUPPORT RE 28 RIVERBANK,CARE ESTABLISHMENT,LD - Fenland Locality - Cost of Care,LD - Fenland  - Care,Supported Living
Cambridgeshire County Council,02-Sep-22,51301847544,"-1,656.00",THE CAMBRIDGE NURSING CENTRE,CARE ESTABLISHMENT,OPPD - Cost of Care - City South Blocks,City and South - Long term blocks,Nursing Care
Cambridgeshire County Council,02-Sep-22,51301847544,"-1,656.00",THE CAMBRIDGE NURSING CENTRE,CARE ESTABLISHMENT,OPPD - Cost of Care - City South Blocks,City and South - Long term blocks,Nursing Care
Cambridgeshire County Council,02-Sep-22,51301847544,"-1,656.00",THE CAMBRIDGE NURSING CENTRE,CARE ESTABLISHMENT,OPPD - Cost of Care - City South Blocks,City and South - Long term blocks,Nursing Care
Cambridgeshire County Council,02-Sep-22,51301847544,"-1,656.00",THE CAMBRIDGE NURSING CENTRE,CARE ESTABLISHMENT,OPPD - Cost of Care - City South Blocks,City and South - Long term blocks,Nursing Care
Cambridgeshire County Council,02-Sep-22,51301847544,"-1,656.00",THE CAMBRIDGE NURSING CENTRE,CARE ESTABLISHMENT,OPPD - Cost of Care - City South Blocks,City and South - Long term blocks,Nursing Care
Cambridgeshire County Council,02-Sep-22,51301847544,"-1,656.00",THE CAMBRIDGE NURSING CENTRE,CARE ESTABLISHMENT,OPPD - Cost of Care - City South Blocks,City and South - Long term blocks,Nursing Care
Cambridgeshire County Council,02-Sep-22,51301847544,"-1,656.00",THE CAMBRIDGE NURSING CENTRE,CARE ESTABLISHMENT,OPPD - Cost of Care - City South Blocks,City and South - Long term blocks,Nursing Care
Cambridgeshire County Council,02-Sep-22,51301847544,"-1,656.00",THE CAMBRIDGE NURSING CENTRE,CARE ESTABLISHMENT,OPPD - Cost of Care - City South Blocks,City and South - Long term blocks,Nursing Care
Cambridgeshire County Council,02-Sep-22,51301847615,"-1,503.43",FITZROY SUPPORT RE 28 RIVERBANK,CARE ESTABLISHMENT,LD - Fenland Locality - Cost of Care,LD - Fenland  - Care,Supported Living
Cambridgeshire County Council,02-Sep-22,51301847615,"-1,503.43",FITZROY SUPPORT RE 28 RIVERBANK,CARE ESTABLISHMENT,LD - Fenland Locality - Cost of Care,LD - Fenland  - Care,Supported Living
Cambridgeshire County Council,02-Sep-22,51301847615,"-1,503.43",FITZROY SUPPORT RE 28 RIVERBANK,CARE ESTABLISHMENT,LD - Fenland Locality - Cost of Care,LD - Fenland  - Care,Supported Living
Cambridgeshire County Council,02-Sep-22,51301847615,"-1,503.43",FITZROY SUPPORT RE 28 RIVERBANK,CARE ESTABLISHMENT,LD - Fenland Locality - Cost of Care,LD - Fenland  - Care,Supported Living
Cambridgeshire County Council,02-Sep-22,51301847615,"-1,503.43",FITZROY SUPPORT RE 28 RIVERBANK,CARE ESTABLISHMENT,LD - Fenland Locality - Cost of Care,LD - Fenland  - Care,Supported Living
Cambridgeshire County Council,02-Sep-22,51301847615,"-1,503.43",FITZROY SUPPORT RE 28 RIVERBANK,CARE ESTABLISHMENT,LD - Fenland Locality - Cost of Care,LD - Fenland  - Care,Supported Living
Cambridgeshire County Council,02-Sep-22,51301847615,"-1,503.43",FITZROY SUPPORT RE 28 RIVERBANK,CARE ESTABLISHMENT,LD - Fenland Locality - Cost of Care,LD - Fenland  - Care,Supported Living
Cambridgeshire County Council,02-Sep-22,51301847615,"-1,503.43",FITZROY SUPPORT RE 28 RIVERBANK,CARE ESTABLISHMENT,LD - Fenland Locality - Cost of Care,LD - Fenland  - Care,Supported Living
Cambridgeshire County Council,02-Sep-22,51301847615,"-1,503.43",FITZROY SUPPORT RE 28 RIVERBANK,CARE ESTABLISHMENT,LD - Fenland Locality - Cost of Care,LD - Fenland  - Care,Supported Living
Cambridgeshire County Council,02-Sep-22,51301847615,"-1,503.43",FITZROY SUPPORT RE 28 RIVERBANK,CARE ESTABLISHMENT,LD - Fenland Locality - Cost of Care,LD - Fenland  - Care,Supported Living
Cambridgeshire County Council,02-Sep-22,51301847615,"-1,503.43",FITZROY SUPPORT RE 28 RIVERBANK,CARE ESTABLISHMENT,LD - Fenland Locality - Cost of Care,LD - Fenland  - Care,Supported Living
Cambridgeshire County Council,02-Sep-22,51301847615,"-1,503.43",FITZROY SUPPORT RE 28 RIVERBANK,CARE ESTABLISHMENT,LD - Fenland Locality - Cost of Care,LD - Fenland  - Care,Supported Living
Cambridgeshire County Council,02-Sep-22,51301847615,"-1,503.43",FITZROY SUPPORT RE 28 RIVERBANK,CARE ESTABLISHMENT,LD - Fenland Locality - Cost of Care,LD - Fenland  - Care,Supported Living
Cambridgeshire County Council,02-Sep-22,51301847615,"-1,503.43",FITZROY SUPPORT RE 28 RIVERBANK,CARE ESTABLISHMENT,LD - Fenland Locality - Cost of Care,LD - Fenland  - Care,Supported Living
Cambridgeshire County Council,02-Sep-22,51301847615,"-1,503.43",FITZROY SUPPORT RE 28 RIVERBANK,CARE ESTABLISHMENT,LD - Fenland Locality - Cost of Care,LD - Fenland  - Care,Supported Living
Cambridgeshire County Council,02-Sep-22,51301847615,"-1,503.43",FITZROY SUPPORT RE 28 RIVERBANK,CARE ESTABLISHMENT,LD - Fenland Locality - Cost of Care,LD - Fenland  - Care,Supported Living
Cambridgeshire County Council,02-Sep-22,51301847615,"-1,503.43",FITZROY SUPPORT RE 28 RIVERBANK,CARE ESTABLISHMENT,LD - Fenland Locality - Cost of Care,LD - Fenland  - Care,Supported Living
Cambridgeshire County Council,02-Sep-22,51301847615,"-1,503.43",FITZROY SUPPORT RE 28 RIVERBANK,CARE ESTABLISHMENT,LD - Fenland Locality - Cost of Care,LD - Fenland  - Care,Supported Living
Cambridgeshire County Council,02-Sep-22,51301847615,"-1,503.43",FITZROY SUPPORT RE 28 RIVERBANK,CARE ESTABLISHMENT,LD - Fenland Locality - Cost of Care,LD - Fenland  - Care,Supported Living
Cambridgeshire County Council,02-Sep-22,51301847615,"-1,503.43",FITZROY SUPPORT RE 28 RIVERBANK,CARE ESTABLISHMENT,LD - Fenland Locality - Cost of Care,LD - Fenland  - Care,Supported Living
Cambridgeshire County Council,02-Sep-22,51301847615,"-1,503.43",FITZROY SUPPORT RE 28 RIVERBANK,CARE ESTABLISHMENT,LD - Fenland Locality - Cost of Care,LD - Fenland  - Care,Supported Living
Cambridgeshire County Council,02-Sep-22,51301847615,"-1,503.43",FITZROY SUPPORT RE 28 RIVERBANK,CARE ESTABLISHMENT,LD - Fenland Locality - Cost of Care,LD - Fenland  - Care,Supported Living
Cambridgeshire County Council,02-Sep-22,51301847615,"-1,503.43",FITZROY SUPPORT RE 28 RIVERBANK,CARE ESTABLISHMENT,LD - Fenland Locality - Cost of Care,LD - Fenland  - Care,Supported Living
Cambridgeshire County Council,02-Sep-22,51301847596,"-1,248.56",FITZROY SUPPORT RE 28 RIVERBANK,CARE ESTABLISHMENT,LD - Fenland Locality - Cost of Care,LD - Fenland  - Care,Supported Living
Cambridgeshire County Council,02-Sep-22,51301847596,"-1,248.56",FITZROY SUPPORT RE 28 RIVERBANK,CARE ESTABLISHMENT,LD - Fenland Locality - Cost of Care,LD - Fenland  - Care,Supported Living
Cambridgeshire County Council,02-Sep-22,51301847596,"-1,248.56",FITZROY SUPPORT RE 28 RIVERBANK,CARE ESTABLISHMENT,LD - Fenland Locality - Cost of Care,LD - Fenland  - Care,Supported Living
Cambridgeshire County Council,02-Sep-22,51301847596,"-1,248.56",FITZROY SUPPORT RE 28 RIVERBANK,CARE ESTABLISHMENT,LD - Fenland Locality - Cost of Care,LD - Fenland  - Care,Supported Living
Cambridgeshire County Council,02-Sep-22,51301847596,"-1,248.56",FITZROY SUPPORT RE 28 RIVERBANK,CARE ESTABLISHMENT,LD - Fenland Locality - Cost of Care,LD - Fenland  - Care,Supported Living
Cambridgeshire County Council,02-Sep-22,51301847596,"-1,248.56",FITZROY SUPPORT RE 28 RIVERBANK,CARE ESTABLISHMENT,LD - Fenland Locality - Cost of Care,LD - Fenland  - Care,Supported Living
Cambridgeshire County Council,02-Sep-22,51301847596,"-1,248.56",FITZROY SUPPORT RE 28 RIVERBANK,CARE ESTABLISHMENT,LD - Fenland Locality - Cost of Care,LD - Fenland  - Care,Supported Living
Cambridgeshire County Council,02-Sep-22,51301847596,"-1,248.56",FITZROY SUPPORT RE 28 RIVERBANK,CARE ESTABLISHMENT,LD - Fenland Locality - Cost of Care,LD - Fenland  - Care,Supported Living
Cambridgeshire County Council,02-Sep-22,51301847596,"-1,248.56",FITZROY SUPPORT RE 28 RIVERBANK,CARE ESTABLISHMENT,LD - Fenland Locality - Cost of Care,LD - Fenland  - Care,Supported Living
Cambridgeshire County Council,02-Sep-22,51301847596,"-1,248.56",FITZROY SUPPORT RE 28 RIVERBANK,CARE ESTABLISHMENT,LD - Fenland Locality - Cost of Care,LD - Fenland  - Care,Supported Living
Cambridgeshire County Council,02-Sep-22,51301847596,"-1,248.56",FITZROY SUPPORT RE 28 RIVERBANK,CARE ESTABLISHMENT,LD - Fenland Locality - Cost of Care,LD - Fenland  - Care,Supported Living
Cambridgeshire County Council,02-Sep-22,51301847596,"-1,248.56",FITZROY SUPPORT RE 28 RIVERBANK,CARE ESTABLISHMENT,LD - Fenland Locality - Cost of Care,LD - Fenland  - Care,Supported Living
Cambridgeshire County Council,02-Sep-22,51301847596,"-1,248.56",FITZROY SUPPORT RE 28 RIVERBANK,CARE ESTABLISHMENT,LD - Fenland Locality - Cost of Care,LD - Fenland  - Care,Supported Living
Cambridgeshire County Council,02-Sep-22,51301847596,"-1,248.56",FITZROY SUPPORT RE 28 RIVERBANK,CARE ESTABLISHMENT,LD - Fenland Locality - Cost of Care,LD - Fenland  - Care,Supported Living
Cambridgeshire County Council,02-Sep-22,51301847596,"-1,248.56",FITZROY SUPPORT RE 28 RIVERBANK,CARE ESTABLISHMENT,LD - Fenland Locality - Cost of Care,LD - Fenland  - Care,Supported Living
Cambridgeshire County Council,02-Sep-22,51301847596,"-1,248.56",FITZROY SUPPORT RE 28 RIVERBANK,CARE ESTABLISHMENT,LD - Fenland Locality - Cost of Care,LD - Fenland  - Care,Supported Living
Cambridgeshire County Council,02-Sep-22,51301847596,"-1,248.56",FITZROY SUPPORT RE 28 RIVERBANK,CARE ESTABLISHMENT,LD - Fenland Locality - Cost of Care,LD - Fenland  - Care,Supported Living
Cambridgeshire County Council,02-Sep-22,51301847596,"-1,248.56",FITZROY SUPPORT RE 28 RIVERBANK,CARE ESTABLISHMENT,LD - Fenland Locality - Cost of Care,LD - Fenland  - Care,Supported Living
Cambridgeshire County Council,02-Sep-22,51301847596,"-1,248.56",FITZROY SUPPORT RE 28 RIVERBANK,CARE ESTABLISHMENT,LD - Fenland Locality - Cost of Care,LD - Fenland  - Care,Supported Living
Cambridgeshire County Council,02-Sep-22,51301847596,"-1,248.56",FITZROY SUPPORT RE 28 RIVERBANK,CARE ESTABLISHMENT,LD - Fenland Locality - Cost of Care,LD - Fenland  - Care,Supported Living
Cambridgeshire County Council,02-Sep-22,51301847596,"-1,248.56",FITZROY SUPPORT RE 28 RIVERBANK,CARE ESTABLISHMENT,LD - Fenland Locality - Cost of Care,LD - Fenland  - Care,Supported Living
Cambridgeshire County Council,02-Sep-22,51301847596,"-1,248.56",FITZROY SUPPORT RE 28 RIVERBANK,CARE ESTABLISHMENT,LD - Fenland Locality - Cost of Care,LD - Fenland  - Care,Supported Living
Cambridgeshire County Council,02-Sep-22,51301847596,"-1,248.56",FITZROY SUPPORT RE 28 RIVERBANK,CARE ESTABLISHMENT,LD - Fenland Locality - Cost of Care,LD - Fenland  - Care,Supported Living
Cambridgeshire County Council,02-Sep-22,51301847523,"-1,162.70",Redacted Personal Data,SERVICE USER,OPPD - Under 65 - City South,OPPD - Under 65 - City South,Direct Payments
Cambridgeshire County Council,02-Sep-22,51301847523,"-1,162.70",Redacted Personal Data,SERVICE USER,OPPD - Under 65 - City South,OPPD - Under 65 - City South,Direct Payments
Cambridgeshire County Council,02-Sep-22,51301847523,"-1,162.70",Redacted Personal Data,SERVICE USER,OPPD - Under 65 - City South,OPPD - Under 65 - City South,Direct Payments
Cambridgeshire County Council,02-Sep-22,51301847523,"-1,162.70",Redacted Personal Data,SERVICE USER,OPPD - Under 65 - City South,OPPD - Under 65 - City South,Direct Payments
Cambridgeshire County Council,02-Sep-22,51301847523,"-1,162.70",Redacted Personal Data,SERVICE USER,OPPD - Under 65 - City South,OPPD - Under 65 - City South,Direct Payments
Cambridgeshire County Council,02-Sep-22,51301847523,"-1,162.70",Redacted Personal Data,SERVICE USER,OPPD - Under 65 - City South,OPPD - Under 65 - City South,Direct Payments
Cambridgeshire County Council,02-Sep-22,51301847523,"-1,162.70",Redacted Personal Data,SERVICE USER,OPPD - Under 65 - City South,OPPD - Under 65 - City South,Direct Payments
Cambridgeshire County Council,02-Sep-22,51301847523,"-1,162.70",Redacted Personal Data,SERVICE USER,OPPD - Under 65 - City South,OPPD - Under 65 - City South,Direct Payments
Cambridgeshire County Council,02-Sep-22,51301847523,"-1,162.70",Redacted Personal Data,SERVICE USER,OPPD - Under 65 - City South,OPPD - Under 65 - City South,Direct Payments
Cambridgeshire County Council,02-Sep-22,51301842512,"-1,068.74",Southwell Court,CARE ESTABLISHMENT,OPPD - Cost of Care - Huntingdon - Under 65,OPPD - Under 65 - Huntingdon,Residential Care
Cambridgeshire County Council,02-Sep-22,51301842512,"-1,068.74",Southwell Court,CARE ESTABLISHMENT,OPPD - Cost of Care - Huntingdon - Under 65,OPPD - Under 65 - Huntingdon,Residential Care
Cambridgeshire County Council,02-Sep-22,51301842512,"-1,068.74",Southwell Court,CARE ESTABLISHMENT,OPPD - Cost of Care - Huntingdon - Under 65,OPPD - Under 65 - Huntingdon,Residential Care
Cambridgeshire County Council,02-Sep-22,51301842512,"-1,068.74",Southwell Court,CARE ESTABLISHMENT,OPPD - Cost of Care - Huntingdon - Under 65,OPPD - Under 65 - Huntingdon,Residential Care
Cambridgeshire County Council,02-Sep-22,51301842512,"-1,068.74",Southwell Court,CARE ESTABLISHMENT,OPPD - Cost of Care - Huntingdon - Under 65,OPPD - Under 65 - Huntingdon,Residential Care
Cambridgeshire County Council,02-Sep-22,51301842512,"-1,068.74",Southwell Court,CARE ESTABLISHMENT,OPPD - Cost of Care - Huntingdon - Under 65,OPPD - Under 65 - Huntingdon,Residential Care
Cambridgeshire County Council,02-Sep-22,51301842512,"-1,068.74",Southwell Court,CARE ESTABLISHMENT,OPPD - Cost of Care - Huntingdon - Under 65,OPPD - Under 65 - Huntingdon,Residential Care
Cambridgeshire County Council,02-Sep-22,51301842512,"-1,068.74",Southwell Court,CARE ESTABLISHMENT,OPPD - Cost of Care - Huntingdon - Under 65,OPPD - Under 65 - Huntingdon,Residential Care
Cambridgeshire County Council,02-Sep-22,51301842512,"-1,068.74",Southwell Court,CARE ESTABLISHMENT,OPPD - Cost of Care - Huntingdon - Under 65,OPPD - Under 65 - Huntingdon,Residential Care
Cambridgeshire County Council,02-Sep-22,51301842512,"-1,068.74",Southwell Court,CARE ESTABLISHMENT,OPPD - Cost of Care - Huntingdon - Under 65,OPPD - Under 65 - Huntingdon,Residential Care
Cambridgeshire County Council,02-Sep-22,51301842512,"-1,068.74",Southwell Court,CARE ESTABLISHMENT,OPPD - Cost of Care - Huntingdon - Under 65,OPPD - Under 65 - Huntingdon,Residential Care
Cambridgeshire County Council,02-Sep-22,51301842512,"-1,068.74",Southwell Court,CARE ESTABLISHMENT,OPPD - Cost of Care - Huntingdon - Under 65,OPPD - Under 65 - Huntingdon,Residential Care
Cambridgeshire County Council,02-Sep-22,51301842512,"-1,068.74",Southwell Court,CARE ESTABLISHMENT,OPPD - Cost of Care - Huntingdon - Under 65,OPPD - Under 65 - Huntingdon,Residential Care
Cambridgeshire County Council,02-Sep-22,51301842512,"-1,068.74",Southwell Court,CARE ESTABLISHMENT,OPPD - Cost of Care - Huntingdon - Under 65,OPPD - Under 65 - Huntingdon,Residential Care
Cambridgeshire County Council,02-Sep-22,51301842512,"-1,068.74",Southwell Court,CARE ESTABLISHMENT,OPPD - Cost of Care - Huntingdon - Under 65,OPPD - Under 65 - Huntingdon,Residential Care
Cambridgeshire County Council,02-Sep-22,51301842512,"-1,068.74",Southwell Court,CARE ESTABLISHMENT,OPPD - Cost of Care - Huntingdon - Under 65,OPPD - Under 65 - Huntingdon,Residential Care
Cambridgeshire County Council,02-Sep-22,51301842512,"-1,068.74",Southwell Court,CARE ESTABLISHMENT,OPPD - Cost of Care - Huntingdon - Under 65,OPPD - Under 65 - Huntingdon,Residential Care
Cambridgeshire County Council,02-Sep-22,51301842512,"-1,068.74",Southwell Court,CARE ESTABLISHMENT,OPPD - Cost of Care - Huntingdon - Under 65,OPPD - Under 65 - Huntingdon,Residential Care
Cambridgeshire County Council,02-Sep-22,51301842512,"-1,068.74",Southwell Court,CARE ESTABLISHMENT,OPPD - Cost of Care - Huntingdon - Under 65,OPPD - Under 65 - Huntingdon,Residential Care
Cambridgeshire County Council,02-Sep-22,51301842512,"-1,068.74",Southwell Court,CARE ESTABLISHMENT,OPPD - Cost of Care - Huntingdon - Under 65,OPPD - Under 65 - Huntingdon,Residential Care
Cambridgeshire County Council,02-Sep-22,51301842512,"-1,068.74",Southwell Court,CARE ESTABLISHMENT,OPPD - Cost of Care - Huntingdon - Under 65,OPPD - Under 65 - Huntingdon,Residential Care
Cambridgeshire County Council,02-Sep-22,51301842512,"-1,068.74",Southwell Court,CARE ESTABLISHMENT,OPPD - Cost of Care - Huntingdon - Under 65,OPPD - Under 65 - Huntingdon,Residential Care
Cambridgeshire County Council,02-Sep-22,51301842512,"-1,068.74",Southwell Court,CARE ESTABLISHMENT,OPPD - Cost of Care - Huntingdon - Under 65,OPPD - Under 65 - Huntingdon,Residential Care
Cambridgeshire County Council,02-Sep-22,51301847613,"-1,006.33",FITZROY SUPPORTED,CARE ESTABLISHMENT,LD - Fenland Locality - Cost of Care,LD - Fenland  - Special Needs,Supported Living
Cambridgeshire County Council,02-Sep-22,51301847523,-996.60,Redacted Personal Data,SERVICE USER,OPPD - Under 65 - City South,OPPD - Under 65 - City South,Direct Payments
Cambridgeshire County Council,02-Sep-22,51301847544,-981.77,THE CAMBRIDGE NURSING CENTRE,CARE ESTABLISHMENT,OPPD - Cost of Care - City South Blocks,City and South - Long term blocks,Nursing Care
Cambridgeshire County Council,02-Sep-22,51301847544,-978.81,THE CAMBRIDGE NURSING CENTRE,CARE ESTABLISHMENT,OPPD - Cost of Care - City South Blocks,City and South - Long term blocks,Nursing Care
Cambridgeshire County Council,02-Sep-22,51301847257,-960.00,HUNTINGDONSHIRE DISTRICT COUNCIL,OTHER PUBLIC BODIES,PH COMF,PH - Contain Outbreak Management Fund,Professional Fees and Hired Services
Cambridgeshire County Council,02-Sep-22,51301847560,-828.00,THE ELMS NURSING HOME,CARE ESTABLISHMENT,OPPD - Cost of Care - Fenland Blocks,Fenland - Long term blocks,Nursing Care
Cambridgeshire County Council,02-Sep-22,51301847627,-700.00,FARRINGTON CARE HOMES LTD T/A WOODLANDS RESIDENTIAL CARE HOME,CARE ESTABLISHMENT,OPPD - Cost of Care - East Cambs - Under 65,OPPD - Under 65 - East Cambs,Short Term Other
Cambridgeshire County Council,02-Sep-22,51301847275,-636.00,FEVACA,CARE ESTABLISHMENT,LAC Placements,Placements - supported accommodation,Agency Placements - In County
Cambridgeshire County Council,02-Sep-22,51301847674,-636.00,FEVACA,CARE ESTABLISHMENT,LAC Placements,Placements - supported accommodation,Agency Placements - In County
Cambridgeshire County Council,02-Sep-22,51301847596,-535.11,FITZROY SUPPORT RE 28 RIVERBANK,CARE ESTABLISHMENT,LD - Fenland Locality - Cost of Care,LD - Fenland  - Care,Supported Living
Cambridgeshire County Council,02-Sep-22,51301847274,-530.00,FEVACA,CARE ESTABLISHMENT,LAC Placements,Placements - supported accommodation,Agency Placements - In County
Cambridgeshire County Council,02-Sep-22,51301847673,-530.00,FEVACA,CARE ESTABLISHMENT,LAC Placements,Placements - supported accommodation,Agency Placements - In County
Cambridgeshire County Council,02-Sep-22,51301847709,501.70,Redacted Personal Data,FOSTER PARENT,Fostering,FCP allowances,Living support grants
Cambridgeshire County Council,02-Sep-22,51301847493,514.11,Redacted Personal Data,PARENT/GUARDIAN,Home to School Transport - Special,Home to School Transport Special - Special School,Contribution To Transport Related Provisions
Cambridgeshire County Council,02-Sep-22,51301847521,514.50,Redacted Personal Data,INDIVIDUAL,OPPD - Cost of Care - Huntingdon - Under 65,OPPD - Under 65 - Huntingdon,Direct Payments
Cambridgeshire County Council,02-Sep-22,51301847521,514.50,Redacted Personal Data,INDIVIDUAL,OPPD - Cost of Care - Huntingdon - Under 65,OPPD - Under 65 - Huntingdon,Direct Payments
Cambridgeshire County Council,02-Sep-22,51301847521,514.50,Redacted Personal Data,INDIVIDUAL,OPPD - Cost of Care - Huntingdon - Under 65,OPPD - Under 65 - Huntingdon,Direct Payments
Cambridgeshire County Council,02-Sep-22,51301847521,514.50,Redacted Personal Data,INDIVIDUAL,OPPD - Cost of Care - Huntingdon - Under 65,OPPD - Under 65 - Huntingdon,Direct Payments
Cambridgeshire County Council,02-Sep-22,51301847521,514.50,Redacted Personal Data,INDIVIDUAL,OPPD - Cost of Care - Huntingdon - Under 65,OPPD - Under 65 - Huntingdon,Direct Payments
Cambridgeshire County Council,02-Sep-22,51301847521,514.50,Redacted Personal Data,INDIVIDUAL,OPPD - Cost of Care - Huntingdon - Under 65,OPPD - Under 65 - Huntingdon,Direct Payments
Cambridgeshire County Council,02-Sep-22,51301847521,514.50,Redacted Personal Data,INDIVIDUAL,OPPD - Cost of Care - Huntingdon - Under 65,OPPD - Under 65 - Huntingdon,Direct Payments
Cambridgeshire County Council,02-Sep-22,51301847521,514.50,Redacted Personal Data,INDIVIDUAL,OPPD - Cost of Care - Huntingdon - Under 65,OPPD - Under 65 - Huntingdon,Direct Payments
Cambridgeshire County Council,02-Sep-22,51301847521,514.50,Redacted Personal Data,INDIVIDUAL,OPPD - Cost of Care - Huntingdon - Under 65,OPPD - Under 65 - Huntingdon,Direct Payments
Cambridgeshire County Council,02-Sep-22,51301847521,514.50,Redacted Personal Data,INDIVIDUAL,OPPD - Cost of Care - Huntingdon - Under 65,OPPD - Under 65 - Huntingdon,Direct Payments
Cambridgeshire County Council,02-Sep-22,51301847521,514.50,Redacted Personal Data,INDIVIDUAL,OPPD - Cost of Care - Huntingdon - Under 65,OPPD - Under 65 - Huntingdon,Direct Payments
Cambridgeshire County Council,02-Sep-22,51301847521,514.50,Redacted Personal Data,INDIVIDUAL,OPPD - Cost of Care - Huntingdon - Under 65,OPPD - Under 65 - Huntingdon,Direct Payments
Cambridgeshire County Council,02-Sep-22,51301847521,514.50,Redacted Personal Data,INDIVIDUAL,OPPD - Cost of Care - Huntingdon - Under 65,OPPD - Under 65 - Huntingdon,Direct Payments
Cambridgeshire County Council,02-Sep-22,51301847521,514.50,Redacted Personal Data,INDIVIDUAL,OPPD - Cost of Care - Huntingdon - Under 65,OPPD - Under 65 - Huntingdon,Direct Payments
Cambridgeshire County Council,02-Sep-22,51301847521,514.50,Redacted Personal Data,INDIVIDUAL,OPPD - Cost of Care - Huntingdon - Under 65,OPPD - Under 65 - Huntingdon,Direct Payments
Cambridgeshire County Council,02-Sep-22,51301847521,514.50,Redacted Personal Data,INDIVIDUAL,OPPD - Cost of Care - Huntingdon - Under 65,OPPD - Under 65 - Huntingdon,Direct Payments
Cambridgeshire County Council,02-Sep-22,51301847521,514.50,Redacted Personal Data,INDIVIDUAL,OPPD - Cost of Care - Huntingdon - Under 65,OPPD - Under 65 - Huntingdon,Direct Payments
Cambridgeshire County Council,02-Sep-22,51301847521,514.50,Redacted Personal Data,INDIVIDUAL,OPPD - Cost of Care - Huntingdon - Under 65,OPPD - Under 65 - Huntingdon,Direct Payments
Cambridgeshire County Council,02-Sep-22,51301824618,525.60,ESPO,TRADE SUPPLIER,P&C Executive Director,PPE - People and Communities,Building Repair and Maintenance
Cambridgeshire County Council,02-Sep-22,51301847675,530.00,FEVACA,CARE ESTABLISHMENT,LAC Placements,Placements - supported accommodation,Agency Placements - In County
Cambridgeshire County Council,02-Sep-22,51301847276,530.00,FEVACA,CARE ESTABLISHMENT,LAC Placements,Placements - supported accommodation,Agency Placements - In County
Cambridgeshire County Council,02-Sep-22,51301847514,536.48,Redacted Personal Data,INDIVIDUAL,OPPD - Under 65 - City South,OPPD - Under 65 - City South,Direct Payments
Cambridgeshire County Council,02-Sep-22,51301847514,536.48,Redacted Personal Data,INDIVIDUAL,OPPD - Under 65 - City South,OPPD - Under 65 - City South,Direct Payments
Cambridgeshire County Council,02-Sep-22,51301847514,536.48,Redacted Personal Data,INDIVIDUAL,OPPD - Under 65 - City South,OPPD - Under 65 - City South,Direct Payments
Cambridgeshire County Council,02-Sep-22,51301847514,536.48,Redacted Personal Data,INDIVIDUAL,OPPD - Under 65 - City South,OPPD - Under 65 - City South,Direct Payments
Cambridgeshire County Council,02-Sep-22,51301847514,536.48,Redacted Personal Data,INDIVIDUAL,OPPD - Under 65 - City South,OPPD - Under 65 - City South,Direct Payments
Cambridgeshire County Council,02-Sep-22,51301847514,536.48,Redacted Personal Data,INDIVIDUAL,OPPD - Under 65 - City South,OPPD - Under 65 - City South,Direct Payments
Cambridgeshire County Council,02-Sep-22,51301847514,536.48,Redacted Personal Data,INDIVIDUAL,OPPD - Under 65 - City South,OPPD - Under 65 - City South,Direct Payments
Cambridgeshire County Council,02-Sep-22,51301847514,536.48,Redacted Personal Data,INDIVIDUAL,OPPD - Under 65 - City South,OPPD - Under 65 - City South,Direct Payments
Cambridgeshire County Council,02-Sep-22,51301847514,536.48,Redacted Personal Data,INDIVIDUAL,OPPD - Under 65 - City South,OPPD - Under 65 - City South,Direct Payments
Cambridgeshire County Council,02-Sep-22,51301847514,536.48,Redacted Personal Data,INDIVIDUAL,OPPD - Under 65 - City South,OPPD - Under 65 - City South,Direct Payments
Cambridgeshire County Council,02-Sep-22,51301847514,536.48,Redacted Personal Data,INDIVIDUAL,OPPD - Under 65 - City South,OPPD - Under 65 - City South,Direct Payments
Cambridgeshire County Council,02-Sep-22,51301847465,545.13,Redacted Personal Data,INDIVIDUAL,Home to School Transport - Special,Home to School Transport Special - Special School,Contribution To Transport Related Provisions
Cambridgeshire County Council,02-Sep-22,51301847596,552.76,FITZROY SUPPORT RE 28 RIVERBANK,CARE ESTABLISHMENT,LD - Fenland Locality - Cost of Care,LD - Fenland  - Care,Supported Living
Cambridgeshire County Council,02-Sep-22,51301847510,562.29,Redacted Personal Data,INDIVIDUAL,LD - Young Adults Team,LD - Young Adults - Care,Direct Payments
Cambridgeshire County Council,02-Sep-22,51301847498,580.32,Redacted Personal Data,PARENT/GUARDIAN,Home to School Transport - Special,Home to School Transport Special - Special School,Contribution To Transport Related Provisions
Cambridgeshire County Council,02-Sep-22,51301847322,584.57,Elite care,CARE ESTABLISHMENT,Unaccompanied Asylum Seeking Children,Unaccompanied Asylum Seeking Children >18 Leaving Care,Living Spport Grants - Financial Assistance 18+
Cambridgeshire County Council,02-Sep-22,51301847316,584.57,Elite care,CARE ESTABLISHMENT,Unaccompanied Asylum Seeking Children,Unaccompanied Asylum Seeking Children >18 Leaving Care,Living Spport Grants - Financial Assistance 18+
Cambridgeshire County Council,02-Sep-22,51301847319,584.57,Elite care,CARE ESTABLISHMENT,Unaccompanied Asylum Seeking Children,Unaccompanied Asylum Seeking Children >18 Leaving Care,Living Spport Grants - Financial Assistance 18+
Cambridgeshire County Council,02-Sep-22,51301847424,587.51,HOPWELLS LTD,TRADE SUPPLIER,Grafham Water,Grafham Water Centre,Catering Provisions
Cambridgeshire County Council,02-Sep-22,51301839259,588.99,AURORA MELDRETH & ORCHARD MANOR,EDUCATION,SEN Placements,Placements - Education,Independent School Placements
Cambridgeshire County Council,02-Sep-22,51301847461,591.42,Redacted Personal Data,PARENT/GUARDIAN,Home to School Transport - Special,Home to School Transport Special - Out of County,Contribution To Transport Related Provisions
Cambridgeshire County Council,02-Sep-22,51301847513,603.54,Redacted Personal Data,INDIVIDUAL,OPPD - Cost of Care - City South - Over 65,Older People - City & South - Care,Direct Payments
Cambridgeshire County Council,02-Sep-22,51301847513,603.54,Redacted Personal Data,INDIVIDUAL,OPPD - Cost of Care - City South - Over 65,Older People - City & South - Care,Direct Payments
Cambridgeshire County Council,02-Sep-22,51301847513,603.54,Redacted Personal Data,INDIVIDUAL,OPPD - Cost of Care - City South - Over 65,Older People - City & South - Care,Direct Payments
Cambridgeshire County Council,02-Sep-22,51301847513,603.54,Redacted Personal Data,INDIVIDUAL,OPPD - Cost of Care - City South - Over 65,Older People - City & South - Care,Direct Payments
Cambridgeshire County Council,02-Sep-22,51301847513,603.54,Redacted Personal Data,INDIVIDUAL,OPPD - Cost of Care - City South - Over 65,Older People - City & South - Care,Direct Payments
Cambridgeshire County Council,02-Sep-22,51301847513,603.54,Redacted Personal Data,INDIVIDUAL,OPPD - Cost of Care - City South - Over 65,Older People - City & South - Care,Direct Payments
Cambridgeshire County Council,02-Sep-22,51301847513,603.54,Redacted Personal Data,INDIVIDUAL,OPPD - Cost of Care - City South - Over 65,Older People - City & South - Care,Direct Payments
Cambridgeshire County Council,02-Sep-22,51301847513,603.54,Redacted Personal Data,INDIVIDUAL,OPPD - Cost of Care - City South - Over 65,Older People - City & South - Care,Direct Payments
Cambridgeshire County Council,02-Sep-22,51301847513,603.54,Redacted Personal Data,INDIVIDUAL,OPPD - Cost of Care - City South - Over 65,Older People - City & South - Care,Direct Payments
Cambridgeshire County Council,02-Sep-22,51301847513,603.54,Redacted Personal Data,INDIVIDUAL,OPPD - Cost of Care - City South - Over 65,Older People - City & South - Care,Direct Payments
Cambridgeshire County Council,02-Sep-22,51301847513,603.54,Redacted Personal Data,INDIVIDUAL,OPPD - Cost of Care - City South - Over 65,Older People - City & South - Care,Direct Payments
Cambridgeshire County Council,02-Sep-22,51301847513,603.54,Redacted Personal Data,INDIVIDUAL,OPPD - Cost of Care - City South - Over 65,Older People - City & South - Care,Direct Payments
Cambridgeshire County Council,02-Sep-22,51301847608,609.91,THE EDMUND TRUST,CARE ESTABLISHMENT,LD - Young Adults Team,LD - Young Adults - Care,Supported Living
Cambridgeshire County Council,02-Sep-22,51301847560,621.00,THE ELMS NURSING HOME,CARE ESTABLISHMENT,OPPD - Cost of Care - Fenland Blocks,Fenland - Long term blocks,Nursing Care
Cambridgeshire County Council,02-Sep-22,51301847496,629.00,Redacted Personal Data,INDIVIDUAL,Home to School Transport - Special,Home to School Transport Special - Post 16,Contribution To Transport Related Provisions
Cambridgeshire County Council,02-Sep-22,51301847549,630.00,Maven Healthcare,CARE ESTABLISHMENT,OPPD - Cost of Care - City South Blocks,City and South - Long term blocks,Nursing Care
Cambridgeshire County Council,02-Sep-22,51301847549,630.00,Maven Healthcare,CARE ESTABLISHMENT,OPPD - Cost of Care - City South Blocks,City and South - Long term blocks,Nursing Care
Cambridgeshire County Council,02-Sep-22,51301847549,630.00,Maven Healthcare,CARE ESTABLISHMENT,OPPD - Cost of Care - City South Blocks,City and South - Long term blocks,Nursing Care
Cambridgeshire County Council,02-Sep-22,51301847549,630.00,Maven Healthcare,CARE ESTABLISHMENT,OPPD - Cost of Care - City South Blocks,City and South - Long term blocks,Nursing Care
Cambridgeshire County Council,02-Sep-22,51301847509,634.71,Redacted Personal Data,INDIVIDUAL,OPMH - City & South,Older People Mental Health E Cambs,Direct Payments
Cambridgeshire County Council,02-Sep-22,51301847509,634.71,Redacted Personal Data,INDIVIDUAL,OPMH - City & South,Older People Mental Health E Cambs,Direct Payments
Cambridgeshire County Council,02-Sep-22,51301847509,634.71,Redacted Personal Data,INDIVIDUAL,OPMH - City & South,Older People Mental Health E Cambs,Direct Payments
Cambridgeshire County Council,02-Sep-22,51301847509,634.71,Redacted Personal Data,INDIVIDUAL,OPMH - City & South,Older People Mental Health E Cambs,Direct Payments
Cambridgeshire County Council,02-Sep-22,51301847509,634.71,Redacted Personal Data,INDIVIDUAL,OPMH - City & South,Older People Mental Health E Cambs,Direct Payments
Cambridgeshire County Council,02-Sep-22,51301847509,634.71,Redacted Personal Data,INDIVIDUAL,OPMH - City & South,Older People Mental Health E Cambs,Direct Payments
Cambridgeshire County Council,02-Sep-22,51301847509,634.71,Redacted Personal Data,INDIVIDUAL,OPMH - City & South,Older People Mental Health E Cambs,Direct Payments
Cambridgeshire County Council,02-Sep-22,51301847509,634.71,Redacted Personal Data,INDIVIDUAL,OPMH - City & South,Older People Mental Health E Cambs,Direct Payments
Cambridgeshire County Council,02-Sep-22,51301847509,634.71,Redacted Personal Data,INDIVIDUAL,OPMH - City & South,Older People Mental Health E Cambs,Direct Payments
Cambridgeshire County Council,02-Sep-22,51301847509,634.71,Redacted Personal Data,INDIVIDUAL,OPMH - City & South,Older People Mental Health E Cambs,Direct Payments
Cambridgeshire County Council,02-Sep-22,51301847509,634.71,Redacted Personal Data,INDIVIDUAL,OPMH - City & South,Older People Mental Health E Cambs,Direct Payments
Cambridgeshire County Council,02-Sep-22,51301847509,634.71,Redacted Personal Data,INDIVIDUAL,OPMH - City & South,Older People Mental Health E Cambs,Direct Payments
Cambridgeshire County Council,02-Sep-22,51301847492,638.40,Redacted Personal Data,PARENT/GUARDIAN,Home to School Transport - Special,Home to School Transport Special - Out of County,Contribution To Transport Related Provisions
Cambridgeshire County Council,02-Sep-22,51301847545,642.29,CARE UK LIMITED,CARE ESTABLISHMENT,OPPD - Cost of Care - Huntingdon Blocks,Hunts - Long term blocks,Nursing Care
Cambridgeshire County Council,02-Sep-22,51301847579,649.13,FLORENCE HOUSE(RAMSEY) RESIDENTIAL HOME FOR THE ELDERLY,CARE ESTABLISHMENT,OPPD - Cost of Care - Huntingdon Blocks,Hunts - Short term blocks,Rehabilitation And Respite Care
Cambridgeshire County Council,02-Sep-22,51301847579,649.13,FLORENCE HOUSE(RAMSEY) RESIDENTIAL HOME FOR THE ELDERLY,CARE ESTABLISHMENT,OPPD - Cost of Care - Huntingdon Blocks,Hunts - Short term blocks,Rehabilitation And Respite Care
Cambridgeshire County Council,02-Sep-22,51301847579,649.13,FLORENCE HOUSE(RAMSEY) RESIDENTIAL HOME FOR THE ELDERLY,CARE ESTABLISHMENT,OPPD - Cost of Care - Huntingdon Blocks,Hunts - Short term blocks,Rehabilitation And Respite Care
Cambridgeshire County Council,02-Sep-22,51301847579,649.13,FLORENCE HOUSE(RAMSEY) RESIDENTIAL HOME FOR THE ELDERLY,CARE ESTABLISHMENT,OPPD - Cost of Care - Huntingdon Blocks,Hunts - Short term blocks,Rehabilitation And Respite Care
Cambridgeshire County Council,02-Sep-22,51301847580,654.13,SPRINGFIELD RESIDENTIAL CARE,CARE ESTABLISHMENT,OPPD - Cost of Care - Fenland Blocks,Fenland - Short term blocks,Rehabilitation And Respite Care
Cambridgeshire County Council,02-Sep-22,51301847580,654.13,SPRINGFIELD RESIDENTIAL CARE,CARE ESTABLISHMENT,OPPD - Cost of Care - Fenland Blocks,Fenland - Short term blocks,Rehabilitation And Respite Care
Cambridgeshire County Council,02-Sep-22,51301847580,654.13,SPRINGFIELD RESIDENTIAL CARE,CARE ESTABLISHMENT,OPPD - Cost of Care - Fenland Blocks,Fenland - Short term blocks,Rehabilitation And Respite Care
Cambridgeshire County Council,02-Sep-22,51301847580,654.13,SPRINGFIELD RESIDENTIAL CARE,CARE ESTABLISHMENT,OPPD - Cost of Care - Fenland Blocks,Fenland - Short term blocks,Rehabilitation And Respite Care
Cambridgeshire County Council,02-Sep-22,51301847517,657.51,Redacted Personal Data,INDIVIDUAL,Autism and Adult Support - Cost of Care,Autism and Adult Support - Care,Direct Payments
Cambridgeshire County Council,02-Sep-22,51301847517,657.51,Redacted Personal Data,INDIVIDUAL,Autism and Adult Support - Cost of Care,Autism and Adult Support - Care,Direct Payments
Cambridgeshire County Council,02-Sep-22,51301847517,657.51,Redacted Personal Data,INDIVIDUAL,Autism and Adult Support - Cost of Care,Autism and Adult Support - Care,Direct Payments
Cambridgeshire County Council,02-Sep-22,51301847517,657.51,Redacted Personal Data,INDIVIDUAL,Autism and Adult Support - Cost of Care,Autism and Adult Support - Care,Direct Payments
Cambridgeshire County Council,02-Sep-22,51301847517,657.51,Redacted Personal Data,INDIVIDUAL,Autism and Adult Support - Cost of Care,Autism and Adult Support - Care,Direct Payments
Cambridgeshire County Council,02-Sep-22,51301847517,657.51,Redacted Personal Data,INDIVIDUAL,Autism and Adult Support - Cost of Care,Autism and Adult Support - Care,Direct Payments
Cambridgeshire County Council,02-Sep-22,51301847517,657.51,Redacted Personal Data,INDIVIDUAL,Autism and Adult Support - Cost of Care,Autism and Adult Support - Care,Direct Payments
Cambridgeshire County Council,02-Sep-22,51301847517,657.51,Redacted Personal Data,INDIVIDUAL,Autism and Adult Support - Cost of Care,Autism and Adult Support - Care,Direct Payments
Cambridgeshire County Council,02-Sep-22,51301847517,657.51,Redacted Personal Data,INDIVIDUAL,Autism and Adult Support - Cost of Care,Autism and Adult Support - Care,Direct Payments
Cambridgeshire County Council,02-Sep-22,51301847517,657.51,Redacted Personal Data,INDIVIDUAL,Autism and Adult Support - Cost of Care,Autism and Adult Support - Care,Direct Payments
Cambridgeshire County Council,02-Sep-22,51301847517,657.51,Redacted Personal Data,INDIVIDUAL,Autism and Adult Support - Cost of Care,Autism and Adult Support - Care,Direct Payments
Cambridgeshire County Council,02-Sep-22,51301847517,657.51,Redacted Personal Data,INDIVIDUAL,Autism and Adult Support - Cost of Care,Autism and Adult Support - Care,Direct Payments
Cambridgeshire County Council,02-Sep-22,51301847630,658.29,EDDIES,CARE ESTABLISHMENT,LD - South Locality - Cost of Care,LD - South Cambs - Care,Day Care
Cambridgeshire County Council,02-Sep-22,51301847547,667.13,HARDWICK DENE,CARE ESTABLISHMENT,OPPD - Cost of Care - Huntingdon Blocks,Hunts - Short term blocks,Rehabilitation And Respite Care
Cambridgeshire County Council,02-Sep-22,51301847547,667.13,HARDWICK DENE,CARE ESTABLISHMENT,OPPD - Cost of Care - Huntingdon Blocks,Hunts - Short term blocks,Rehabilitation And Respite Care
Cambridgeshire County Council,02-Sep-22,51301847547,667.13,HARDWICK DENE,CARE ESTABLISHMENT,OPPD - Cost of Care - Huntingdon Blocks,Hunts - Short term blocks,Rehabilitation And Respite Care
Cambridgeshire County Council,02-Sep-22,51301847547,667.13,HARDWICK DENE,CARE ESTABLISHMENT,OPPD - Cost of Care - Huntingdon Blocks,Hunts - Short term blocks,Rehabilitation And Respite Care
Cambridgeshire County Council,02-Sep-22,51301847549,672.00,Maven Healthcare,CARE ESTABLISHMENT,OPPD - Cost of Care - City South Blocks,City and South - Long term blocks,Nursing Care
Cambridgeshire County Council,02-Sep-22,51301847549,672.00,Maven Healthcare,CARE ESTABLISHMENT,OPPD - Cost of Care - City South Blocks,City and South - Long term blocks,Nursing Care
Cambridgeshire County Council,02-Sep-22,51301847549,672.00,Maven Healthcare,CARE ESTABLISHMENT,OPPD - Cost of Care - City South Blocks,City and South - Long term blocks,Nursing Care
Cambridgeshire County Council,02-Sep-22,51301847549,672.00,Maven Healthcare,CARE ESTABLISHMENT,OPPD - Cost of Care - City South Blocks,City and South - Long term blocks,Nursing Care
Cambridgeshire County Council,02-Sep-22,51301839249,675.00,Hope into Action UK,CHARITY,Unaccompanied Asylum Seeking Children,Unaccompanied Asylum Seeking Children >18 Leaving Care,Asylum Seekers
Cambridgeshire County Council,02-Sep-22,51301839193,686.00,Sport Works Ltd,EDUCATION,Community Support Service,Community Support Service ECF,Childcare Costs
Cambridgeshire County Council,02-Sep-22,51301847311,689.00,Redacted Personal Data,INDIVIDUAL,North Care Leaving Team 1,North Care Leaving Team 1,Leaving Care Grants
Cambridgeshire County Council,02-Sep-22,51301847670,690.00,TRANSITION CARE PETERBOROUGH LTD,CARE ESTABLISHMENT,LAC Placements,Placements - supported accommodation,Agency Placements - In County
Cambridgeshire County Council,02-Sep-22,51301847547,695.25,HARDWICK DENE,CARE ESTABLISHMENT,OPPD - Cost of Care - Huntingdon Blocks,Hunts - Short term blocks,Rehabilitation And Respite Care
Cambridgeshire County Council,02-Sep-22,51301847547,695.25,HARDWICK DENE,CARE ESTABLISHMENT,OPPD - Cost of Care - Huntingdon Blocks,Hunts - Short term blocks,Rehabilitation And Respite Care
Cambridgeshire County Council,02-Sep-22,51301847547,695.25,HARDWICK DENE,CARE ESTABLISHMENT,OPPD - Cost of Care - Huntingdon Blocks,Hunts - Short term blocks,Rehabilitation And Respite Care
Cambridgeshire County Council,02-Sep-22,51301847547,695.25,HARDWICK DENE,CARE ESTABLISHMENT,OPPD - Cost of Care - Huntingdon Blocks,Hunts - Short term blocks,Rehabilitation And Respite Care
Cambridgeshire County Council,02-Sep-22,51301839251,697.50,Hope into Action UK,CHARITY,Unaccompanied Asylum Seeking Children,Unaccompanied Asylum Seeking Children >18 Leaving Care,Asylum Seekers
Cambridgeshire County Council,02-Sep-22,51301839253,697.50,Hope into Action UK,CHARITY,Unaccompanied Asylum Seeking Children,Unaccompanied Asylum Seeking Children >18 Leaving Care,Asylum Seekers
Cambridgeshire County Council,02-Sep-22,51301839022,699.96,BEVAN BRITTAN LLP,TRADE SUPPLIER,Waste Disposal incl PFI,Waste PFI,External Legal Fees
Cambridgeshire County Council,02-Sep-22,51301847606,700.00,THE CAMBRIDGE HOUSING SOCIETY LTD,CARE ESTABLISHMENT,OPPD - Cost of Care - City South - Over 65,Older People - City & South - Care,Short Term Other
Cambridgeshire County Council,02-Sep-22,51301847606,700.00,THE CAMBRIDGE HOUSING SOCIETY LTD,CARE ESTABLISHMENT,OPPD - Cost of Care - City South - Over 65,Older People - City & South - Care,Short Term Other
Cambridgeshire County Council,02-Sep-22,51301847606,700.00,THE CAMBRIDGE HOUSING SOCIETY LTD,CARE ESTABLISHMENT,OPPD - Cost of Care - City South - Over 65,Older People - City & South - Care,Short Term Other
Cambridgeshire County Council,02-Sep-22,51301847606,700.00,THE CAMBRIDGE HOUSING SOCIETY LTD,CARE ESTABLISHMENT,OPPD - Cost of Care - City South - Over 65,Older People - City & South - Care,Short Term Other
Cambridgeshire County Council,02-Sep-22,51301847606,700.00,THE CAMBRIDGE HOUSING SOCIETY LTD,CARE ESTABLISHMENT,OPPD - Cost of Care - City South - Over 65,Older People - City & South - Care,Short Term Other
Cambridgeshire County Council,02-Sep-22,51301847606,700.00,THE CAMBRIDGE HOUSING SOCIETY LTD,CARE ESTABLISHMENT,OPPD - Cost of Care - City South - Over 65,Older People - City & South - Care,Short Term Other
Cambridgeshire County Council,02-Sep-22,51301847606,700.00,THE CAMBRIDGE HOUSING SOCIETY LTD,CARE ESTABLISHMENT,OPPD - Cost of Care - City South - Over 65,Older People - City & South - Care,Short Term Other
Cambridgeshire County Council,02-Sep-22,51301847531,702.46,POTTON VIEW,CARE ESTABLISHMENT,OPPD - Cost of Care - City South Blocks,City and South - Short term blocks,Rehabilitation And Respite Care
Cambridgeshire County Council,02-Sep-22,51301847531,702.46,POTTON VIEW,CARE ESTABLISHMENT,OPPD - Cost of Care - City South Blocks,City and South - Short term blocks,Rehabilitation And Respite Care
Cambridgeshire County Council,02-Sep-22,51301847531,702.46,POTTON VIEW,CARE ESTABLISHMENT,OPPD - Cost of Care - City South Blocks,City and South - Short term blocks,Rehabilitation And Respite Care
Cambridgeshire County Council,02-Sep-22,51301847531,702.46,POTTON VIEW,CARE ESTABLISHMENT,OPPD - Cost of Care - City South Blocks,City and South - Short term blocks,Rehabilitation And Respite Care
Cambridgeshire County Council,02-Sep-22,51301847242,714.20,Supported Housing Fellowship CIC,CARE ESTABLISHMENT,Unaccompanied Asylum Seeking Children,Unaccompanied Asylum Seeking Children >18 Leaving Care,Asylum Seekers
Cambridgeshire County Council,02-Sep-22,51301847471,735.13,Redacted Personal Data,INDIVIDUAL,Home to School Transport - Special,Home to School Transport Special - Out of County,Contribution To Transport Related Provisions
Cambridgeshire County Council,02-Sep-22,51301839233,737.34,AURORA MELDRETH & ORCHARD MANOR,EDUCATION,SEN Placements,Placements - Education,Independent School Placements
Cambridgeshire County Council,02-Sep-22,51301847634,745.00,SYMONDS HOUSE NURSING HOME,CARE ESTABLISHMENT,OPPD - Under 65 - City South,OPPD - Under 65 - City South,Short Term Other
Cambridgeshire County Council,02-Sep-22,51301847634,745.00,SYMONDS HOUSE NURSING HOME,CARE ESTABLISHMENT,OPPD - Under 65 - City South,OPPD - Under 65 - City South,Short Term Other
Cambridgeshire County Council,02-Sep-22,51301847634,745.00,SYMONDS HOUSE NURSING HOME,CARE ESTABLISHMENT,OPPD - Under 65 - City South,OPPD - Under 65 - City South,Short Term Other
Cambridgeshire County Council,02-Sep-22,51301847563,745.20,THE GABLES SPECIALIST NURSING HOME,CARE ESTABLISHMENT,OPPD - Cost of Care - Fenland Blocks,Fenland - Long term blocks,Nursing Care
Cambridgeshire County Council,02-Sep-22,51301847563,745.20,THE GABLES SPECIALIST NURSING HOME,CARE ESTABLISHMENT,OPPD - Cost of Care - Fenland Blocks,Fenland - Long term blocks,Nursing Care
Cambridgeshire County Council,02-Sep-22,51301847563,745.20,THE GABLES SPECIALIST NURSING HOME,CARE ESTABLISHMENT,OPPD - Cost of Care - Fenland Blocks,Fenland - Long term blocks,Nursing Care
Cambridgeshire County Council,02-Sep-22,51301847563,745.20,THE GABLES SPECIALIST NURSING HOME,CARE ESTABLISHMENT,OPPD - Cost of Care - Fenland Blocks,Fenland - Long term blocks,Nursing Care
Cambridgeshire County Council,02-Sep-22,51301847510,749.71,Redacted Personal Data,INDIVIDUAL,LD - Young Adults Team,LD - Young Adults - Care,Direct Payments
Cambridgeshire County Council,02-Sep-22,51301847627,750.00,FARRINGTON CARE HOMES LTD T/A WOODLANDS RESIDENTIAL CARE HOME,CARE ESTABLISHMENT,OPPD - Cost of Care - East Cambs - Under 65,OPPD - Under 65 - East Cambs,Short Term Other
Cambridgeshire County Council,02-Sep-22,51301847478,754.06,Redacted Personal Data,PARENT/GUARDIAN,Home to School Transport - Special,Home to School Transport Special - Special School,Contribution To Transport Related Provisions
Cambridgeshire County Council,02-Sep-22,51301847544,783.05,THE CAMBRIDGE NURSING CENTRE,CARE ESTABLISHMENT,OPPD - Cost of Care - City South Blocks,City and South - Long term blocks,Nursing Care
Cambridgeshire County Council,02-Sep-22,51301847354,784.20,Blossoms Play Therapy,EDUCATION,SEND Specialist Services - Sensory Support,Sensory Support 0 - 25,Educational equipment
Cambridgeshire County Council,02-Sep-22,51301847507,820.00,CAMBRIDGE JOINT PLAYSCHEMES,NURSERY,Autism and Adult Support - Cost of Care,Autism and Adult Support - Care,Other Care Provide Payments and Contributions
Cambridgeshire County Council,02-Sep-22,51301835752,822.58,MRC MODULAR LTD,SOLETRADER,Temporary Accommodation,Temporary Accommodation,Mobile - Buildings
Cambridgeshire County Council,02-Sep-22,51301847563,851.66,THE GABLES SPECIALIST NURSING HOME,CARE ESTABLISHMENT,OPPD - Cost of Care - Fenland Blocks,Fenland - Long term blocks,Nursing Care
Cambridgeshire County Council,02-Sep-22,51301847608,853.87,THE EDMUND TRUST,CARE ESTABLISHMENT,LD - Young Adults Team,LD - Young Adults - Care,Supported Living
Cambridgeshire County Council,02-Sep-22,51301847608,853.87,THE EDMUND TRUST,CARE ESTABLISHMENT,LD - Young Adults Team,LD - Young Adults - Care,Supported Living
Cambridgeshire County Council,02-Sep-22,51301847608,853.87,THE EDMUND TRUST,CARE ESTABLISHMENT,LD - Young Adults Team,LD - Young Adults - Care,Supported Living
Cambridgeshire County Council,02-Sep-22,51301847666,854.50,Redacted Personal Data,PARENT/GUARDIAN,Children's Disability Direct Payments,CSC Direct Payments,Direct Payments
Cambridgeshire County Council,02-Sep-22,51301847444,860.00,Redacted Personal Data,INDIVIDUAL,South Child Looked After Team 2,South Child Looked After Team 2,Car mileage and allowances - other
Cambridgeshire County Council,02-Sep-22,51301842510,874.57,Southwell Court,CARE ESTABLISHMENT,OPPD - Cost of Care - City South - Over 65,Older People - City & South - Care,Residential Care
Cambridgeshire County Council,02-Sep-22,51301842510,874.57,Southwell Court,CARE ESTABLISHMENT,OPPD - Cost of Care - City South - Over 65,Older People - City & South - Care,Residential Care
Cambridgeshire County Council,02-Sep-22,51301842510,874.57,Southwell Court,CARE ESTABLISHMENT,OPPD - Cost of Care - City South - Over 65,Older People - City & South - Care,Residential Care
Cambridgeshire County Council,02-Sep-22,51301842510,874.57,Southwell Court,CARE ESTABLISHMENT,OPPD - Cost of Care - City South - Over 65,Older People - City & South - Care,Residential Care
Cambridgeshire County Council,02-Sep-22,51301842510,874.57,Southwell Court,CARE ESTABLISHMENT,OPPD - Cost of Care - City South - Over 65,Older People - City & South - Care,Residential Care
Cambridgeshire County Council,02-Sep-22,51301847331,875.44,YMCA NORFOLK,CARE ESTABLISHMENT,Unaccompanied Asylum Seeking Children,Unaccompanied Asylum Seeking Children >18 Leaving Care,Living Spport Grants - Financial Assistance 18+
Cambridgeshire County Council,02-Sep-22,51301847332,875.44,YMCA NORFOLK,CARE ESTABLISHMENT,Unaccompanied Asylum Seeking Children,Unaccompanied Asylum Seeking Children >18 Leaving Care,Living Spport Grants - Financial Assistance 18+
Cambridgeshire County Council,02-Sep-22,51301847325,876.86,Elite care,CARE ESTABLISHMENT,Unaccompanied Asylum Seeking Children,Unaccompanied Asylum Seeking Children >18 Leaving Care,Living Spport Grants - Financial Assistance 18+
Cambridgeshire County Council,02-Sep-22,51301847241,887.11,Supported Housing Fellowship CIC,CARE ESTABLISHMENT,Unaccompanied Asylum Seeking Children,Unaccompanied Asylum Seeking Children >18 Leaving Care,Asylum Seekers
Cambridgeshire County Council,02-Sep-22,51301847244,887.11,Supported Housing Fellowship CIC,CARE ESTABLISHMENT,Unaccompanied Asylum Seeking Children,Unaccompanied Asylum Seeking Children >18 Leaving Care,Asylum Seekers
Cambridgeshire County Council,02-Sep-22,51301847612,921.90,THE EDMUND TRUST,CARE ESTABLISHMENT,LD - East Locality - Cost of Care,LD - East Cambs - Special Needs,Supported Living
Cambridgeshire County Council,02-Sep-22,51301847487,930.31,Redacted Personal Data,PARENT/GUARDIAN,Home to School Transport - Special,Home to School Transport Special - Out of County,Contribution To Transport Related Provisions
Cambridgeshire County Council,02-Sep-22,51301837841,962.06,ENTERPRISE FLEX-E-RENT,TRADE SUPPLIER,Corporate Offices,Pool Cars,Leased Vehicle Costs
Cambridgeshire County Council,02-Sep-22,51301847474,978.85,Redacted Personal Data,INDIVIDUAL,Home to School Transport - Special,Home to School Transport Special - Special School,Contribution To Transport Related Provisions
Cambridgeshire County Council,02-Sep-22,51301847544,981.77,THE CAMBRIDGE NURSING CENTRE,CARE ESTABLISHMENT,OPPD - Cost of Care - City South Blocks,City and South - Long term blocks,Nursing Care
Cambridgeshire County Council,02-Sep-22,51301847629,990.00,Hereward Care Services Ltd,CARE ESTABLISHMENT,LD - Young Adults Team,LD - Young Adults - Special Needs,Rehabilitation And Respite Care
Cambridgeshire County Council,02-Sep-22,51301847518,"1,000.92",Redacted Personal Data,SERVICE USER,LD - East Locality - Cost of Care,LD - East Cambs - Special Needs,Direct Payments
Cambridgeshire County Council,02-Sep-22,51301847518,"1,000.92",Redacted Personal Data,SERVICE USER,LD - East Locality - Cost of Care,LD - East Cambs - Special Needs,Direct Payments
Cambridgeshire County Council,02-Sep-22,51301847518,"1,000.92",Redacted Personal Data,SERVICE USER,LD - East Locality - Cost of Care,LD - East Cambs - Special Needs,Direct Payments
Cambridgeshire County Council,02-Sep-22,51301847518,"1,000.92",Redacted Personal Data,SERVICE USER,LD - East Locality - Cost of Care,LD - East Cambs - Special Needs,Direct Payments
Cambridgeshire County Council,02-Sep-22,51301847518,"1,000.92",Redacted Personal Data,SERVICE USER,LD - East Locality - Cost of Care,LD - East Cambs - Special Needs,Direct Payments
Cambridgeshire County Council,02-Sep-22,51301847518,"1,000.92",Redacted Personal Data,SERVICE USER,LD - East Locality - Cost of Care,LD - East Cambs - Special Needs,Direct Payments
Cambridgeshire County Council,02-Sep-22,51301847518,"1,000.92",Redacted Personal Data,SERVICE USER,LD - East Locality - Cost of Care,LD - East Cambs - Special Needs,Direct Payments
Cambridgeshire County Council,02-Sep-22,51301847518,"1,000.92",Redacted Personal Data,SERVICE USER,LD - East Locality - Cost of Care,LD - East Cambs - Special Needs,Direct Payments
Cambridgeshire County Council,02-Sep-22,51301847518,"1,000.92",Redacted Personal Data,SERVICE USER,LD - East Locality - Cost of Care,LD - East Cambs - Special Needs,Direct Payments
Cambridgeshire County Council,02-Sep-22,51301847518,"1,000.92",Redacted Personal Data,SERVICE USER,LD - East Locality - Cost of Care,LD - East Cambs - Special Needs,Direct Payments
Cambridgeshire County Council,02-Sep-22,51301847518,"1,000.92",Redacted Personal Data,SERVICE USER,LD - East Locality - Cost of Care,LD - East Cambs - Special Needs,Direct Payments
Cambridgeshire County Council,02-Sep-22,51301847605,"1,038.00",HUNTERS HEALTHCARE (HUNTERS DOWN),CARE ESTABLISHMENT,OPMH - Hunts & Fens,Older People Mental Health Hunts,Supported Living
Cambridgeshire County Council,02-Sep-22,51301847613,"1,039.54",FITZROY SUPPORTED,CARE ESTABLISHMENT,LD - Fenland Locality - Cost of Care,LD - Fenland  - Special Needs,Supported Living
Cambridgeshire County Council,02-Sep-22,51301847557,"1,070.71",FORD HOUSE CARE HOME,CARE ESTABLISHMENT,OPPD - Cost of Care - Huntingdon - Over 65,Hunts OP Team - Care,Nursing Care
Cambridgeshire County Council,02-Sep-22,51301847557,"1,070.71",FORD HOUSE CARE HOME,CARE ESTABLISHMENT,OPPD - Cost of Care - Huntingdon - Over 65,Hunts OP Team - Care,Nursing Care
Cambridgeshire County Council,02-Sep-22,51301847557,"1,070.71",FORD HOUSE CARE HOME,CARE ESTABLISHMENT,OPPD - Cost of Care - Huntingdon - Over 65,Hunts OP Team - Care,Nursing Care
Cambridgeshire County Council,02-Sep-22,51301847557,"1,070.71",FORD HOUSE CARE HOME,CARE ESTABLISHMENT,OPPD - Cost of Care - Huntingdon - Over 65,Hunts OP Team - Care,Nursing Care
Cambridgeshire County Council,02-Sep-22,51301847243,"1,107.01",Supported Housing Fellowship CIC,CARE ESTABLISHMENT,Unaccompanied Asylum Seeking Children,Unaccompanied Asylum Seeking Children >18 Leaving Care,Asylum Seekers
Cambridgeshire County Council,02-Sep-22,51301847255,"1,107.01",Supported Housing Fellowship CIC,CARE ESTABLISHMENT,Unaccompanied Asylum Seeking Children,Unaccompanied Asylum Seeking Children >18 Leaving Care,Asylum Seekers
Cambridgeshire County Council,02-Sep-22,51301847629,"1,155.00",Hereward Care Services Ltd,CARE ESTABLISHMENT,LD - Young Adults Team,LD - Young Adults - Special Needs,Rehabilitation And Respite Care
Cambridgeshire County Council,02-Sep-22,51301847629,"1,155.00",Hereward Care Services Ltd,CARE ESTABLISHMENT,LD - Young Adults Team,LD - Young Adults - Special Needs,Rehabilitation And Respite Care
Cambridgeshire County Council,02-Sep-22,51301847629,"1,155.00",Hereward Care Services Ltd,CARE ESTABLISHMENT,LD - Young Adults Team,LD - Young Adults - Special Needs,Rehabilitation And Respite Care
Cambridgeshire County Council,02-Sep-22,51301847544,"1,174.58",THE CAMBRIDGE NURSING CENTRE,CARE ESTABLISHMENT,OPPD - Cost of Care - City South Blocks,City and South - Long term blocks,Nursing Care
Cambridgeshire County Council,02-Sep-22,51301847544,"1,174.58",THE CAMBRIDGE NURSING CENTRE,CARE ESTABLISHMENT,OPPD - Cost of Care - City South Blocks,City and South - Long term blocks,Nursing Care
Cambridgeshire County Council,02-Sep-22,51301847290,"1,194.00",TRANSITION CARE PETERBOROUGH LTD,CARE ESTABLISHMENT,LAC Placements,Placements - supported accommodation,Agency Placements - In County
Cambridgeshire County Council,02-Sep-22,51301847291,"1,194.00",TRANSITION CARE PETERBOROUGH LTD,CARE ESTABLISHMENT,LAC Placements,Placements - supported accommodation,Agency Placements - In County
Cambridgeshire County Council,02-Sep-22,51301847668,"1,194.00",TRANSITION CARE PETERBOROUGH LTD,CARE ESTABLISHMENT,LAC Placements,Placements - supported accommodation,Agency Placements - In County
Cambridgeshire County Council,02-Sep-22,51301847534,"1,210.96",BLACK SWAN CARE GROUP LTD,CARE ESTABLISHMENT,OPPD - Cost of Care - Fenland Blocks,Fenland - Long term blocks,Residential Care
Cambridgeshire County Council,02-Sep-22,51301847534,"1,210.96",BLACK SWAN CARE GROUP LTD,CARE ESTABLISHMENT,OPPD - Cost of Care - Fenland Blocks,Fenland - Long term blocks,Residential Care
Cambridgeshire County Council,02-Sep-22,51301847534,"1,210.96",BLACK SWAN CARE GROUP LTD,CARE ESTABLISHMENT,OPPD - Cost of Care - Fenland Blocks,Fenland - Long term blocks,Residential Care
Cambridgeshire County Council,02-Sep-22,51301847534,"1,210.96",BLACK SWAN CARE GROUP LTD,CARE ESTABLISHMENT,OPPD - Cost of Care - Fenland Blocks,Fenland - Long term blocks,Residential Care
Cambridgeshire County Council,02-Sep-22,51301847294,"1,231.43",THE SALVATION ARMY,CHARITY,LAC Placements,Placements - 16+,Agency Placements - In County
Cambridgeshire County Council,02-Sep-22,51301847543,"1,242.00",THE CHESTNUTS RESIDENTIAL HOME,CARE ESTABLISHMENT,OPPD - Cost of Care - Fenland Blocks,Fenland - Long term blocks,Residential Care
Cambridgeshire County Council,02-Sep-22,51301847543,"1,242.00",THE CHESTNUTS RESIDENTIAL HOME,CARE ESTABLISHMENT,OPPD - Cost of Care - Fenland Blocks,Fenland - Long term blocks,Residential Care
Cambridgeshire County Council,02-Sep-22,51301847543,"1,242.00",THE CHESTNUTS RESIDENTIAL HOME,CARE ESTABLISHMENT,OPPD - Cost of Care - Fenland Blocks,Fenland - Long term blocks,Residential Care
Cambridgeshire County Council,02-Sep-22,51301847543,"1,242.00",THE CHESTNUTS RESIDENTIAL HOME,CARE ESTABLISHMENT,OPPD - Cost of Care - Fenland Blocks,Fenland - Long term blocks,Residential Care
Cambridgeshire County Council,02-Sep-22,51301847527,"1,242.00",LANGLEY LODGE RESIDENTIAL CARE HOME,CARE ESTABLISHMENT,OPPD - Cost of Care - Fenland Blocks,Fenland - Long term blocks,Residential Care
Cambridgeshire County Council,02-Sep-22,51301847527,"1,242.00",LANGLEY LODGE RESIDENTIAL CARE HOME,CARE ESTABLISHMENT,OPPD - Cost of Care - Fenland Blocks,Fenland - Long term blocks,Residential Care
Cambridgeshire County Council,02-Sep-22,51301847527,"1,242.00",LANGLEY LODGE RESIDENTIAL CARE HOME,CARE ESTABLISHMENT,OPPD - Cost of Care - Fenland Blocks,Fenland - Long term blocks,Residential Care
Cambridgeshire County Council,02-Sep-22,51301847527,"1,242.00",LANGLEY LODGE RESIDENTIAL CARE HOME,CARE ESTABLISHMENT,OPPD - Cost of Care - Fenland Blocks,Fenland - Long term blocks,Residential Care
Cambridgeshire County Council,02-Sep-22,51301847497,"1,243.64",Redacted Personal Data,PARENT/GUARDIAN,Home to School Transport - Special,Home to School Transport Special - Special School,Contribution To Transport Related Provisions
Cambridgeshire County Council,02-Sep-22,51301847407,"1,259.34",Pathfinder Legal Services Limited,TRADE SUPPLIER,Wing Development,Wing Development,Construction - External Professional Fees
Cambridgeshire County Council,02-Sep-22,51301847588,"1,283.40",AISLING LODGE (MD CARE HOMES),CARE ESTABLISHMENT,OPPD - Cost of Care - Huntingdon Blocks,Hunts - Long term blocks,Residential Care
Cambridgeshire County Council,02-Sep-22,51301847588,"1,283.40",AISLING LODGE (MD CARE HOMES),CARE ESTABLISHMENT,OPPD - Cost of Care - Huntingdon Blocks,Hunts - Long term blocks,Residential Care
Cambridgeshire County Council,02-Sep-22,51301847588,"1,283.40",AISLING LODGE (MD CARE HOMES),CARE ESTABLISHMENT,OPPD - Cost of Care - Huntingdon Blocks,Hunts - Long term blocks,Residential Care
Cambridgeshire County Council,02-Sep-22,51301847588,"1,283.40",AISLING LODGE (MD CARE HOMES),CARE ESTABLISHMENT,OPPD - Cost of Care - Huntingdon Blocks,Hunts - Long term blocks,Residential Care
Cambridgeshire County Council,02-Sep-22,51301847579,"1,283.40",FLORENCE HOUSE(RAMSEY) RESIDENTIAL HOME FOR THE ELDERLY,CARE ESTABLISHMENT,OPPD - Cost of Care - Huntingdon Blocks,Hunts - Short term blocks,Rehabilitation And Respite Care
Cambridgeshire County Council,02-Sep-22,51301847579,"1,283.40",FLORENCE HOUSE(RAMSEY) RESIDENTIAL HOME FOR THE ELDERLY,CARE ESTABLISHMENT,OPPD - Cost of Care - Huntingdon Blocks,Hunts - Short term blocks,Rehabilitation And Respite Care
Cambridgeshire County Council,02-Sep-22,51301847579,"1,283.40",FLORENCE HOUSE(RAMSEY) RESIDENTIAL HOME FOR THE ELDERLY,CARE ESTABLISHMENT,OPPD - Cost of Care - Huntingdon Blocks,Hunts - Short term blocks,Rehabilitation And Respite Care
Cambridgeshire County Council,02-Sep-22,51301847579,"1,283.40",FLORENCE HOUSE(RAMSEY) RESIDENTIAL HOME FOR THE ELDERLY,CARE ESTABLISHMENT,OPPD - Cost of Care - Huntingdon Blocks,Hunts - Short term blocks,Rehabilitation And Respite Care
Cambridgeshire County Council,02-Sep-22,51301847545,"1,284.58",CARE UK LIMITED,CARE ESTABLISHMENT,OPPD - Cost of Care - Huntingdon Blocks,Hunts - Long term blocks,Nursing Care
Cambridgeshire County Council,02-Sep-22,51301847545,"1,284.58",CARE UK LIMITED,CARE ESTABLISHMENT,OPPD - Cost of Care - Huntingdon Blocks,Hunts - Long term blocks,Nursing Care
Cambridgeshire County Council,02-Sep-22,51301847596,"1,289.76",FITZROY SUPPORT RE 28 RIVERBANK,CARE ESTABLISHMENT,LD - Fenland Locality - Cost of Care,LD - Fenland  - Care,Supported Living
Cambridgeshire County Council,02-Sep-22,51301847596,"1,289.76",FITZROY SUPPORT RE 28 RIVERBANK,CARE ESTABLISHMENT,LD - Fenland Locality - Cost of Care,LD - Fenland  - Care,Supported Living
Cambridgeshire County Council,02-Sep-22,51301847596,"1,289.76",FITZROY SUPPORT RE 28 RIVERBANK,CARE ESTABLISHMENT,LD - Fenland Locality - Cost of Care,LD - Fenland  - Care,Supported Living
Cambridgeshire County Council,02-Sep-22,51301847596,"1,289.76",FITZROY SUPPORT RE 28 RIVERBANK,CARE ESTABLISHMENT,LD - Fenland Locality - Cost of Care,LD - Fenland  - Care,Supported Living
Cambridgeshire County Council,02-Sep-22,51301847596,"1,289.76",FITZROY SUPPORT RE 28 RIVERBANK,CARE ESTABLISHMENT,LD - Fenland Locality - Cost of Care,LD - Fenland  - Care,Supported Living
Cambridgeshire County Council,02-Sep-22,51301847596,"1,289.76",FITZROY SUPPORT RE 28 RIVERBANK,CARE ESTABLISHMENT,LD - Fenland Locality - Cost of Care,LD - Fenland  - Care,Supported Living
Cambridgeshire County Council,02-Sep-22,51301847596,"1,289.76",FITZROY SUPPORT RE 28 RIVERBANK,CARE ESTABLISHMENT,LD - Fenland Locality - Cost of Care,LD - Fenland  - Care,Supported Living
Cambridgeshire County Council,02-Sep-22,51301847596,"1,289.76",FITZROY SUPPORT RE 28 RIVERBANK,CARE ESTABLISHMENT,LD - Fenland Locality - Cost of Care,LD - Fenland  - Care,Supported Living
Cambridgeshire County Council,02-Sep-22,51301847596,"1,289.76",FITZROY SUPPORT RE 28 RIVERBANK,CARE ESTABLISHMENT,LD - Fenland Locality - Cost of Care,LD - Fenland  - Care,Supported Living
Cambridgeshire County Council,02-Sep-22,51301847596,"1,289.76",FITZROY SUPPORT RE 28 RIVERBANK,CARE ESTABLISHMENT,LD - Fenland Locality - Cost of Care,LD - Fenland  - Care,Supported Living
Cambridgeshire County Council,02-Sep-22,51301847596,"1,289.76",FITZROY SUPPORT RE 28 RIVERBANK,CARE ESTABLISHMENT,LD - Fenland Locality - Cost of Care,LD - Fenland  - Care,Supported Living
Cambridgeshire County Council,02-Sep-22,51301847596,"1,289.76",FITZROY SUPPORT RE 28 RIVERBANK,CARE ESTABLISHMENT,LD - Fenland Locality - Cost of Care,LD - Fenland  - Care,Supported Living
Cambridgeshire County Council,02-Sep-22,51301847596,"1,289.76",FITZROY SUPPORT RE 28 RIVERBANK,CARE ESTABLISHMENT,LD - Fenland Locality - Cost of Care,LD - Fenland  - Care,Supported Living
Cambridgeshire County Council,02-Sep-22,51301847596,"1,289.76",FITZROY SUPPORT RE 28 RIVERBANK,CARE ESTABLISHMENT,LD - Fenland Locality - Cost of Care,LD - Fenland  - Care,Supported Living
Cambridgeshire County Council,02-Sep-22,51301847596,"1,289.76",FITZROY SUPPORT RE 28 RIVERBANK,CARE ESTABLISHMENT,LD - Fenland Locality - Cost of Care,LD - Fenland  - Care,Supported Living
Cambridgeshire County Council,02-Sep-22,51301847596,"1,289.76",FITZROY SUPPORT RE 28 RIVERBANK,CARE ESTABLISHMENT,LD - Fenland Locality - Cost of Care,LD - Fenland  - Care,Supported Living
Cambridgeshire County Council,02-Sep-22,51301847596,"1,289.76",FITZROY SUPPORT RE 28 RIVERBANK,CARE ESTABLISHMENT,LD - Fenland Locality - Cost of Care,LD - Fenland  - Care,Supported Living
Cambridgeshire County Council,02-Sep-22,51301847596,"1,289.76",FITZROY SUPPORT RE 28 RIVERBANK,CARE ESTABLISHMENT,LD - Fenland Locality - Cost of Care,LD - Fenland  - Care,Supported Living
Cambridgeshire County Council,02-Sep-22,51301847596,"1,289.76",FITZROY SUPPORT RE 28 RIVERBANK,CARE ESTABLISHMENT,LD - Fenland Locality - Cost of Care,LD - Fenland  - Care,Supported Living
Cambridgeshire County Council,02-Sep-22,51301847596,"1,289.76",FITZROY SUPPORT RE 28 RIVERBANK,CARE ESTABLISHMENT,LD - Fenland Locality - Cost of Care,LD - Fenland  - Care,Supported Living
Cambridgeshire County Council,02-Sep-22,51301847596,"1,289.76",FITZROY SUPPORT RE 28 RIVERBANK,CARE ESTABLISHMENT,LD - Fenland Locality - Cost of Care,LD - Fenland  - Care,Supported Living
Cambridgeshire County Council,02-Sep-22,51301847596,"1,289.76",FITZROY SUPPORT RE 28 RIVERBANK,CARE ESTABLISHMENT,LD - Fenland Locality - Cost of Care,LD - Fenland  - Care,Supported Living
Cambridgeshire County Council,02-Sep-22,51301847596,"1,289.76",FITZROY SUPPORT RE 28 RIVERBANK,CARE ESTABLISHMENT,LD - Fenland Locality - Cost of Care,LD - Fenland  - Care,Supported Living
Cambridgeshire County Council,02-Sep-22,51301847612,"1,290.66",THE EDMUND TRUST,CARE ESTABLISHMENT,LD - East Locality - Cost of Care,LD - East Cambs - Special Needs,Supported Living
Cambridgeshire County Council,02-Sep-22,51301847612,"1,290.66",THE EDMUND TRUST,CARE ESTABLISHMENT,LD - East Locality - Cost of Care,LD - East Cambs - Special Needs,Supported Living
Cambridgeshire County Council,02-Sep-22,51301847612,"1,290.66",THE EDMUND TRUST,CARE ESTABLISHMENT,LD - East Locality - Cost of Care,LD - East Cambs - Special Needs,Supported Living
Cambridgeshire County Council,02-Sep-22,51301847612,"1,290.66",THE EDMUND TRUST,CARE ESTABLISHMENT,LD - East Locality - Cost of Care,LD - East Cambs - Special Needs,Supported Living
Cambridgeshire County Council,02-Sep-22,51301847612,"1,290.66",THE EDMUND TRUST,CARE ESTABLISHMENT,LD - East Locality - Cost of Care,LD - East Cambs - Special Needs,Supported Living
Cambridgeshire County Council,02-Sep-22,51301847554,"1,291.45",WESTMINSTER HOMECARE LIMITED,CARE ESTABLISHMENT,Commissioning - Dom Cars,Hunts - Dom Blocks,Domiciliary Care
Cambridgeshire County Council,02-Sep-22,51301847554,"1,291.45",WESTMINSTER HOMECARE LIMITED,CARE ESTABLISHMENT,Commissioning - Dom Cars,Hunts - Dom Blocks,Domiciliary Care
Cambridgeshire County Council,02-Sep-22,51301847554,"1,291.45",WESTMINSTER HOMECARE LIMITED,CARE ESTABLISHMENT,Commissioning - Dom Cars,Hunts - Dom Blocks,Domiciliary Care
Cambridgeshire County Council,02-Sep-22,51301847554,"1,291.45",WESTMINSTER HOMECARE LIMITED,CARE ESTABLISHMENT,Commissioning - Dom Cars,Hunts - Dom Blocks,Domiciliary Care
Cambridgeshire County Council,02-Sep-22,51301838109,"1,296.00",LOGIC DESIGN LIMITED,TRADE SUPPLIER,Connecting Cambridgeshire,Connecting Cambridgeshire,Professional Fees and Hired Services
Cambridgeshire County Council,02-Sep-22,51301847510,"1,312.00",Redacted Personal Data,INDIVIDUAL,LD - Young Adults Team,LD - Young Adults - Care,Direct Payments
Cambridgeshire County Council,02-Sep-22,51301847579,"1,324.80",FLORENCE HOUSE(RAMSEY) RESIDENTIAL HOME FOR THE ELDERLY,CARE ESTABLISHMENT,OPPD - Cost of Care - Huntingdon Blocks,Hunts - Short term blocks,Rehabilitation And Respite Care
Cambridgeshire County Council,02-Sep-22,51301847579,"1,324.80",FLORENCE HOUSE(RAMSEY) RESIDENTIAL HOME FOR THE ELDERLY,CARE ESTABLISHMENT,OPPD - Cost of Care - Huntingdon Blocks,Hunts - Short term blocks,Rehabilitation And Respite Care
Cambridgeshire County Council,02-Sep-22,51301847579,"1,324.80",FLORENCE HOUSE(RAMSEY) RESIDENTIAL HOME FOR THE ELDERLY,CARE ESTABLISHMENT,OPPD - Cost of Care - Huntingdon Blocks,Hunts - Short term blocks,Rehabilitation And Respite Care
Cambridgeshire County Council,02-Sep-22,51301847579,"1,324.80",FLORENCE HOUSE(RAMSEY) RESIDENTIAL HOME FOR THE ELDERLY,CARE ESTABLISHMENT,OPPD - Cost of Care - Huntingdon Blocks,Hunts - Short term blocks,Rehabilitation And Respite Care
Cambridgeshire County Council,02-Sep-22,51301847582,"1,324.80",NELSON LODGE,CARE ESTABLISHMENT,OPPD - Cost of Care - Huntingdon Blocks,Hunts - Long term blocks,Residential Care
Cambridgeshire County Council,02-Sep-22,51301847582,"1,324.80",NELSON LODGE,CARE ESTABLISHMENT,OPPD - Cost of Care - Huntingdon Blocks,Hunts - Long term blocks,Residential Care
Cambridgeshire County Council,02-Sep-22,51301847582,"1,324.80",NELSON LODGE,CARE ESTABLISHMENT,OPPD - Cost of Care - Huntingdon Blocks,Hunts - Long term blocks,Residential Care
Cambridgeshire County Council,02-Sep-22,51301847582,"1,324.80",NELSON LODGE,CARE ESTABLISHMENT,OPPD - Cost of Care - Huntingdon Blocks,Hunts - Long term blocks,Residential Care
Cambridgeshire County Council,02-Sep-22,51301847587,"1,324.80",THE HILLINGS LIMITED,CARE ESTABLISHMENT,OPPD - Cost of Care - Huntingdon Blocks,Hunts - Long term blocks,Residential Care
Cambridgeshire County Council,02-Sep-22,51301847587,"1,324.80",THE HILLINGS LIMITED,CARE ESTABLISHMENT,OPPD - Cost of Care - Huntingdon Blocks,Hunts - Long term blocks,Residential Care
Cambridgeshire County Council,02-Sep-22,51301847587,"1,324.80",THE HILLINGS LIMITED,CARE ESTABLISHMENT,OPPD - Cost of Care - Huntingdon Blocks,Hunts - Long term blocks,Residential Care
Cambridgeshire County Council,02-Sep-22,51301847587,"1,324.80",THE HILLINGS LIMITED,CARE ESTABLISHMENT,OPPD - Cost of Care - Huntingdon Blocks,Hunts - Long term blocks,Residential Care
Cambridgeshire County Council,02-Sep-22,51301847531,"1,370.34",POTTON VIEW,CARE ESTABLISHMENT,OPPD - Cost of Care - City South Blocks,City and South - Short term blocks,Rehabilitation And Respite Care
Cambridgeshire County Council,02-Sep-22,51301847531,"1,370.34",POTTON VIEW,CARE ESTABLISHMENT,OPPD - Cost of Care - City South Blocks,City and South - Short term blocks,Rehabilitation And Respite Care
Cambridgeshire County Council,02-Sep-22,51301847531,"1,370.34",POTTON VIEW,CARE ESTABLISHMENT,OPPD - Cost of Care - City South Blocks,City and South - Short term blocks,Rehabilitation And Respite Care
Cambridgeshire County Council,02-Sep-22,51301847531,"1,370.34",POTTON VIEW,CARE ESTABLISHMENT,OPPD - Cost of Care - City South Blocks,City and South - Short term blocks,Rehabilitation And Respite Care
Cambridgeshire County Council,02-Sep-22,51301847574,"1,370.34",ORCHARD HOUSE (SAWSTON),CARE ESTABLISHMENT,OPPD - Cost of Care - City South Blocks,City and South - Long term blocks,Residential Care
Cambridgeshire County Council,02-Sep-22,51301847574,"1,370.34",ORCHARD HOUSE (SAWSTON),CARE ESTABLISHMENT,OPPD - Cost of Care - City South Blocks,City and South - Long term blocks,Residential Care
Cambridgeshire County Council,02-Sep-22,51301847574,"1,370.34",ORCHARD HOUSE (SAWSTON),CARE ESTABLISHMENT,OPPD - Cost of Care - City South Blocks,City and South - Long term blocks,Residential Care
Cambridgeshire County Council,02-Sep-22,51301847574,"1,370.34",ORCHARD HOUSE (SAWSTON),CARE ESTABLISHMENT,OPPD - Cost of Care - City South Blocks,City and South - Long term blocks,Residential Care
Cambridgeshire County Council,02-Sep-22,51301847533,"1,370.34",Southwell Court,CARE ESTABLISHMENT,OPPD - Cost of Care - City South Blocks,City and South - Short term blocks,Rehabilitation And Respite Care
Cambridgeshire County Council,02-Sep-22,51301847533,"1,370.34",Southwell Court,CARE ESTABLISHMENT,OPPD - Cost of Care - City South Blocks,City and South - Short term blocks,Rehabilitation And Respite Care
Cambridgeshire County Council,02-Sep-22,51301847533,"1,370.34",Southwell Court,CARE ESTABLISHMENT,OPPD - Cost of Care - City South Blocks,City and South - Short term blocks,Rehabilitation And Respite Care
Cambridgeshire County Council,02-Sep-22,51301847533,"1,370.34",Southwell Court,CARE ESTABLISHMENT,OPPD - Cost of Care - City South Blocks,City and South - Short term blocks,Rehabilitation And Respite Care
Cambridgeshire County Council,02-Sep-22,51301847542,"1,370.34",THE CAMBRIDGE HOUSING SOCIETY LTD,CARE ESTABLISHMENT,OPPD - Cost of Care - City South Blocks,City and South - Long term blocks,Residential Care
Cambridgeshire County Council,02-Sep-22,51301847542,"1,370.34",THE CAMBRIDGE HOUSING SOCIETY LTD,CARE ESTABLISHMENT,OPPD - Cost of Care - City South Blocks,City and South - Long term blocks,Residential Care
Cambridgeshire County Council,02-Sep-22,51301847542,"1,370.34",THE CAMBRIDGE HOUSING SOCIETY LTD,CARE ESTABLISHMENT,OPPD - Cost of Care - City South Blocks,City and South - Long term blocks,Residential Care
Cambridgeshire County Council,02-Sep-22,51301847542,"1,370.34",THE CAMBRIDGE HOUSING SOCIETY LTD,CARE ESTABLISHMENT,OPPD - Cost of Care - City South Blocks,City and South - Long term blocks,Residential Care
Cambridgeshire County Council,02-Sep-22,51301847571,"1,370.34",THE CAMBRIDGE HOUSING SOCIETY LTD,CARE ESTABLISHMENT,OPPD - Cost of Care - City South Blocks,City and South - Long term blocks,Residential Care
Cambridgeshire County Council,02-Sep-22,51301847571,"1,370.34",THE CAMBRIDGE HOUSING SOCIETY LTD,CARE ESTABLISHMENT,OPPD - Cost of Care - City South Blocks,City and South - Long term blocks,Residential Care
Cambridgeshire County Council,02-Sep-22,51301847571,"1,370.34",THE CAMBRIDGE HOUSING SOCIETY LTD,CARE ESTABLISHMENT,OPPD - Cost of Care - City South Blocks,City and South - Long term blocks,Residential Care
Cambridgeshire County Council,02-Sep-22,51301847571,"1,370.34",THE CAMBRIDGE HOUSING SOCIETY LTD,CARE ESTABLISHMENT,OPPD - Cost of Care - City South Blocks,City and South - Long term blocks,Residential Care
Cambridgeshire County Council,02-Sep-22,51301847533,"1,404.92",Southwell Court,CARE ESTABLISHMENT,OPPD - Cost of Care - City South Blocks,City and South - Short term blocks,Rehabilitation And Respite Care
Cambridgeshire County Council,02-Sep-22,51301847533,"1,404.92",Southwell Court,CARE ESTABLISHMENT,OPPD - Cost of Care - City South Blocks,City and South - Short term blocks,Rehabilitation And Respite Care
Cambridgeshire County Council,02-Sep-22,51301847533,"1,404.92",Southwell Court,CARE ESTABLISHMENT,OPPD - Cost of Care - City South Blocks,City and South - Short term blocks,Rehabilitation And Respite Care
Cambridgeshire County Council,02-Sep-22,51301847533,"1,404.92",Southwell Court,CARE ESTABLISHMENT,OPPD - Cost of Care - City South Blocks,City and South - Short term blocks,Rehabilitation And Respite Care
Cambridgeshire County Council,02-Sep-22,51301834921,"1,406.40",DWF Law LLP Client Account,COMPANY,Insurance Fund,Liability,Insurance Claims Paid
Cambridgeshire County Council,02-Sep-22,51301847541,"1,413.82",ETHELDRED HOUSE,CARE ESTABLISHMENT,OPPD - Cost of Care - City South Blocks,City and South - Long term blocks,Nursing Care
Cambridgeshire County Council,02-Sep-22,51301847541,"1,413.82",ETHELDRED HOUSE,CARE ESTABLISHMENT,OPPD - Cost of Care - City South Blocks,City and South - Long term blocks,Nursing Care
Cambridgeshire County Council,02-Sep-22,51301847541,"1,413.82",ETHELDRED HOUSE,CARE ESTABLISHMENT,OPPD - Cost of Care - City South Blocks,City and South - Long term blocks,Nursing Care
Cambridgeshire County Council,02-Sep-22,51301847541,"1,413.82",ETHELDRED HOUSE,CARE ESTABLISHMENT,OPPD - Cost of Care - City South Blocks,City and South - Long term blocks,Nursing Care
Cambridgeshire County Council,02-Sep-22,51301834495,"1,416.00",MKA Ecology Ltd,COMPANY,Greenspaces,Greenspaces,Professional Fees and Hired Services
Cambridgeshire County Council,02-Sep-22,51301847624,"1,441.44",Willow Care and Support,CARE ESTABLISHMENT,LD - Young Adults Team,LD - Young Adults - Special Needs,Supported Living
Cambridgeshire County Council,02-Sep-22,51301847624,"1,441.44",Willow Care and Support,CARE ESTABLISHMENT,LD - Young Adults Team,LD - Young Adults - Special Needs,Supported Living
Cambridgeshire County Council,02-Sep-22,51301847624,"1,441.44",Willow Care and Support,CARE ESTABLISHMENT,LD - Young Adults Team,LD - Young Adults - Special Needs,Supported Living
Cambridgeshire County Council,02-Sep-22,51301847624,"1,441.44",Willow Care and Support,CARE ESTABLISHMENT,LD - Young Adults Team,LD - Young Adults - Special Needs,Supported Living
Cambridgeshire County Council,02-Sep-22,51301847624,"1,441.44",Willow Care and Support,CARE ESTABLISHMENT,LD - Young Adults Team,LD - Young Adults - Special Needs,Supported Living
Cambridgeshire County Council,02-Sep-22,51301847624,"1,441.44",Willow Care and Support,CARE ESTABLISHMENT,LD - Young Adults Team,LD - Young Adults - Special Needs,Supported Living
Cambridgeshire County Council,02-Sep-22,51301847624,"1,441.44",Willow Care and Support,CARE ESTABLISHMENT,LD - Young Adults Team,LD - Young Adults - Special Needs,Supported Living
Cambridgeshire County Council,02-Sep-22,51301847624,"1,441.44",Willow Care and Support,CARE ESTABLISHMENT,LD - Young Adults Team,LD - Young Adults - Special Needs,Supported Living
Cambridgeshire County Council,02-Sep-22,51301847624,"1,441.44",Willow Care and Support,CARE ESTABLISHMENT,LD - Young Adults Team,LD - Young Adults - Special Needs,Supported Living
Cambridgeshire County Council,02-Sep-22,51301847530,"1,449.00",HC-ONE,CARE ESTABLISHMENT,OPPD - Cost of Care - Huntingdon Blocks,Hunts - Long term blocks,Nursing Care
Cambridgeshire County Council,02-Sep-22,51301847530,"1,449.00",HC-ONE,CARE ESTABLISHMENT,OPPD - Cost of Care - Huntingdon Blocks,Hunts - Long term blocks,Nursing Care
Cambridgeshire County Council,02-Sep-22,51301847530,"1,449.00",HC-ONE,CARE ESTABLISHMENT,OPPD - Cost of Care - Huntingdon Blocks,Hunts - Long term blocks,Nursing Care
Cambridgeshire County Council,02-Sep-22,51301847530,"1,449.00",HC-ONE,CARE ESTABLISHMENT,OPPD - Cost of Care - Huntingdon Blocks,Hunts - Long term blocks,Nursing Care
Cambridgeshire County Council,02-Sep-22,51301847293,"1,468.25",THE SALVATION ARMY,CHARITY,LAC Placements,Placements - 16+,Agency Placements - In County
Cambridgeshire County Council,02-Sep-22,51301847342,"1,468.80",CAMBRIDGE CITY COUNCIL,OTHER PUBLIC BODIES,Counting Every Adult & Projects,Housing First,Other Service User Support
Cambridgeshire County Council,02-Sep-22,51301847343,"1,468.80",CAMBRIDGE CITY COUNCIL,OTHER PUBLIC BODIES,Counting Every Adult & Projects,Housing First,Other Service User Support
Cambridgeshire County Council,02-Sep-22,51301847523,"1,473.79",Redacted Personal Data,SERVICE USER,OPPD - Under 65 - City South,OPPD - Under 65 - City South,Direct Payments
Cambridgeshire County Council,02-Sep-22,51301847298,"1,483.44",THE SALVATION ARMY,CHARITY,LAC Placements,Placements - 16+,Agency Placements - In County
Cambridgeshire County Council,02-Sep-22,51301847545,"1,498.68",CARE UK LIMITED,CARE ESTABLISHMENT,OPPD - Cost of Care - Huntingdon Blocks,Hunts - Long term blocks,Nursing Care
Cambridgeshire County Council,02-Sep-22,51301847545,"1,498.68",CARE UK LIMITED,CARE ESTABLISHMENT,OPPD - Cost of Care - Huntingdon Blocks,Hunts - Long term blocks,Nursing Care
Cambridgeshire County Council,02-Sep-22,51301847545,"1,498.68",CARE UK LIMITED,CARE ESTABLISHMENT,OPPD - Cost of Care - Huntingdon Blocks,Hunts - Long term blocks,Nursing Care
Cambridgeshire County Council,02-Sep-22,51301847545,"1,498.68",CARE UK LIMITED,CARE ESTABLISHMENT,OPPD - Cost of Care - Huntingdon Blocks,Hunts - Long term blocks,Nursing Care
Cambridgeshire County Council,02-Sep-22,51301847545,"1,498.68",CARE UK LIMITED,CARE ESTABLISHMENT,OPPD - Cost of Care - Huntingdon Blocks,Hunts - Long term blocks,Nursing Care
Cambridgeshire County Council,02-Sep-22,51301847557,"1,498.68",FORD HOUSE CARE HOME,CARE ESTABLISHMENT,OPPD - Cost of Care - Huntingdon - Over 65,Hunts OP Team - Care,Nursing Care
Cambridgeshire County Council,02-Sep-22,51301847557,"1,498.68",FORD HOUSE CARE HOME,CARE ESTABLISHMENT,OPPD - Cost of Care - Huntingdon - Over 65,Hunts OP Team - Care,Nursing Care
Cambridgeshire County Council,02-Sep-22,51301847557,"1,498.68",FORD HOUSE CARE HOME,CARE ESTABLISHMENT,OPPD - Cost of Care - Huntingdon - Over 65,Hunts OP Team - Care,Nursing Care
Cambridgeshire County Council,02-Sep-22,51301847557,"1,498.68",FORD HOUSE CARE HOME,CARE ESTABLISHMENT,OPPD - Cost of Care - Huntingdon - Over 65,Hunts OP Team - Care,Nursing Care
Cambridgeshire County Council,02-Sep-22,51301834300,"1,500.00",DJ DAVISON & SONS LTD,TRADE SUPPLIER,Highways - Rights of Way,Highways - Rights of Way,ROW Maintenance
Cambridgeshire County Council,02-Sep-22,51301847626,"1,552.07",CRAEGMOOR SYI EAST ANGLIA PRIORY,CARE ESTABLISHMENT,LD - Young Adults Team,LD - Young Adults - Care,Supported Living
Cambridgeshire County Council,02-Sep-22,51301847615,"1,553.04",FITZROY SUPPORT RE 28 RIVERBANK,CARE ESTABLISHMENT,LD - Fenland Locality - Cost of Care,LD - Fenland  - Care,Supported Living
Cambridgeshire County Council,02-Sep-22,51301847615,"1,553.04",FITZROY SUPPORT RE 28 RIVERBANK,CARE ESTABLISHMENT,LD - Fenland Locality - Cost of Care,LD - Fenland  - Care,Supported Living
Cambridgeshire County Council,02-Sep-22,51301847615,"1,553.04",FITZROY SUPPORT RE 28 RIVERBANK,CARE ESTABLISHMENT,LD - Fenland Locality - Cost of Care,LD - Fenland  - Care,Supported Living
Cambridgeshire County Council,02-Sep-22,51301847615,"1,553.04",FITZROY SUPPORT RE 28 RIVERBANK,CARE ESTABLISHMENT,LD - Fenland Locality - Cost of Care,LD - Fenland  - Care,Supported Living
Cambridgeshire County Council,02-Sep-22,51301847615,"1,553.04",FITZROY SUPPORT RE 28 RIVERBANK,CARE ESTABLISHMENT,LD - Fenland Locality - Cost of Care,LD - Fenland  - Care,Supported Living
Cambridgeshire County Council,02-Sep-22,51301847615,"1,553.04",FITZROY SUPPORT RE 28 RIVERBANK,CARE ESTABLISHMENT,LD - Fenland Locality - Cost of Care,LD - Fenland  - Care,Supported Living
Cambridgeshire County Council,02-Sep-22,51301847615,"1,553.04",FITZROY SUPPORT RE 28 RIVERBANK,CARE ESTABLISHMENT,LD - Fenland Locality - Cost of Care,LD - Fenland  - Care,Supported Living
Cambridgeshire County Council,02-Sep-22,51301847615,"1,553.04",FITZROY SUPPORT RE 28 RIVERBANK,CARE ESTABLISHMENT,LD - Fenland Locality - Cost of Care,LD - Fenland  - Care,Supported Living
Cambridgeshire County Council,02-Sep-22,51301847615,"1,553.04",FITZROY SUPPORT RE 28 RIVERBANK,CARE ESTABLISHMENT,LD - Fenland Locality - Cost of Care,LD - Fenland  - Care,Supported Living
Cambridgeshire County Council,02-Sep-22,51301847615,"1,553.04",FITZROY SUPPORT RE 28 RIVERBANK,CARE ESTABLISHMENT,LD - Fenland Locality - Cost of Care,LD - Fenland  - Care,Supported Living
Cambridgeshire County Council,02-Sep-22,51301847615,"1,553.04",FITZROY SUPPORT RE 28 RIVERBANK,CARE ESTABLISHMENT,LD - Fenland Locality - Cost of Care,LD - Fenland  - Care,Supported Living
Cambridgeshire County Council,02-Sep-22,51301847615,"1,553.04",FITZROY SUPPORT RE 28 RIVERBANK,CARE ESTABLISHMENT,LD - Fenland Locality - Cost of Care,LD - Fenland  - Care,Supported Living
Cambridgeshire County Council,02-Sep-22,51301847615,"1,553.04",FITZROY SUPPORT RE 28 RIVERBANK,CARE ESTABLISHMENT,LD - Fenland Locality - Cost of Care,LD - Fenland  - Care,Supported Living
Cambridgeshire County Council,02-Sep-22,51301847615,"1,553.04",FITZROY SUPPORT RE 28 RIVERBANK,CARE ESTABLISHMENT,LD - Fenland Locality - Cost of Care,LD - Fenland  - Care,Supported Living
Cambridgeshire County Council,02-Sep-22,51301847615,"1,553.04",FITZROY SUPPORT RE 28 RIVERBANK,CARE ESTABLISHMENT,LD - Fenland Locality - Cost of Care,LD - Fenland  - Care,Supported Living
Cambridgeshire County Council,02-Sep-22,51301847615,"1,553.04",FITZROY SUPPORT RE 28 RIVERBANK,CARE ESTABLISHMENT,LD - Fenland Locality - Cost of Care,LD - Fenland  - Care,Supported Living
Cambridgeshire County Council,02-Sep-22,51301847615,"1,553.04",FITZROY SUPPORT RE 28 RIVERBANK,CARE ESTABLISHMENT,LD - Fenland Locality - Cost of Care,LD - Fenland  - Care,Supported Living
Cambridgeshire County Council,02-Sep-22,51301847615,"1,553.04",FITZROY SUPPORT RE 28 RIVERBANK,CARE ESTABLISHMENT,LD - Fenland Locality - Cost of Care,LD - Fenland  - Care,Supported Living
Cambridgeshire County Council,02-Sep-22,51301847615,"1,553.04",FITZROY SUPPORT RE 28 RIVERBANK,CARE ESTABLISHMENT,LD - Fenland Locality - Cost of Care,LD - Fenland  - Care,Supported Living
Cambridgeshire County Council,02-Sep-22,51301847615,"1,553.04",FITZROY SUPPORT RE 28 RIVERBANK,CARE ESTABLISHMENT,LD - Fenland Locality - Cost of Care,LD - Fenland  - Care,Supported Living
Cambridgeshire County Council,02-Sep-22,51301847615,"1,553.04",FITZROY SUPPORT RE 28 RIVERBANK,CARE ESTABLISHMENT,LD - Fenland Locality - Cost of Care,LD - Fenland  - Care,Supported Living
Cambridgeshire County Council,02-Sep-22,51301847615,"1,553.04",FITZROY SUPPORT RE 28 RIVERBANK,CARE ESTABLISHMENT,LD - Fenland Locality - Cost of Care,LD - Fenland  - Care,Supported Living
Cambridgeshire County Council,02-Sep-22,51301847615,"1,553.04",FITZROY SUPPORT RE 28 RIVERBANK,CARE ESTABLISHMENT,LD - Fenland Locality - Cost of Care,LD - Fenland  - Care,Supported Living
Cambridgeshire County Council,02-Sep-22,51301839159,"1,563.06",COMPASS MINERALS UK LIMITED,TRADE SUPPLIER,Winter Maintenance,North Winter,Salt for Highways
Cambridgeshire County Council,02-Sep-22,51301847563,"1,596.86",THE GABLES SPECIALIST NURSING HOME,CARE ESTABLISHMENT,OPPD - Cost of Care - Fenland Blocks,Fenland - Long term blocks,Nursing Care
Cambridgeshire County Council,02-Sep-22,51301847572,"1,648.03",BROOKFIELD CARE (Radis Commnity Care),CARE ESTABLISHMENT,Commissioning - Dom Cars,Hancock-Funded Dom-Cars,Domiciliary Care
Cambridgeshire County Council,02-Sep-22,51301847572,"1,648.03",BROOKFIELD CARE (Radis Commnity Care),CARE ESTABLISHMENT,Commissioning - Dom Cars,Hancock-Funded Dom-Cars,Domiciliary Care
Cambridgeshire County Council,02-Sep-22,51301847572,"1,648.03",BROOKFIELD CARE (Radis Commnity Care),CARE ESTABLISHMENT,Commissioning - Dom Cars,Hancock-Funded Dom-Cars,Domiciliary Care
Cambridgeshire County Council,02-Sep-22,51301847572,"1,648.03",BROOKFIELD CARE (Radis Commnity Care),CARE ESTABLISHMENT,Commissioning - Dom Cars,Hancock-Funded Dom-Cars,Domiciliary Care
Cambridgeshire County Council,02-Sep-22,51301847544,"1,656.00",THE CAMBRIDGE NURSING CENTRE,CARE ESTABLISHMENT,OPPD - Cost of Care - City South Blocks,City and South - Long term blocks,Nursing Care
Cambridgeshire County Council,02-Sep-22,51301847544,"1,656.00",THE CAMBRIDGE NURSING CENTRE,CARE ESTABLISHMENT,OPPD - Cost of Care - City South Blocks,City and South - Long term blocks,Nursing Care
Cambridgeshire County Council,02-Sep-22,51301847544,"1,656.00",THE CAMBRIDGE NURSING CENTRE,CARE ESTABLISHMENT,OPPD - Cost of Care - City South Blocks,City and South - Long term blocks,Nursing Care
Cambridgeshire County Council,02-Sep-22,51301847544,"1,656.00",THE CAMBRIDGE NURSING CENTRE,CARE ESTABLISHMENT,OPPD - Cost of Care - City South Blocks,City and South - Long term blocks,Nursing Care
Cambridgeshire County Council,02-Sep-22,51301847544,"1,656.00",THE CAMBRIDGE NURSING CENTRE,CARE ESTABLISHMENT,OPPD - Cost of Care - City South Blocks,City and South - Long term blocks,Nursing Care
Cambridgeshire County Council,02-Sep-22,51301847544,"1,656.00",THE CAMBRIDGE NURSING CENTRE,CARE ESTABLISHMENT,OPPD - Cost of Care - City South Blocks,City and South - Long term blocks,Nursing Care
Cambridgeshire County Council,02-Sep-22,51301847544,"1,656.00",THE CAMBRIDGE NURSING CENTRE,CARE ESTABLISHMENT,OPPD - Cost of Care - City South Blocks,City and South - Long term blocks,Nursing Care
Cambridgeshire County Council,02-Sep-22,51301847544,"1,656.00",THE CAMBRIDGE NURSING CENTRE,CARE ESTABLISHMENT,OPPD - Cost of Care - City South Blocks,City and South - Long term blocks,Nursing Care
Cambridgeshire County Council,02-Sep-22,51301847544,"1,656.00",THE CAMBRIDGE NURSING CENTRE,CARE ESTABLISHMENT,OPPD - Cost of Care - City South Blocks,City and South - Long term blocks,Nursing Care
Cambridgeshire County Council,02-Sep-22,51301847544,"1,656.00",THE CAMBRIDGE NURSING CENTRE,CARE ESTABLISHMENT,OPPD - Cost of Care - City South Blocks,City and South - Long term blocks,Nursing Care
Cambridgeshire County Council,02-Sep-22,51301847544,"1,656.00",THE CAMBRIDGE NURSING CENTRE,CARE ESTABLISHMENT,OPPD - Cost of Care - City South Blocks,City and South - Long term blocks,Nursing Care
Cambridgeshire County Council,02-Sep-22,51301847544,"1,656.00",THE CAMBRIDGE NURSING CENTRE,CARE ESTABLISHMENT,OPPD - Cost of Care - City South Blocks,City and South - Long term blocks,Nursing Care
Cambridgeshire County Council,02-Sep-22,51301847544,"1,656.00",THE CAMBRIDGE NURSING CENTRE,CARE ESTABLISHMENT,OPPD - Cost of Care - City South Blocks,City and South - Long term blocks,Nursing Care
Cambridgeshire County Council,02-Sep-22,51301847609,"1,695.49",CRAEGMOOR SYI EAST ANGLIA PRIORY,CARE ESTABLISHMENT,LD - Hunts Locality - Cost of Care,LD - Huntingdonshire - Care,Supported Living
Cambridgeshire County Council,02-Sep-22,51301847544,"1,718.10",THE CAMBRIDGE NURSING CENTRE,CARE ESTABLISHMENT,OPPD - Cost of Care - City South Blocks,City and South - Long term blocks,Nursing Care
Cambridgeshire County Council,02-Sep-22,51301847544,"1,718.10",THE CAMBRIDGE NURSING CENTRE,CARE ESTABLISHMENT,OPPD - Cost of Care - City South Blocks,City and South - Long term blocks,Nursing Care
Cambridgeshire County Council,02-Sep-22,51301847544,"1,718.10",THE CAMBRIDGE NURSING CENTRE,CARE ESTABLISHMENT,OPPD - Cost of Care - City South Blocks,City and South - Long term blocks,Nursing Care
Cambridgeshire County Council,02-Sep-22,51301847544,"1,718.10",THE CAMBRIDGE NURSING CENTRE,CARE ESTABLISHMENT,OPPD - Cost of Care - City South Blocks,City and South - Long term blocks,Nursing Care
Cambridgeshire County Council,02-Sep-22,51301847544,"1,718.10",THE CAMBRIDGE NURSING CENTRE,CARE ESTABLISHMENT,OPPD - Cost of Care - City South Blocks,City and South - Long term blocks,Nursing Care
Cambridgeshire County Council,02-Sep-22,51301847544,"1,718.10",THE CAMBRIDGE NURSING CENTRE,CARE ESTABLISHMENT,OPPD - Cost of Care - City South Blocks,City and South - Long term blocks,Nursing Care
Cambridgeshire County Council,02-Sep-22,51301847544,"1,718.10",THE CAMBRIDGE NURSING CENTRE,CARE ESTABLISHMENT,OPPD - Cost of Care - City South Blocks,City and South - Long term blocks,Nursing Care
Cambridgeshire County Council,02-Sep-22,51301847544,"1,718.10",THE CAMBRIDGE NURSING CENTRE,CARE ESTABLISHMENT,OPPD - Cost of Care - City South Blocks,City and South - Long term blocks,Nursing Care
Cambridgeshire County Council,02-Sep-22,51301847544,"1,718.10",THE CAMBRIDGE NURSING CENTRE,CARE ESTABLISHMENT,OPPD - Cost of Care - City South Blocks,City and South - Long term blocks,Nursing Care
Cambridgeshire County Council,02-Sep-22,51301847544,"1,718.10",THE CAMBRIDGE NURSING CENTRE,CARE ESTABLISHMENT,OPPD - Cost of Care - City South Blocks,City and South - Long term blocks,Nursing Care
Cambridgeshire County Council,02-Sep-22,51301847544,"1,718.10",THE CAMBRIDGE NURSING CENTRE,CARE ESTABLISHMENT,OPPD - Cost of Care - City South Blocks,City and South - Long term blocks,Nursing Care
Cambridgeshire County Council,02-Sep-22,51301847523,"1,719.42",Redacted Personal Data,SERVICE USER,OPPD - Under 65 - City South,OPPD - Under 65 - City South,Direct Payments
Cambridgeshire County Council,02-Sep-22,51301847523,"1,719.42",Redacted Personal Data,SERVICE USER,OPPD - Under 65 - City South,OPPD - Under 65 - City South,Direct Payments
Cambridgeshire County Council,02-Sep-22,51301847523,"1,719.42",Redacted Personal Data,SERVICE USER,OPPD - Under 65 - City South,OPPD - Under 65 - City South,Direct Payments
Cambridgeshire County Council,02-Sep-22,51301847523,"1,719.42",Redacted Personal Data,SERVICE USER,OPPD - Under 65 - City South,OPPD - Under 65 - City South,Direct Payments
Cambridgeshire County Council,02-Sep-22,51301847523,"1,719.42",Redacted Personal Data,SERVICE USER,OPPD - Under 65 - City South,OPPD - Under 65 - City South,Direct Payments
Cambridgeshire County Council,02-Sep-22,51301847523,"1,719.42",Redacted Personal Data,SERVICE USER,OPPD - Under 65 - City South,OPPD - Under 65 - City South,Direct Payments
Cambridgeshire County Council,02-Sep-22,51301847523,"1,719.42",Redacted Personal Data,SERVICE USER,OPPD - Under 65 - City South,OPPD - Under 65 - City South,Direct Payments
Cambridgeshire County Council,02-Sep-22,51301847523,"1,719.42",Redacted Personal Data,SERVICE USER,OPPD - Under 65 - City South,OPPD - Under 65 - City South,Direct Payments
Cambridgeshire County Council,02-Sep-22,51301847523,"1,719.42",Redacted Personal Data,SERVICE USER,OPPD - Under 65 - City South,OPPD - Under 65 - City South,Direct Payments
Cambridgeshire County Council,02-Sep-22,51301847597,"1,732.49",FITZROY SUPPORT RE 28 RIVERBANK,CARE ESTABLISHMENT,LD - Fenland Locality - Cost of Care,LD - Fenland  - Care,Supported Living
Cambridgeshire County Council,02-Sep-22,51301847597,"1,732.49",FITZROY SUPPORT RE 28 RIVERBANK,CARE ESTABLISHMENT,LD - Fenland Locality - Cost of Care,LD - Fenland  - Care,Supported Living
Cambridgeshire County Council,02-Sep-22,51301847597,"1,732.49",FITZROY SUPPORT RE 28 RIVERBANK,CARE ESTABLISHMENT,LD - Fenland Locality - Cost of Care,LD - Fenland  - Care,Supported Living
Cambridgeshire County Council,02-Sep-22,51301847597,"1,732.49",FITZROY SUPPORT RE 28 RIVERBANK,CARE ESTABLISHMENT,LD - Fenland Locality - Cost of Care,LD - Fenland  - Care,Supported Living
Cambridgeshire County Council,02-Sep-22,51301847597,"1,732.49",FITZROY SUPPORT RE 28 RIVERBANK,CARE ESTABLISHMENT,LD - Fenland Locality - Cost of Care,LD - Fenland  - Care,Supported Living
Cambridgeshire County Council,02-Sep-22,51301847597,"1,732.49",FITZROY SUPPORT RE 28 RIVERBANK,CARE ESTABLISHMENT,LD - Fenland Locality - Cost of Care,LD - Fenland  - Care,Supported Living
Cambridgeshire County Council,02-Sep-22,51301847597,"1,732.49",FITZROY SUPPORT RE 28 RIVERBANK,CARE ESTABLISHMENT,LD - Fenland Locality - Cost of Care,LD - Fenland  - Care,Supported Living
Cambridgeshire County Council,02-Sep-22,51301847597,"1,732.49",FITZROY SUPPORT RE 28 RIVERBANK,CARE ESTABLISHMENT,LD - Fenland Locality - Cost of Care,LD - Fenland  - Care,Supported Living
Cambridgeshire County Council,02-Sep-22,51301847597,"1,732.49",FITZROY SUPPORT RE 28 RIVERBANK,CARE ESTABLISHMENT,LD - Fenland Locality - Cost of Care,LD - Fenland  - Care,Supported Living
Cambridgeshire County Council,02-Sep-22,51301847597,"1,732.49",FITZROY SUPPORT RE 28 RIVERBANK,CARE ESTABLISHMENT,LD - Fenland Locality - Cost of Care,LD - Fenland  - Care,Supported Living
Cambridgeshire County Council,02-Sep-22,51301847597,"1,732.49",FITZROY SUPPORT RE 28 RIVERBANK,CARE ESTABLISHMENT,LD - Fenland Locality - Cost of Care,LD - Fenland  - Care,Supported Living
Cambridgeshire County Council,02-Sep-22,51301847597,"1,732.49",FITZROY SUPPORT RE 28 RIVERBANK,CARE ESTABLISHMENT,LD - Fenland Locality - Cost of Care,LD - Fenland  - Care,Supported Living
Cambridgeshire County Council,02-Sep-22,51301847597,"1,732.49",FITZROY SUPPORT RE 28 RIVERBANK,CARE ESTABLISHMENT,LD - Fenland Locality - Cost of Care,LD - Fenland  - Care,Supported Living
Cambridgeshire County Council,02-Sep-22,51301847597,"1,732.49",FITZROY SUPPORT RE 28 RIVERBANK,CARE ESTABLISHMENT,LD - Fenland Locality - Cost of Care,LD - Fenland  - Care,Supported Living
Cambridgeshire County Council,02-Sep-22,51301847597,"1,732.49",FITZROY SUPPORT RE 28 RIVERBANK,CARE ESTABLISHMENT,LD - Fenland Locality - Cost of Care,LD - Fenland  - Care,Supported Living
Cambridgeshire County Council,02-Sep-22,51301847597,"1,732.49",FITZROY SUPPORT RE 28 RIVERBANK,CARE ESTABLISHMENT,LD - Fenland Locality - Cost of Care,LD - Fenland  - Care,Supported Living
Cambridgeshire County Council,02-Sep-22,51301847597,"1,732.49",FITZROY SUPPORT RE 28 RIVERBANK,CARE ESTABLISHMENT,LD - Fenland Locality - Cost of Care,LD - Fenland  - Care,Supported Living
Cambridgeshire County Council,02-Sep-22,51301847597,"1,732.49",FITZROY SUPPORT RE 28 RIVERBANK,CARE ESTABLISHMENT,LD - Fenland Locality - Cost of Care,LD - Fenland  - Care,Supported Living
Cambridgeshire County Council,02-Sep-22,51301847597,"1,732.49",FITZROY SUPPORT RE 28 RIVERBANK,CARE ESTABLISHMENT,LD - Fenland Locality - Cost of Care,LD - Fenland  - Care,Supported Living
Cambridgeshire County Council,02-Sep-22,51301847597,"1,732.49",FITZROY SUPPORT RE 28 RIVERBANK,CARE ESTABLISHMENT,LD - Fenland Locality - Cost of Care,LD - Fenland  - Care,Supported Living
Cambridgeshire County Council,02-Sep-22,51301847597,"1,732.49",FITZROY SUPPORT RE 28 RIVERBANK,CARE ESTABLISHMENT,LD - Fenland Locality - Cost of Care,LD - Fenland  - Care,Supported Living
Cambridgeshire County Council,02-Sep-22,51301847597,"1,732.49",FITZROY SUPPORT RE 28 RIVERBANK,CARE ESTABLISHMENT,LD - Fenland Locality - Cost of Care,LD - Fenland  - Care,Supported Living
Cambridgeshire County Council,02-Sep-22,51301847597,"1,732.49",FITZROY SUPPORT RE 28 RIVERBANK,CARE ESTABLISHMENT,LD - Fenland Locality - Cost of Care,LD - Fenland  - Care,Supported Living
Cambridgeshire County Council,02-Sep-22,51301847549,"1,800.00",Maven Healthcare,CARE ESTABLISHMENT,OPPD - Cost of Care - City South Blocks,City and South - Long term blocks,Nursing Care
Cambridgeshire County Council,02-Sep-22,51301847328,"1,802.43",Elite care,CARE ESTABLISHMENT,Unaccompanied Asylum Seeking Children,Unaccompanied Asylum Seeking Children <18,Asylum Seekers
Cambridgeshire County Council,02-Sep-22,51301847626,"1,810.75",CRAEGMOOR SYI EAST ANGLIA PRIORY,CARE ESTABLISHMENT,LD - Young Adults Team,LD - Young Adults - Care,Supported Living
Cambridgeshire County Council,02-Sep-22,51301847626,"1,810.75",CRAEGMOOR SYI EAST ANGLIA PRIORY,CARE ESTABLISHMENT,LD - Young Adults Team,LD - Young Adults - Care,Supported Living
Cambridgeshire County Council,02-Sep-22,51301847626,"1,810.75",CRAEGMOOR SYI EAST ANGLIA PRIORY,CARE ESTABLISHMENT,LD - Young Adults Team,LD - Young Adults - Care,Supported Living
Cambridgeshire County Council,02-Sep-22,51301847626,"1,810.75",CRAEGMOOR SYI EAST ANGLIA PRIORY,CARE ESTABLISHMENT,LD - Young Adults Team,LD - Young Adults - Care,Supported Living
Cambridgeshire County Council,02-Sep-22,51301847626,"1,810.75",CRAEGMOOR SYI EAST ANGLIA PRIORY,CARE ESTABLISHMENT,LD - Young Adults Team,LD - Young Adults - Care,Supported Living
Cambridgeshire County Council,02-Sep-22,51301847626,"1,810.75",CRAEGMOOR SYI EAST ANGLIA PRIORY,CARE ESTABLISHMENT,LD - Young Adults Team,LD - Young Adults - Care,Supported Living
Cambridgeshire County Council,02-Sep-22,51301847626,"1,810.75",CRAEGMOOR SYI EAST ANGLIA PRIORY,CARE ESTABLISHMENT,LD - Young Adults Team,LD - Young Adults - Care,Supported Living
Cambridgeshire County Council,02-Sep-22,51301847626,"1,810.75",CRAEGMOOR SYI EAST ANGLIA PRIORY,CARE ESTABLISHMENT,LD - Young Adults Team,LD - Young Adults - Care,Supported Living
Cambridgeshire County Council,02-Sep-22,51301847546,"1,816.44",THE HERMITAGE WHITTLESEY LLP,CARE ESTABLISHMENT,OPPD - Cost of Care - Fenland Blocks,Fenland - Long term blocks,Residential Care
Cambridgeshire County Council,02-Sep-22,51301847546,"1,816.44",THE HERMITAGE WHITTLESEY LLP,CARE ESTABLISHMENT,OPPD - Cost of Care - Fenland Blocks,Fenland - Long term blocks,Residential Care
Cambridgeshire County Council,02-Sep-22,51301847546,"1,816.44",THE HERMITAGE WHITTLESEY LLP,CARE ESTABLISHMENT,OPPD - Cost of Care - Fenland Blocks,Fenland - Long term blocks,Residential Care
Cambridgeshire County Council,02-Sep-22,51301847546,"1,816.44",THE HERMITAGE WHITTLESEY LLP,CARE ESTABLISHMENT,OPPD - Cost of Care - Fenland Blocks,Fenland - Long term blocks,Residential Care
Cambridgeshire County Council,02-Sep-22,51301847560,"1,816.44",THE ELMS NURSING HOME,CARE ESTABLISHMENT,OPPD - Cost of Care - Fenland Blocks,Fenland - Long term blocks,Nursing Care
Cambridgeshire County Council,02-Sep-22,51301847560,"1,816.44",THE ELMS NURSING HOME,CARE ESTABLISHMENT,OPPD - Cost of Care - Fenland Blocks,Fenland - Long term blocks,Nursing Care
Cambridgeshire County Council,02-Sep-22,51301847560,"1,816.44",THE ELMS NURSING HOME,CARE ESTABLISHMENT,OPPD - Cost of Care - Fenland Blocks,Fenland - Long term blocks,Nursing Care
Cambridgeshire County Council,02-Sep-22,51301847560,"1,816.44",THE ELMS NURSING HOME,CARE ESTABLISHMENT,OPPD - Cost of Care - Fenland Blocks,Fenland - Long term blocks,Nursing Care
Cambridgeshire County Council,02-Sep-22,51301837532,"1,818.39",CERTAS ENERGY UK LIMITED T/A PACE FUELCARE LIMITED,TRADE SUPPLIER,Corporate Offices,Buttsgrove,Oil
Cambridgeshire County Council,02-Sep-22,51301847561,"1,863.00",HUNTERS HEALTHCARE (HUNTERS DOWN),CARE ESTABLISHMENT,OPPD - Cost of Care - Huntingdon Blocks,Hunts - Long term blocks,Nursing Care
Cambridgeshire County Council,02-Sep-22,51301847548,"1,925.10",NELSON LODGE,CARE ESTABLISHMENT,OPPD - Cost of Care - Huntingdon Blocks,Hunts - Long term blocks,Residential Care
Cambridgeshire County Council,02-Sep-22,51301847548,"1,925.10",NELSON LODGE,CARE ESTABLISHMENT,OPPD - Cost of Care - Huntingdon Blocks,Hunts - Long term blocks,Residential Care
Cambridgeshire County Council,02-Sep-22,51301847548,"1,925.10",NELSON LODGE,CARE ESTABLISHMENT,OPPD - Cost of Care - Huntingdon Blocks,Hunts - Long term blocks,Residential Care
Cambridgeshire County Council,02-Sep-22,51301847548,"1,925.10",NELSON LODGE,CARE ESTABLISHMENT,OPPD - Cost of Care - Huntingdon Blocks,Hunts - Long term blocks,Residential Care
Cambridgeshire County Council,02-Sep-22,51301847530,"1,925.10",HC-ONE,CARE ESTABLISHMENT,OPPD - Cost of Care - Huntingdon Blocks,Hunts - Long term blocks,Nursing Care
Cambridgeshire County Council,02-Sep-22,51301847530,"1,925.10",HC-ONE,CARE ESTABLISHMENT,OPPD - Cost of Care - Huntingdon Blocks,Hunts - Long term blocks,Nursing Care
Cambridgeshire County Council,02-Sep-22,51301847530,"1,925.10",HC-ONE,CARE ESTABLISHMENT,OPPD - Cost of Care - Huntingdon Blocks,Hunts - Long term blocks,Nursing Care
Cambridgeshire County Council,02-Sep-22,51301847530,"1,925.10",HC-ONE,CARE ESTABLISHMENT,OPPD - Cost of Care - Huntingdon Blocks,Hunts - Long term blocks,Nursing Care
Cambridgeshire County Council,02-Sep-22,51301847547,"1,925.10",HARDWICK DENE,CARE ESTABLISHMENT,OPPD - Cost of Care - Huntingdon Blocks,Hunts - Short term blocks,Rehabilitation And Respite Care
Cambridgeshire County Council,02-Sep-22,51301847547,"1,925.10",HARDWICK DENE,CARE ESTABLISHMENT,OPPD - Cost of Care - Huntingdon Blocks,Hunts - Short term blocks,Rehabilitation And Respite Care
Cambridgeshire County Council,02-Sep-22,51301847547,"1,925.10",HARDWICK DENE,CARE ESTABLISHMENT,OPPD - Cost of Care - Huntingdon Blocks,Hunts - Short term blocks,Rehabilitation And Respite Care
Cambridgeshire County Council,02-Sep-22,51301847547,"1,925.10",HARDWICK DENE,CARE ESTABLISHMENT,OPPD - Cost of Care - Huntingdon Blocks,Hunts - Short term blocks,Rehabilitation And Respite Care
Cambridgeshire County Council,02-Sep-22,51301847532,"1,925.10",THE RED HOUSE RESIDENTIAL & NURSING HOME,CARE ESTABLISHMENT,OPPD - Cost of Care - Huntingdon Blocks,Hunts - Long term blocks,Nursing Care
Cambridgeshire County Council,02-Sep-22,51301847532,"1,925.10",THE RED HOUSE RESIDENTIAL & NURSING HOME,CARE ESTABLISHMENT,OPPD - Cost of Care - Huntingdon Blocks,Hunts - Long term blocks,Nursing Care
Cambridgeshire County Council,02-Sep-22,51301847532,"1,925.10",THE RED HOUSE RESIDENTIAL & NURSING HOME,CARE ESTABLISHMENT,OPPD - Cost of Care - Huntingdon Blocks,Hunts - Long term blocks,Nursing Care
Cambridgeshire County Council,02-Sep-22,51301847532,"1,925.10",THE RED HOUSE RESIDENTIAL & NURSING HOME,CARE ESTABLISHMENT,OPPD - Cost of Care - Huntingdon Blocks,Hunts - Long term blocks,Nursing Care
Cambridgeshire County Council,02-Sep-22,51301847596,"1,934.68",FITZROY SUPPORT RE 28 RIVERBANK,CARE ESTABLISHMENT,LD - Fenland Locality - Cost of Care,LD - Fenland  - Care,Supported Living
Cambridgeshire County Council,02-Sep-22,51301847596,"1,934.68",FITZROY SUPPORT RE 28 RIVERBANK,CARE ESTABLISHMENT,LD - Fenland Locality - Cost of Care,LD - Fenland  - Care,Supported Living
Cambridgeshire County Council,02-Sep-22,51301847596,"1,934.68",FITZROY SUPPORT RE 28 RIVERBANK,CARE ESTABLISHMENT,LD - Fenland Locality - Cost of Care,LD - Fenland  - Care,Supported Living
Cambridgeshire County Council,02-Sep-22,51301847596,"1,934.68",FITZROY SUPPORT RE 28 RIVERBANK,CARE ESTABLISHMENT,LD - Fenland Locality - Cost of Care,LD - Fenland  - Care,Supported Living
Cambridgeshire County Council,02-Sep-22,51301847596,"1,934.68",FITZROY SUPPORT RE 28 RIVERBANK,CARE ESTABLISHMENT,LD - Fenland Locality - Cost of Care,LD - Fenland  - Care,Supported Living
Cambridgeshire County Council,02-Sep-22,51301847596,"1,934.68",FITZROY SUPPORT RE 28 RIVERBANK,CARE ESTABLISHMENT,LD - Fenland Locality - Cost of Care,LD - Fenland  - Care,Supported Living
Cambridgeshire County Council,02-Sep-22,51301847596,"1,934.68",FITZROY SUPPORT RE 28 RIVERBANK,CARE ESTABLISHMENT,LD - Fenland Locality - Cost of Care,LD - Fenland  - Care,Supported Living
Cambridgeshire County Council,02-Sep-22,51301847596,"1,934.68",FITZROY SUPPORT RE 28 RIVERBANK,CARE ESTABLISHMENT,LD - Fenland Locality - Cost of Care,LD - Fenland  - Care,Supported Living
Cambridgeshire County Council,02-Sep-22,51301847596,"1,934.68",FITZROY SUPPORT RE 28 RIVERBANK,CARE ESTABLISHMENT,LD - Fenland Locality - Cost of Care,LD - Fenland  - Care,Supported Living
Cambridgeshire County Council,02-Sep-22,51301847596,"1,934.68",FITZROY SUPPORT RE 28 RIVERBANK,CARE ESTABLISHMENT,LD - Fenland Locality - Cost of Care,LD - Fenland  - Care,Supported Living
Cambridgeshire County Council,02-Sep-22,51301847596,"1,934.68",FITZROY SUPPORT RE 28 RIVERBANK,CARE ESTABLISHMENT,LD - Fenland Locality - Cost of Care,LD - Fenland  - Care,Supported Living
Cambridgeshire County Council,02-Sep-22,51301847596,"1,934.68",FITZROY SUPPORT RE 28 RIVERBANK,CARE ESTABLISHMENT,LD - Fenland Locality - Cost of Care,LD - Fenland  - Care,Supported Living
Cambridgeshire County Council,02-Sep-22,51301847596,"1,934.68",FITZROY SUPPORT RE 28 RIVERBANK,CARE ESTABLISHMENT,LD - Fenland Locality - Cost of Care,LD - Fenland  - Care,Supported Living
Cambridgeshire County Council,02-Sep-22,51301847596,"1,934.68",FITZROY SUPPORT RE 28 RIVERBANK,CARE ESTABLISHMENT,LD - Fenland Locality - Cost of Care,LD - Fenland  - Care,Supported Living
Cambridgeshire County Council,02-Sep-22,51301847596,"1,934.68",FITZROY SUPPORT RE 28 RIVERBANK,CARE ESTABLISHMENT,LD - Fenland Locality - Cost of Care,LD - Fenland  - Care,Supported Living
Cambridgeshire County Council,02-Sep-22,51301847596,"1,934.68",FITZROY SUPPORT RE 28 RIVERBANK,CARE ESTABLISHMENT,LD - Fenland Locality - Cost of Care,LD - Fenland  - Care,Supported Living
Cambridgeshire County Council,02-Sep-22,51301847596,"1,934.68",FITZROY SUPPORT RE 28 RIVERBANK,CARE ESTABLISHMENT,LD - Fenland Locality - Cost of Care,LD - Fenland  - Care,Supported Living
Cambridgeshire County Council,02-Sep-22,51301847596,"1,934.68",FITZROY SUPPORT RE 28 RIVERBANK,CARE ESTABLISHMENT,LD - Fenland Locality - Cost of Care,LD - Fenland  - Care,Supported Living
Cambridgeshire County Council,02-Sep-22,51301847596,"1,934.68",FITZROY SUPPORT RE 28 RIVERBANK,CARE ESTABLISHMENT,LD - Fenland Locality - Cost of Care,LD - Fenland  - Care,Supported Living
Cambridgeshire County Council,02-Sep-22,51301847596,"1,934.68",FITZROY SUPPORT RE 28 RIVERBANK,CARE ESTABLISHMENT,LD - Fenland Locality - Cost of Care,LD - Fenland  - Care,Supported Living
Cambridgeshire County Council,02-Sep-22,51301847596,"1,934.68",FITZROY SUPPORT RE 28 RIVERBANK,CARE ESTABLISHMENT,LD - Fenland Locality - Cost of Care,LD - Fenland  - Care,Supported Living
Cambridgeshire County Council,02-Sep-22,51301847596,"1,934.68",FITZROY SUPPORT RE 28 RIVERBANK,CARE ESTABLISHMENT,LD - Fenland Locality - Cost of Care,LD - Fenland  - Care,Supported Living
Cambridgeshire County Council,02-Sep-22,51301847596,"1,934.68",FITZROY SUPPORT RE 28 RIVERBANK,CARE ESTABLISHMENT,LD - Fenland Locality - Cost of Care,LD - Fenland  - Care,Supported Living
Cambridgeshire County Council,02-Sep-22,51301847577,"1,949.94",K RAVIVARUMAN T/A FAIR HAVEN CARE HOME,CARE ESTABLISHMENT,OPPD - Cost of Care - East Cambs Blocks,East Cambs � Long term Blocks,Residential Care
Cambridgeshire County Council,02-Sep-22,51301847577,"1,949.94",K RAVIVARUMAN T/A FAIR HAVEN CARE HOME,CARE ESTABLISHMENT,OPPD - Cost of Care - East Cambs Blocks,East Cambs � Long term Blocks,Residential Care
Cambridgeshire County Council,02-Sep-22,51301847577,"1,949.94",K RAVIVARUMAN T/A FAIR HAVEN CARE HOME,CARE ESTABLISHMENT,OPPD - Cost of Care - East Cambs Blocks,East Cambs � Long term Blocks,Residential Care
Cambridgeshire County Council,02-Sep-22,51301847577,"1,949.94",K RAVIVARUMAN T/A FAIR HAVEN CARE HOME,CARE ESTABLISHMENT,OPPD - Cost of Care - East Cambs Blocks,East Cambs � Long term Blocks,Residential Care
Cambridgeshire County Council,02-Sep-22,51301834497,"1,950.00",MKA Ecology Ltd,COMPANY,Greenspaces,Greenspaces,Professional Fees and Hired Services
Cambridgeshire County Council,02-Sep-22,51301839895,"1,953.36",Pathfinder Legal Services Limited,TRADE SUPPLIER,Strategic Management - Adults,Service Director - Adults and Safeguarding,External Legal Fees
Cambridgeshire County Council,02-Sep-22,51301847609,"1,978.07",CRAEGMOOR SYI EAST ANGLIA PRIORY,CARE ESTABLISHMENT,LD - Hunts Locality - Cost of Care,LD - Huntingdonshire - Care,Supported Living
Cambridgeshire County Council,02-Sep-22,51301847609,"1,978.07",CRAEGMOOR SYI EAST ANGLIA PRIORY,CARE ESTABLISHMENT,LD - Hunts Locality - Cost of Care,LD - Huntingdonshire - Care,Supported Living
Cambridgeshire County Council,02-Sep-22,51301847609,"1,978.07",CRAEGMOOR SYI EAST ANGLIA PRIORY,CARE ESTABLISHMENT,LD - Hunts Locality - Cost of Care,LD - Huntingdonshire - Care,Supported Living
Cambridgeshire County Council,02-Sep-22,51301847609,"1,978.07",CRAEGMOOR SYI EAST ANGLIA PRIORY,CARE ESTABLISHMENT,LD - Hunts Locality - Cost of Care,LD - Huntingdonshire - Care,Supported Living
Cambridgeshire County Council,02-Sep-22,51301847609,"1,978.07",CRAEGMOOR SYI EAST ANGLIA PRIORY,CARE ESTABLISHMENT,LD - Hunts Locality - Cost of Care,LD - Huntingdonshire - Care,Supported Living
Cambridgeshire County Council,02-Sep-22,51301847609,"1,978.07",CRAEGMOOR SYI EAST ANGLIA PRIORY,CARE ESTABLISHMENT,LD - Hunts Locality - Cost of Care,LD - Huntingdonshire - Care,Supported Living
Cambridgeshire County Council,02-Sep-22,51301847609,"1,978.07",CRAEGMOOR SYI EAST ANGLIA PRIORY,CARE ESTABLISHMENT,LD - Hunts Locality - Cost of Care,LD - Huntingdonshire - Care,Supported Living
Cambridgeshire County Council,02-Sep-22,51301847532,"1,987.20",THE RED HOUSE RESIDENTIAL & NURSING HOME,CARE ESTABLISHMENT,OPPD - Cost of Care - Huntingdon Blocks,Hunts - Long term blocks,Nursing Care
Cambridgeshire County Council,02-Sep-22,51301847532,"1,987.20",THE RED HOUSE RESIDENTIAL & NURSING HOME,CARE ESTABLISHMENT,OPPD - Cost of Care - Huntingdon Blocks,Hunts - Long term blocks,Nursing Care
Cambridgeshire County Council,02-Sep-22,51301847532,"1,987.20",THE RED HOUSE RESIDENTIAL & NURSING HOME,CARE ESTABLISHMENT,OPPD - Cost of Care - Huntingdon Blocks,Hunts - Long term blocks,Nursing Care
Cambridgeshire County Council,02-Sep-22,51301847532,"1,987.20",THE RED HOUSE RESIDENTIAL & NURSING HOME,CARE ESTABLISHMENT,OPPD - Cost of Care - Huntingdon Blocks,Hunts - Long term blocks,Nursing Care
Cambridgeshire County Council,02-Sep-22,51301847532,"1,987.20",THE RED HOUSE RESIDENTIAL & NURSING HOME,CARE ESTABLISHMENT,OPPD - Cost of Care - Huntingdon Blocks,Hunts - Long term blocks,Nursing Care
Cambridgeshire County Council,02-Sep-22,51301847532,"1,987.20",THE RED HOUSE RESIDENTIAL & NURSING HOME,CARE ESTABLISHMENT,OPPD - Cost of Care - Huntingdon Blocks,Hunts - Long term blocks,Nursing Care
Cambridgeshire County Council,02-Sep-22,51301847532,"1,987.20",THE RED HOUSE RESIDENTIAL & NURSING HOME,CARE ESTABLISHMENT,OPPD - Cost of Care - Huntingdon Blocks,Hunts - Long term blocks,Nursing Care
Cambridgeshire County Council,02-Sep-22,51301847532,"1,987.20",THE RED HOUSE RESIDENTIAL & NURSING HOME,CARE ESTABLISHMENT,OPPD - Cost of Care - Huntingdon Blocks,Hunts - Long term blocks,Nursing Care
Cambridgeshire County Council,02-Sep-22,51301847508,"2,000.00",Redacted Personal Data,INDIVIDUAL,LD - Young Adults Team,LD - Young Adults - Care,Direct Payments
Cambridgeshire County Council,02-Sep-22,51301847636,"2,022.66",YEW TREE CARE LIMITED,CARE ESTABLISHMENT,LD - South Locality - Cost of Care,LD - South Cambs - Care,Supported Living
Cambridgeshire County Council,02-Sep-22,51301847576,"2,033.79",K RAVIVARUMAN T/A FAIR HAVEN CARE HOME,CARE ESTABLISHMENT,OPPD - Cost of Care - East Cambs Blocks,East Cambs � Long term Blocks,Residential Care
Cambridgeshire County Council,02-Sep-22,51301847576,"2,033.79",K RAVIVARUMAN T/A FAIR HAVEN CARE HOME,CARE ESTABLISHMENT,OPPD - Cost of Care - East Cambs Blocks,East Cambs � Long term Blocks,Residential Care
Cambridgeshire County Council,02-Sep-22,51301847576,"2,033.79",K RAVIVARUMAN T/A FAIR HAVEN CARE HOME,CARE ESTABLISHMENT,OPPD - Cost of Care - East Cambs Blocks,East Cambs � Long term Blocks,Residential Care
Cambridgeshire County Council,02-Sep-22,51301847576,"2,033.79",K RAVIVARUMAN T/A FAIR HAVEN CARE HOME,CARE ESTABLISHMENT,OPPD - Cost of Care - East Cambs Blocks,East Cambs � Long term Blocks,Residential Care
Cambridgeshire County Council,02-Sep-22,51301847406,"2,038.50",Pathfinder Legal Services Limited,TRADE SUPPLIER,Wing Development,Wing Development,Construction - External Professional Fees
Cambridgeshire County Council,02-Sep-22,51301834529,"2,040.00",Woodventurers Woodland Learning Ltd,EDUCATION,Out of School Tuition,Out of School Provision - Education and Settings,Independent School Placements
Cambridgeshire County Council,02-Sep-22,51301847531,"2,055.51",POTTON VIEW,CARE ESTABLISHMENT,OPPD - Cost of Care - City South Blocks,City and South - Short term blocks,Rehabilitation And Respite Care
Cambridgeshire County Council,02-Sep-22,51301847531,"2,055.51",POTTON VIEW,CARE ESTABLISHMENT,OPPD - Cost of Care - City South Blocks,City and South - Short term blocks,Rehabilitation And Respite Care
Cambridgeshire County Council,02-Sep-22,51301847531,"2,055.51",POTTON VIEW,CARE ESTABLISHMENT,OPPD - Cost of Care - City South Blocks,City and South - Short term blocks,Rehabilitation And Respite Care
Cambridgeshire County Council,02-Sep-22,51301847531,"2,055.51",POTTON VIEW,CARE ESTABLISHMENT,OPPD - Cost of Care - City South Blocks,City and South - Short term blocks,Rehabilitation And Respite Care
Cambridgeshire County Council,02-Sep-22,51301847544,"2,055.51",THE CAMBRIDGE NURSING CENTRE,CARE ESTABLISHMENT,OPPD - Cost of Care - City South Blocks,City and South - Long term blocks,Nursing Care
Cambridgeshire County Council,02-Sep-22,51301847544,"2,055.51",THE CAMBRIDGE NURSING CENTRE,CARE ESTABLISHMENT,OPPD - Cost of Care - City South Blocks,City and South - Long term blocks,Nursing Care
Cambridgeshire County Council,02-Sep-22,51301847544,"2,055.51",THE CAMBRIDGE NURSING CENTRE,CARE ESTABLISHMENT,OPPD - Cost of Care - City South Blocks,City and South - Long term blocks,Nursing Care
Cambridgeshire County Council,02-Sep-22,51301847544,"2,055.51",THE CAMBRIDGE NURSING CENTRE,CARE ESTABLISHMENT,OPPD - Cost of Care - City South Blocks,City and South - Long term blocks,Nursing Care
Cambridgeshire County Council,02-Sep-22,51301847544,"2,055.51",THE CAMBRIDGE NURSING CENTRE,CARE ESTABLISHMENT,OPPD - Cost of Care - City South Blocks,City and South - Long term blocks,Nursing Care
Cambridgeshire County Council,02-Sep-22,51301847278,"2,086.83",CARETECH COMMUNITY SERVICES,CARE ESTABLISHMENT,LAC Placements,Placements - supported accommodation,Agency Placements - In County
Cambridgeshire County Council,02-Sep-22,51301839190,"2,098.25",Mercylink Care services Ltd,CARE ESTABLISHMENT,Disability Clubs,CamPlay Holiday Clubs,Agency Staff
Cambridgeshire County Council,02-Sep-22,51301847560,"2,173.50",THE ELMS NURSING HOME,CARE ESTABLISHMENT,OPPD - Cost of Care - Fenland Blocks,Fenland - Long term blocks,Nursing Care
Cambridgeshire County Council,02-Sep-22,51301847560,"2,173.50",THE ELMS NURSING HOME,CARE ESTABLISHMENT,OPPD - Cost of Care - Fenland Blocks,Fenland - Long term blocks,Nursing Care
Cambridgeshire County Council,02-Sep-22,51301847560,"2,173.50",THE ELMS NURSING HOME,CARE ESTABLISHMENT,OPPD - Cost of Care - Fenland Blocks,Fenland - Long term blocks,Nursing Care
Cambridgeshire County Council,02-Sep-22,51301847560,"2,173.50",THE ELMS NURSING HOME,CARE ESTABLISHMENT,OPPD - Cost of Care - Fenland Blocks,Fenland - Long term blocks,Nursing Care
Cambridgeshire County Council,02-Sep-22,51301847560,"2,173.50",THE ELMS NURSING HOME,CARE ESTABLISHMENT,OPPD - Cost of Care - Fenland Blocks,Fenland - Long term blocks,Nursing Care
Cambridgeshire County Council,02-Sep-22,51301847560,"2,173.50",THE ELMS NURSING HOME,CARE ESTABLISHMENT,OPPD - Cost of Care - Fenland Blocks,Fenland - Long term blocks,Nursing Care
Cambridgeshire County Council,02-Sep-22,51301847289,"2,175.00",MOVING UP CARE,CARE ESTABLISHMENT,LAC Placements,Placements - supported accommodation,Agency Placements - In County
Cambridgeshire County Council,02-Sep-22,51301847287,"2,175.00",MOVING UP CARE,CARE ESTABLISHMENT,LAC Placements,Placements - supported accommodation,Agency Placements - In County
Cambridgeshire County Council,02-Sep-22,51301847284,"2,175.00",MOVING UP CARE,CARE ESTABLISHMENT,LAC Placements,Placements - supported accommodation,Agency Placements - In County
Cambridgeshire County Council,02-Sep-22,51301847281,"2,175.00",MOVING UP CARE,CARE ESTABLISHMENT,LAC Placements,Placements - supported accommodation,Agency Placements - In County
Cambridgeshire County Council,02-Sep-22,51301847585,"2,237.44",RADIS COMMUNITY CARE,CARE ESTABLISHMENT,OPPD - Cost of Care - Fenland - Over 65,Older People - Fenland - Care,Supported Living
Cambridgeshire County Council,02-Sep-22,51301847545,"2,248.02",CARE UK LIMITED,CARE ESTABLISHMENT,OPPD - Cost of Care - Huntingdon Blocks,Hunts - Long term blocks,Nursing Care
Cambridgeshire County Council,02-Sep-22,51301847545,"2,248.02",CARE UK LIMITED,CARE ESTABLISHMENT,OPPD - Cost of Care - Huntingdon Blocks,Hunts - Long term blocks,Nursing Care
Cambridgeshire County Council,02-Sep-22,51301847545,"2,248.02",CARE UK LIMITED,CARE ESTABLISHMENT,OPPD - Cost of Care - Huntingdon Blocks,Hunts - Long term blocks,Nursing Care
Cambridgeshire County Council,02-Sep-22,51301847545,"2,248.02",CARE UK LIMITED,CARE ESTABLISHMENT,OPPD - Cost of Care - Huntingdon Blocks,Hunts - Long term blocks,Nursing Care
Cambridgeshire County Council,02-Sep-22,51301847545,"2,248.02",CARE UK LIMITED,CARE ESTABLISHMENT,OPPD - Cost of Care - Huntingdon Blocks,Hunts - Long term blocks,Nursing Care
Cambridgeshire County Council,02-Sep-22,51301847545,"2,248.02",CARE UK LIMITED,CARE ESTABLISHMENT,OPPD - Cost of Care - Huntingdon Blocks,Hunts - Long term blocks,Nursing Care
Cambridgeshire County Council,02-Sep-22,51301847532,"2,248.02",THE RED HOUSE RESIDENTIAL & NURSING HOME,CARE ESTABLISHMENT,OPPD - Cost of Care - Huntingdon Blocks,Hunts - Long term blocks,Nursing Care
Cambridgeshire County Council,02-Sep-22,51301847532,"2,248.02",THE RED HOUSE RESIDENTIAL & NURSING HOME,CARE ESTABLISHMENT,OPPD - Cost of Care - Huntingdon Blocks,Hunts - Long term blocks,Nursing Care
Cambridgeshire County Council,02-Sep-22,51301847532,"2,248.02",THE RED HOUSE RESIDENTIAL & NURSING HOME,CARE ESTABLISHMENT,OPPD - Cost of Care - Huntingdon Blocks,Hunts - Long term blocks,Nursing Care
Cambridgeshire County Council,02-Sep-22,51301847532,"2,248.02",THE RED HOUSE RESIDENTIAL & NURSING HOME,CARE ESTABLISHMENT,OPPD - Cost of Care - Huntingdon Blocks,Hunts - Long term blocks,Nursing Care
Cambridgeshire County Council,02-Sep-22,51301847249,"2,257.66",SITEIMPROVE LTD,TRADE SUPPLIER,System Licences,System Software & Licences,Computer software - annual licence agreement
Cambridgeshire County Council,02-Sep-22,51301837654,"2,279.98",AVAILL HEALTHCARE,CARE ESTABLISHMENT,IHPS - South Accommodation Services,8b Wagstaff Close,Agency Staff
Cambridgeshire County Council,02-Sep-22,51301834826,"2,304.00",FLEET EDUCATION SERVICES LTD,TRADE SUPPLIER,Out of School Tuition,SEND Specialist Services - SEMH Support Programme,Professional Fees and Hired Services
Cambridgeshire County Council,02-Sep-22,51301847585,"2,342.03",RADIS COMMUNITY CARE,CARE ESTABLISHMENT,OPPD - Cost of Care - Fenland - Over 65,Older People - Fenland - Care,Supported Living
Cambridgeshire County Council,02-Sep-22,51301834320,"2,383.20",FLOCKTONS TVP LTD,COMPANY,Winter Maintenance,Central Winter Maintenance,Building Repair and Maintenance
Cambridgeshire County Council,02-Sep-22,51301847534,"2,421.92",BLACK SWAN CARE GROUP LTD,CARE ESTABLISHMENT,OPPD - Cost of Care - Fenland Blocks,Fenland - Long term blocks,Residential Care
Cambridgeshire County Council,02-Sep-22,51301847534,"2,421.92",BLACK SWAN CARE GROUP LTD,CARE ESTABLISHMENT,OPPD - Cost of Care - Fenland Blocks,Fenland - Long term blocks,Residential Care
Cambridgeshire County Council,02-Sep-22,51301847534,"2,421.92",BLACK SWAN CARE GROUP LTD,CARE ESTABLISHMENT,OPPD - Cost of Care - Fenland Blocks,Fenland - Long term blocks,Residential Care
Cambridgeshire County Council,02-Sep-22,51301847534,"2,421.92",BLACK SWAN CARE GROUP LTD,CARE ESTABLISHMENT,OPPD - Cost of Care - Fenland Blocks,Fenland - Long term blocks,Residential Care
Cambridgeshire County Council,02-Sep-22,51301847528,"2,421.92",SWAN HOUSE NURSING & RESIDENTIAL HOME,CARE ESTABLISHMENT,OPPD - Cost of Care - Fenland Blocks,Fenland - Long term blocks,Nursing Care
Cambridgeshire County Council,02-Sep-22,51301847528,"2,421.92",SWAN HOUSE NURSING & RESIDENTIAL HOME,CARE ESTABLISHMENT,OPPD - Cost of Care - Fenland Blocks,Fenland - Long term blocks,Nursing Care
Cambridgeshire County Council,02-Sep-22,51301847528,"2,421.92",SWAN HOUSE NURSING & RESIDENTIAL HOME,CARE ESTABLISHMENT,OPPD - Cost of Care - Fenland Blocks,Fenland - Long term blocks,Nursing Care
Cambridgeshire County Council,02-Sep-22,51301847528,"2,421.92",SWAN HOUSE NURSING & RESIDENTIAL HOME,CARE ESTABLISHMENT,OPPD - Cost of Care - Fenland Blocks,Fenland - Long term blocks,Nursing Care
Cambridgeshire County Council,02-Sep-22,51301847584,"2,445.99",RADIS COMMUNITY CARE,CARE ESTABLISHMENT,OPPD - Cost of Care - City South - Over 65,Older People - City & South - Care,Supported Living
Cambridgeshire County Council,02-Sep-22,51301847591,"2,455.75",MULTI CARE COMMUNITY SERVICES,CARE ESTABLISHMENT,Commissioning - Dom Cars,Hancock-Funded Dom-Cars,Domiciliary Care
Cambridgeshire County Council,02-Sep-22,51301847591,"2,455.75",MULTI CARE COMMUNITY SERVICES,CARE ESTABLISHMENT,Commissioning - Dom Cars,Hancock-Funded Dom-Cars,Domiciliary Care
Cambridgeshire County Council,02-Sep-22,51301847591,"2,455.75",MULTI CARE COMMUNITY SERVICES,CARE ESTABLISHMENT,Commissioning - Dom Cars,Hancock-Funded Dom-Cars,Domiciliary Care
Cambridgeshire County Council,02-Sep-22,51301847591,"2,455.75",MULTI CARE COMMUNITY SERVICES,CARE ESTABLISHMENT,Commissioning - Dom Cars,Hancock-Funded Dom-Cars,Domiciliary Care
Cambridgeshire County Council,02-Sep-22,51301847592,"2,455.75",MULTI CARE COMMUNITY SERVICES,CARE ESTABLISHMENT,Commissioning - Dom Cars,Hancock-Funded Dom-Cars,Domiciliary Care
Cambridgeshire County Council,02-Sep-22,51301847592,"2,455.75",MULTI CARE COMMUNITY SERVICES,CARE ESTABLISHMENT,Commissioning - Dom Cars,Hancock-Funded Dom-Cars,Domiciliary Care
Cambridgeshire County Council,02-Sep-22,51301847592,"2,455.75",MULTI CARE COMMUNITY SERVICES,CARE ESTABLISHMENT,Commissioning - Dom Cars,Hancock-Funded Dom-Cars,Domiciliary Care
Cambridgeshire County Council,02-Sep-22,51301847592,"2,455.75",MULTI CARE COMMUNITY SERVICES,CARE ESTABLISHMENT,Commissioning - Dom Cars,Hancock-Funded Dom-Cars,Domiciliary Care
Cambridgeshire County Council,02-Sep-22,51301847550,"2,476.08",BROOKFIELD CARE (Radis Commnity Care),CARE ESTABLISHMENT,Commissioning - Dom Cars,Hancock-Funded Dom-Cars,Domiciliary Care
Cambridgeshire County Council,02-Sep-22,51301847550,"2,476.08",BROOKFIELD CARE (Radis Commnity Care),CARE ESTABLISHMENT,Commissioning - Dom Cars,Hancock-Funded Dom-Cars,Domiciliary Care
Cambridgeshire County Council,02-Sep-22,51301847550,"2,476.08",BROOKFIELD CARE (Radis Commnity Care),CARE ESTABLISHMENT,Commissioning - Dom Cars,Hancock-Funded Dom-Cars,Domiciliary Care
Cambridgeshire County Council,02-Sep-22,51301847550,"2,476.08",BROOKFIELD CARE (Radis Commnity Care),CARE ESTABLISHMENT,Commissioning - Dom Cars,Hancock-Funded Dom-Cars,Domiciliary Care
Cambridgeshire County Council,02-Sep-22,51301847583,"2,476.56",RADIS COMMUNITY CARE,CARE ESTABLISHMENT,OPPD - Cost of Care - Fenland - Over 65,Older People - Fenland - Care,Supported Living
Cambridgeshire County Council,02-Sep-22,51301847586,"2,476.56",RADIS COMMUNITY CARE,CARE ESTABLISHMENT,OPPD - Cost of Care - Huntingdon - Over 65,Hunts OP Team - Care,Supported Living
Cambridgeshire County Council,02-Sep-22,51301847573,"2,484.00",HOME CLOSE LTD,CARE ESTABLISHMENT,OPPD - Cost of Care - City South Blocks,City and South - Long term blocks,Nursing Care
Cambridgeshire County Council,02-Sep-22,51301847573,"2,484.00",HOME CLOSE LTD,CARE ESTABLISHMENT,OPPD - Cost of Care - City South Blocks,City and South - Long term blocks,Nursing Care
Cambridgeshire County Council,02-Sep-22,51301847573,"2,484.00",HOME CLOSE LTD,CARE ESTABLISHMENT,OPPD - Cost of Care - City South Blocks,City and South - Long term blocks,Nursing Care
Cambridgeshire County Council,02-Sep-22,51301847573,"2,484.00",HOME CLOSE LTD,CARE ESTABLISHMENT,OPPD - Cost of Care - City South Blocks,City and South - Long term blocks,Nursing Care
Cambridgeshire County Council,02-Sep-22,51301847560,"2,484.00",THE ELMS NURSING HOME,CARE ESTABLISHMENT,OPPD - Cost of Care - Fenland Blocks,Fenland - Long term blocks,Nursing Care
Cambridgeshire County Council,02-Sep-22,51301847560,"2,484.00",THE ELMS NURSING HOME,CARE ESTABLISHMENT,OPPD - Cost of Care - Fenland Blocks,Fenland - Long term blocks,Nursing Care
Cambridgeshire County Council,02-Sep-22,51301847560,"2,484.00",THE ELMS NURSING HOME,CARE ESTABLISHMENT,OPPD - Cost of Care - Fenland Blocks,Fenland - Long term blocks,Nursing Care
Cambridgeshire County Council,02-Sep-22,51301847560,"2,484.00",THE ELMS NURSING HOME,CARE ESTABLISHMENT,OPPD - Cost of Care - Fenland Blocks,Fenland - Long term blocks,Nursing Care
Cambridgeshire County Council,02-Sep-22,51301847544,"2,484.00",THE CAMBRIDGE NURSING CENTRE,CARE ESTABLISHMENT,OPPD - Cost of Care - City South Blocks,City and South - Long term blocks,Nursing Care
Cambridgeshire County Council,02-Sep-22,51301847264,"2,500.00",JLD Consultancy Services Limited,COMPANY,Strategic Parks and Greenspaces,Strategic Parks and Greenspaces,Consultancy
Cambridgeshire County Council,02-Sep-22,51301847581,"2,566.80",THE HILLINGS LIMITED,CARE ESTABLISHMENT,OPPD - Cost of Care - Huntingdon Blocks,Hunts - Long term blocks,Residential Care
Cambridgeshire County Council,02-Sep-22,51301847581,"2,566.80",THE HILLINGS LIMITED,CARE ESTABLISHMENT,OPPD - Cost of Care - Huntingdon Blocks,Hunts - Long term blocks,Residential Care
Cambridgeshire County Council,02-Sep-22,51301847581,"2,566.80",THE HILLINGS LIMITED,CARE ESTABLISHMENT,OPPD - Cost of Care - Huntingdon Blocks,Hunts - Long term blocks,Residential Care
Cambridgeshire County Council,02-Sep-22,51301847581,"2,566.80",THE HILLINGS LIMITED,CARE ESTABLISHMENT,OPPD - Cost of Care - Huntingdon Blocks,Hunts - Long term blocks,Residential Care
Cambridgeshire County Council,02-Sep-22,51301847532,"2,566.80",THE RED HOUSE RESIDENTIAL & NURSING HOME,CARE ESTABLISHMENT,OPPD - Cost of Care - Huntingdon Blocks,Hunts - Long term blocks,Nursing Care
Cambridgeshire County Council,02-Sep-22,51301847532,"2,566.80",THE RED HOUSE RESIDENTIAL & NURSING HOME,CARE ESTABLISHMENT,OPPD - Cost of Care - Huntingdon Blocks,Hunts - Long term blocks,Nursing Care
Cambridgeshire County Council,02-Sep-22,51301847532,"2,566.80",THE RED HOUSE RESIDENTIAL & NURSING HOME,CARE ESTABLISHMENT,OPPD - Cost of Care - Huntingdon Blocks,Hunts - Long term blocks,Nursing Care
Cambridgeshire County Council,02-Sep-22,51301847532,"2,566.80",THE RED HOUSE RESIDENTIAL & NURSING HOME,CARE ESTABLISHMENT,OPPD - Cost of Care - Huntingdon Blocks,Hunts - Long term blocks,Nursing Care
Cambridgeshire County Council,02-Sep-22,51301847578,"2,599.92",THE FIRS (Barrels Care),CARE ESTABLISHMENT,OPPD - Cost of Care - East Cambs Blocks,East Cambs � Long term Blocks,Residential Care
Cambridgeshire County Council,02-Sep-22,51301847578,"2,599.92",THE FIRS (Barrels Care),CARE ESTABLISHMENT,OPPD - Cost of Care - East Cambs Blocks,East Cambs � Long term Blocks,Residential Care
Cambridgeshire County Council,02-Sep-22,51301847578,"2,599.92",THE FIRS (Barrels Care),CARE ESTABLISHMENT,OPPD - Cost of Care - East Cambs Blocks,East Cambs � Long term Blocks,Residential Care
Cambridgeshire County Council,02-Sep-22,51301847578,"2,599.92",THE FIRS (Barrels Care),CARE ESTABLISHMENT,OPPD - Cost of Care - East Cambs Blocks,East Cambs � Long term Blocks,Residential Care
Cambridgeshire County Council,02-Sep-22,51301831764,"2,640.00",HUNTINGDONSHIRE DISTRICT COUNCIL,OTHER PUBLIC BODIES,PH COMF,PH - Contain Outbreak Management Fund,Professional Fees and Hired Services
Cambridgeshire County Council,02-Sep-22,51301847588,"2,649.60",AISLING LODGE (MD CARE HOMES),CARE ESTABLISHMENT,OPPD - Cost of Care - Huntingdon Blocks,Hunts - Long term blocks,Residential Care
Cambridgeshire County Council,02-Sep-22,51301847588,"2,649.60",AISLING LODGE (MD CARE HOMES),CARE ESTABLISHMENT,OPPD - Cost of Care - Huntingdon Blocks,Hunts - Long term blocks,Residential Care
Cambridgeshire County Council,02-Sep-22,51301847588,"2,649.60",AISLING LODGE (MD CARE HOMES),CARE ESTABLISHMENT,OPPD - Cost of Care - Huntingdon Blocks,Hunts - Long term blocks,Residential Care
Cambridgeshire County Council,02-Sep-22,51301847588,"2,649.60",AISLING LODGE (MD CARE HOMES),CARE ESTABLISHMENT,OPPD - Cost of Care - Huntingdon Blocks,Hunts - Long term blocks,Residential Care
Cambridgeshire County Council,02-Sep-22,51301847563,"2,661.43",THE GABLES SPECIALIST NURSING HOME,CARE ESTABLISHMENT,OPPD - Cost of Care - Fenland Blocks,Fenland - Long term blocks,Nursing Care
Cambridgeshire County Council,02-Sep-22,51301847544,"2,740.68",THE CAMBRIDGE NURSING CENTRE,CARE ESTABLISHMENT,OPPD - Cost of Care - City South Blocks,City and South - Long term blocks,Nursing Care
Cambridgeshire County Council,02-Sep-22,51301847544,"2,740.68",THE CAMBRIDGE NURSING CENTRE,CARE ESTABLISHMENT,OPPD - Cost of Care - City South Blocks,City and South - Long term blocks,Nursing Care
Cambridgeshire County Council,02-Sep-22,51301847544,"2,740.68",THE CAMBRIDGE NURSING CENTRE,CARE ESTABLISHMENT,OPPD - Cost of Care - City South Blocks,City and South - Long term blocks,Nursing Care
Cambridgeshire County Council,02-Sep-22,51301847544,"2,740.68",THE CAMBRIDGE NURSING CENTRE,CARE ESTABLISHMENT,OPPD - Cost of Care - City South Blocks,City and South - Long term blocks,Nursing Care
Cambridgeshire County Council,02-Sep-22,51301847544,"2,740.68",THE CAMBRIDGE NURSING CENTRE,CARE ESTABLISHMENT,OPPD - Cost of Care - City South Blocks,City and South - Long term blocks,Nursing Care
Cambridgeshire County Council,02-Sep-22,51301847549,"2,800.00",Maven Healthcare,CARE ESTABLISHMENT,OPPD - Cost of Care - City South Blocks,City and South - Long term blocks,Nursing Care
Cambridgeshire County Council,02-Sep-22,51301847368,"2,826.00",WSP Environment & Infrastructure Solutions UK Limited,COMPANY,Waste - HWRC,Waste - HWRC,Construction - External Professional Fees
Cambridgeshire County Council,02-Sep-22,51301847568,"2,896.85",Allied Health-Services Limited,CARE ESTABLISHMENT,OPPD - Cost of Care - City South - Over 65,Older People - City & South - Care,Supported Living
Cambridgeshire County Council,02-Sep-22,51301847568,"2,896.85",Allied Health-Services Limited,CARE ESTABLISHMENT,OPPD - Cost of Care - City South - Over 65,Older People - City & South - Care,Supported Living
Cambridgeshire County Council,02-Sep-22,51301847568,"2,896.85",Allied Health-Services Limited,CARE ESTABLISHMENT,OPPD - Cost of Care - City South - Over 65,Older People - City & South - Care,Supported Living
Cambridgeshire County Council,02-Sep-22,51301847568,"2,896.85",Allied Health-Services Limited,CARE ESTABLISHMENT,OPPD - Cost of Care - City South - Over 65,Older People - City & South - Care,Supported Living
Cambridgeshire County Council,02-Sep-22,51301847528,"2,898.00",SWAN HOUSE NURSING & RESIDENTIAL HOME,CARE ESTABLISHMENT,OPPD - Cost of Care - Fenland Blocks,Fenland - Long term blocks,Nursing Care
Cambridgeshire County Council,02-Sep-22,51301847528,"2,898.00",SWAN HOUSE NURSING & RESIDENTIAL HOME,CARE ESTABLISHMENT,OPPD - Cost of Care - Fenland Blocks,Fenland - Long term blocks,Nursing Care
Cambridgeshire County Council,02-Sep-22,51301847528,"2,898.00",SWAN HOUSE NURSING & RESIDENTIAL HOME,CARE ESTABLISHMENT,OPPD - Cost of Care - Fenland Blocks,Fenland - Long term blocks,Nursing Care
Cambridgeshire County Council,02-Sep-22,51301847528,"2,898.00",SWAN HOUSE NURSING & RESIDENTIAL HOME,CARE ESTABLISHMENT,OPPD - Cost of Care - Fenland Blocks,Fenland - Long term blocks,Nursing Care
Cambridgeshire County Council,02-Sep-22,51301847529,"2,898.00",GLENNFIELD CARE CENTRE (OP),CARE ESTABLISHMENT,OPPD - Cost of Care - Fenland Blocks,Fenland - Long term blocks,Nursing Care
Cambridgeshire County Council,02-Sep-22,51301847529,"2,898.00",GLENNFIELD CARE CENTRE (OP),CARE ESTABLISHMENT,OPPD - Cost of Care - Fenland Blocks,Fenland - Long term blocks,Nursing Care
Cambridgeshire County Council,02-Sep-22,51301847529,"2,898.00",GLENNFIELD CARE CENTRE (OP),CARE ESTABLISHMENT,OPPD - Cost of Care - Fenland Blocks,Fenland - Long term blocks,Nursing Care
Cambridgeshire County Council,02-Sep-22,51301847529,"2,898.00",GLENNFIELD CARE CENTRE (OP),CARE ESTABLISHMENT,OPPD - Cost of Care - Fenland Blocks,Fenland - Long term blocks,Nursing Care
Cambridgeshire County Council,02-Sep-22,51301847549,"2,960.00",Maven Healthcare,CARE ESTABLISHMENT,OPPD - Cost of Care - City South Blocks,City and South - Long term blocks,Nursing Care
Cambridgeshire County Council,02-Sep-22,51301847549,"2,960.00",Maven Healthcare,CARE ESTABLISHMENT,OPPD - Cost of Care - City South Blocks,City and South - Long term blocks,Nursing Care
Cambridgeshire County Council,02-Sep-22,51301847549,"2,960.00",Maven Healthcare,CARE ESTABLISHMENT,OPPD - Cost of Care - City South Blocks,City and South - Long term blocks,Nursing Care
Cambridgeshire County Council,02-Sep-22,51301847549,"2,960.00",Maven Healthcare,CARE ESTABLISHMENT,OPPD - Cost of Care - City South Blocks,City and South - Long term blocks,Nursing Care
Cambridgeshire County Council,02-Sep-22,51301847563,"2,980.80",THE GABLES SPECIALIST NURSING HOME,CARE ESTABLISHMENT,OPPD - Cost of Care - Fenland Blocks,Fenland - Long term blocks,Nursing Care
Cambridgeshire County Council,02-Sep-22,51301847563,"2,980.80",THE GABLES SPECIALIST NURSING HOME,CARE ESTABLISHMENT,OPPD - Cost of Care - Fenland Blocks,Fenland - Long term blocks,Nursing Care
Cambridgeshire County Council,02-Sep-22,51301847563,"2,980.80",THE GABLES SPECIALIST NURSING HOME,CARE ESTABLISHMENT,OPPD - Cost of Care - Fenland Blocks,Fenland - Long term blocks,Nursing Care
Cambridgeshire County Council,02-Sep-22,51301847563,"2,980.80",THE GABLES SPECIALIST NURSING HOME,CARE ESTABLISHMENT,OPPD - Cost of Care - Fenland Blocks,Fenland - Long term blocks,Nursing Care
Cambridgeshire County Council,02-Sep-22,51301847563,"2,980.80",THE GABLES SPECIALIST NURSING HOME,CARE ESTABLISHMENT,OPPD - Cost of Care - Fenland Blocks,Fenland - Long term blocks,Nursing Care
Cambridgeshire County Council,02-Sep-22,51301847563,"2,980.80",THE GABLES SPECIALIST NURSING HOME,CARE ESTABLISHMENT,OPPD - Cost of Care - Fenland Blocks,Fenland - Long term blocks,Nursing Care
Cambridgeshire County Council,02-Sep-22,51301847563,"2,980.80",THE GABLES SPECIALIST NURSING HOME,CARE ESTABLISHMENT,OPPD - Cost of Care - Fenland Blocks,Fenland - Long term blocks,Nursing Care
Cambridgeshire County Council,02-Sep-22,51301847563,"2,980.80",THE GABLES SPECIALIST NURSING HOME,CARE ESTABLISHMENT,OPPD - Cost of Care - Fenland Blocks,Fenland - Long term blocks,Nursing Care
Cambridgeshire County Council,02-Sep-22,51301847563,"2,980.80",THE GABLES SPECIALIST NURSING HOME,CARE ESTABLISHMENT,OPPD - Cost of Care - Fenland Blocks,Fenland - Long term blocks,Nursing Care
Cambridgeshire County Council,02-Sep-22,51301847563,"2,980.80",THE GABLES SPECIALIST NURSING HOME,CARE ESTABLISHMENT,OPPD - Cost of Care - Fenland Blocks,Fenland - Long term blocks,Nursing Care
Cambridgeshire County Council,02-Sep-22,51301839994,"3,000.00",BIDWELLS LLP Rural Client Account,COMPANY,MID - Kings Dyke,MID - Kings Dyke,Construction - External Professional Fees
Cambridgeshire County Council,02-Sep-22,51301847567,"3,041.81",LONGHURST GROUP LTD,CARE ESTABLISHMENT,OPPD - Cost of Care - City South - Over 65,Older People - City & South - Care,Supported Living
Cambridgeshire County Council,02-Sep-22,51301847567,"3,041.81",LONGHURST GROUP LTD,CARE ESTABLISHMENT,OPPD - Cost of Care - City South - Over 65,Older People - City & South - Care,Supported Living
Cambridgeshire County Council,02-Sep-22,51301847567,"3,041.81",LONGHURST GROUP LTD,CARE ESTABLISHMENT,OPPD - Cost of Care - City South - Over 65,Older People - City & South - Care,Supported Living
Cambridgeshire County Council,02-Sep-22,51301847567,"3,041.81",LONGHURST GROUP LTD,CARE ESTABLISHMENT,OPPD - Cost of Care - City South - Over 65,Older People - City & South - Care,Supported Living
Cambridgeshire County Council,02-Sep-22,51301847530,"3,105.00",HC-ONE,CARE ESTABLISHMENT,OPPD - Cost of Care - Huntingdon Blocks,Hunts - Long term blocks,Nursing Care
Cambridgeshire County Council,02-Sep-22,51301847585,"3,132.42",RADIS COMMUNITY CARE,CARE ESTABLISHMENT,OPPD - Cost of Care - Fenland - Over 65,Older People - Fenland - Care,Supported Living
Cambridgeshire County Council,02-Sep-22,51301847585,"3,132.42",RADIS COMMUNITY CARE,CARE ESTABLISHMENT,OPPD - Cost of Care - Fenland - Over 65,Older People - Fenland - Care,Supported Living
Cambridgeshire County Council,02-Sep-22,51301847585,"3,132.42",RADIS COMMUNITY CARE,CARE ESTABLISHMENT,OPPD - Cost of Care - Fenland - Over 65,Older People - Fenland - Care,Supported Living
Cambridgeshire County Council,02-Sep-22,51301847585,"3,132.42",RADIS COMMUNITY CARE,CARE ESTABLISHMENT,OPPD - Cost of Care - Fenland - Over 65,Older People - Fenland - Care,Supported Living
Cambridgeshire County Council,02-Sep-22,51301847585,"3,132.42",RADIS COMMUNITY CARE,CARE ESTABLISHMENT,OPPD - Cost of Care - Fenland - Over 65,Older People - Fenland - Care,Supported Living
Cambridgeshire County Council,02-Sep-22,51301847585,"3,132.42",RADIS COMMUNITY CARE,CARE ESTABLISHMENT,OPPD - Cost of Care - Fenland - Over 65,Older People - Fenland - Care,Supported Living
Cambridgeshire County Council,02-Sep-22,51301847585,"3,132.42",RADIS COMMUNITY CARE,CARE ESTABLISHMENT,OPPD - Cost of Care - Fenland - Over 65,Older People - Fenland - Care,Supported Living
Cambridgeshire County Council,02-Sep-22,51301847585,"3,132.42",RADIS COMMUNITY CARE,CARE ESTABLISHMENT,OPPD - Cost of Care - Fenland - Over 65,Older People - Fenland - Care,Supported Living
Cambridgeshire County Council,02-Sep-22,51301847585,"3,132.42",RADIS COMMUNITY CARE,CARE ESTABLISHMENT,OPPD - Cost of Care - Fenland - Over 65,Older People - Fenland - Care,Supported Living
Cambridgeshire County Council,02-Sep-22,51301847585,"3,132.42",RADIS COMMUNITY CARE,CARE ESTABLISHMENT,OPPD - Cost of Care - Fenland - Over 65,Older People - Fenland - Care,Supported Living
Cambridgeshire County Council,02-Sep-22,51301847585,"3,132.42",RADIS COMMUNITY CARE,CARE ESTABLISHMENT,OPPD - Cost of Care - Fenland - Over 65,Older People - Fenland - Care,Supported Living
Cambridgeshire County Council,02-Sep-22,51301847585,"3,132.42",RADIS COMMUNITY CARE,CARE ESTABLISHMENT,OPPD - Cost of Care - Fenland - Over 65,Older People - Fenland - Care,Supported Living
Cambridgeshire County Council,02-Sep-22,51301847585,"3,132.42",RADIS COMMUNITY CARE,CARE ESTABLISHMENT,OPPD - Cost of Care - Fenland - Over 65,Older People - Fenland - Care,Supported Living
Cambridgeshire County Council,02-Sep-22,51301847585,"3,132.42",RADIS COMMUNITY CARE,CARE ESTABLISHMENT,OPPD - Cost of Care - Fenland - Over 65,Older People - Fenland - Care,Supported Living
Cambridgeshire County Council,02-Sep-22,51301847585,"3,132.42",RADIS COMMUNITY CARE,CARE ESTABLISHMENT,OPPD - Cost of Care - Fenland - Over 65,Older People - Fenland - Care,Supported Living
Cambridgeshire County Council,02-Sep-22,51301847585,"3,132.42",RADIS COMMUNITY CARE,CARE ESTABLISHMENT,OPPD - Cost of Care - Fenland - Over 65,Older People - Fenland - Care,Supported Living
Cambridgeshire County Council,02-Sep-22,51301847585,"3,132.42",RADIS COMMUNITY CARE,CARE ESTABLISHMENT,OPPD - Cost of Care - Fenland - Over 65,Older People - Fenland - Care,Supported Living
Cambridgeshire County Council,02-Sep-22,51301847585,"3,132.42",RADIS COMMUNITY CARE,CARE ESTABLISHMENT,OPPD - Cost of Care - Fenland - Over 65,Older People - Fenland - Care,Supported Living
Cambridgeshire County Council,02-Sep-22,51301847585,"3,132.42",RADIS COMMUNITY CARE,CARE ESTABLISHMENT,OPPD - Cost of Care - Fenland - Over 65,Older People - Fenland - Care,Supported Living
Cambridgeshire County Council,02-Sep-22,51301847538,"3,136.93",LONGHURST GROUP LTD,CARE ESTABLISHMENT,OPPD - Cost of Care - City South - Over 65,Older People - City & South - Care,Supported Living
Cambridgeshire County Council,02-Sep-22,51301847538,"3,136.93",LONGHURST GROUP LTD,CARE ESTABLISHMENT,OPPD - Cost of Care - City South - Over 65,Older People - City & South - Care,Supported Living
Cambridgeshire County Council,02-Sep-22,51301847538,"3,136.93",LONGHURST GROUP LTD,CARE ESTABLISHMENT,OPPD - Cost of Care - City South - Over 65,Older People - City & South - Care,Supported Living
Cambridgeshire County Council,02-Sep-22,51301847538,"3,136.93",LONGHURST GROUP LTD,CARE ESTABLISHMENT,OPPD - Cost of Care - City South - Over 65,Older People - City & South - Care,Supported Living
Cambridgeshire County Council,02-Sep-22,51301847524,"3,163.58",BROOKFIELD CARE (Radis Commnity Care),CARE ESTABLISHMENT,Commissioning - Dom Cars,East Cambs - Dom Blocks,Domiciliary Care
Cambridgeshire County Council,02-Sep-22,51301847524,"3,163.58",BROOKFIELD CARE (Radis Commnity Care),CARE ESTABLISHMENT,Commissioning - Dom Cars,East Cambs - Dom Blocks,Domiciliary Care
Cambridgeshire County Council,02-Sep-22,51301847524,"3,163.58",BROOKFIELD CARE (Radis Commnity Care),CARE ESTABLISHMENT,Commissioning - Dom Cars,East Cambs - Dom Blocks,Domiciliary Care
Cambridgeshire County Council,02-Sep-22,51301847524,"3,163.58",BROOKFIELD CARE (Radis Commnity Care),CARE ESTABLISHMENT,Commissioning - Dom Cars,East Cambs - Dom Blocks,Domiciliary Care
Cambridgeshire County Council,02-Sep-22,51301847539,"3,202.48",RADIS COMMUNITY CARE,CARE ESTABLISHMENT,OPPD - Cost of Care - Huntingdon - Over 65,Hunts OP Team - Care,Supported Living
Cambridgeshire County Council,02-Sep-22,51301847539,"3,202.48",RADIS COMMUNITY CARE,CARE ESTABLISHMENT,OPPD - Cost of Care - Huntingdon - Over 65,Hunts OP Team - Care,Supported Living
Cambridgeshire County Council,02-Sep-22,51301847539,"3,202.48",RADIS COMMUNITY CARE,CARE ESTABLISHMENT,OPPD - Cost of Care - Huntingdon - Over 65,Hunts OP Team - Care,Supported Living
Cambridgeshire County Council,02-Sep-22,51301847539,"3,202.48",RADIS COMMUNITY CARE,CARE ESTABLISHMENT,OPPD - Cost of Care - Huntingdon - Over 65,Hunts OP Team - Care,Supported Living
Cambridgeshire County Council,02-Sep-22,51301847589,"3,210.46",BROOKFIELD CARE (Radis Commnity Care),CARE ESTABLISHMENT,Commissioning - Dom Cars,Hancock-Funded Dom-Cars,Domiciliary Care
Cambridgeshire County Council,02-Sep-22,51301847589,"3,210.46",BROOKFIELD CARE (Radis Commnity Care),CARE ESTABLISHMENT,Commissioning - Dom Cars,Hancock-Funded Dom-Cars,Domiciliary Care
Cambridgeshire County Council,02-Sep-22,51301847589,"3,210.46",BROOKFIELD CARE (Radis Commnity Care),CARE ESTABLISHMENT,Commissioning - Dom Cars,Hancock-Funded Dom-Cars,Domiciliary Care
Cambridgeshire County Council,02-Sep-22,51301847589,"3,210.46",BROOKFIELD CARE (Radis Commnity Care),CARE ESTABLISHMENT,Commissioning - Dom Cars,Hancock-Funded Dom-Cars,Domiciliary Care
Cambridgeshire County Council,02-Sep-22,51301847671,"3,253.20",TRANSITION CARE PETERBOROUGH LTD,CARE ESTABLISHMENT,LAC Placements,Placements - supported accommodation,Agency Placements - In County
Cambridgeshire County Council,02-Sep-22,51301847669,"3,253.20",TRANSITION CARE PETERBOROUGH LTD,CARE ESTABLISHMENT,LAC Placements,Placements - supported accommodation,Agency Placements - In County
Cambridgeshire County Council,02-Sep-22,51301847585,"3,278.84",RADIS COMMUNITY CARE,CARE ESTABLISHMENT,OPPD - Cost of Care - Fenland - Over 65,Older People - Fenland - Care,Supported Living
Cambridgeshire County Council,02-Sep-22,51301847585,"3,278.84",RADIS COMMUNITY CARE,CARE ESTABLISHMENT,OPPD - Cost of Care - Fenland - Over 65,Older People - Fenland - Care,Supported Living
Cambridgeshire County Council,02-Sep-22,51301847585,"3,278.84",RADIS COMMUNITY CARE,CARE ESTABLISHMENT,OPPD - Cost of Care - Fenland - Over 65,Older People - Fenland - Care,Supported Living
Cambridgeshire County Council,02-Sep-22,51301847585,"3,278.84",RADIS COMMUNITY CARE,CARE ESTABLISHMENT,OPPD - Cost of Care - Fenland - Over 65,Older People - Fenland - Care,Supported Living
Cambridgeshire County Council,02-Sep-22,51301847585,"3,278.84",RADIS COMMUNITY CARE,CARE ESTABLISHMENT,OPPD - Cost of Care - Fenland - Over 65,Older People - Fenland - Care,Supported Living
Cambridgeshire County Council,02-Sep-22,51301847585,"3,278.84",RADIS COMMUNITY CARE,CARE ESTABLISHMENT,OPPD - Cost of Care - Fenland - Over 65,Older People - Fenland - Care,Supported Living
Cambridgeshire County Council,02-Sep-22,51301847585,"3,278.84",RADIS COMMUNITY CARE,CARE ESTABLISHMENT,OPPD - Cost of Care - Fenland - Over 65,Older People - Fenland - Care,Supported Living
Cambridgeshire County Council,02-Sep-22,51301847585,"3,278.84",RADIS COMMUNITY CARE,CARE ESTABLISHMENT,OPPD - Cost of Care - Fenland - Over 65,Older People - Fenland - Care,Supported Living
Cambridgeshire County Council,02-Sep-22,51301847585,"3,278.84",RADIS COMMUNITY CARE,CARE ESTABLISHMENT,OPPD - Cost of Care - Fenland - Over 65,Older People - Fenland - Care,Supported Living
Cambridgeshire County Council,02-Sep-22,51301847585,"3,278.84",RADIS COMMUNITY CARE,CARE ESTABLISHMENT,OPPD - Cost of Care - Fenland - Over 65,Older People - Fenland - Care,Supported Living
Cambridgeshire County Council,02-Sep-22,51301847585,"3,278.84",RADIS COMMUNITY CARE,CARE ESTABLISHMENT,OPPD - Cost of Care - Fenland - Over 65,Older People - Fenland - Care,Supported Living
Cambridgeshire County Council,02-Sep-22,51301847585,"3,278.84",RADIS COMMUNITY CARE,CARE ESTABLISHMENT,OPPD - Cost of Care - Fenland - Over 65,Older People - Fenland - Care,Supported Living
Cambridgeshire County Council,02-Sep-22,51301847585,"3,278.84",RADIS COMMUNITY CARE,CARE ESTABLISHMENT,OPPD - Cost of Care - Fenland - Over 65,Older People - Fenland - Care,Supported Living
Cambridgeshire County Council,02-Sep-22,51301847585,"3,278.84",RADIS COMMUNITY CARE,CARE ESTABLISHMENT,OPPD - Cost of Care - Fenland - Over 65,Older People - Fenland - Care,Supported Living
Cambridgeshire County Council,02-Sep-22,51301847585,"3,278.84",RADIS COMMUNITY CARE,CARE ESTABLISHMENT,OPPD - Cost of Care - Fenland - Over 65,Older People - Fenland - Care,Supported Living
Cambridgeshire County Council,02-Sep-22,51301847585,"3,278.84",RADIS COMMUNITY CARE,CARE ESTABLISHMENT,OPPD - Cost of Care - Fenland - Over 65,Older People - Fenland - Care,Supported Living
Cambridgeshire County Council,02-Sep-22,51301847585,"3,278.84",RADIS COMMUNITY CARE,CARE ESTABLISHMENT,OPPD - Cost of Care - Fenland - Over 65,Older People - Fenland - Care,Supported Living
Cambridgeshire County Council,02-Sep-22,51301847585,"3,278.84",RADIS COMMUNITY CARE,CARE ESTABLISHMENT,OPPD - Cost of Care - Fenland - Over 65,Older People - Fenland - Care,Supported Living
Cambridgeshire County Council,02-Sep-22,51301847585,"3,278.84",RADIS COMMUNITY CARE,CARE ESTABLISHMENT,OPPD - Cost of Care - Fenland - Over 65,Older People - Fenland - Care,Supported Living
Cambridgeshire County Council,02-Sep-22,51301847684,"3,288.21",Eastern Family Services Ltd t/a Eastern Fostering Services,CARE ESTABLISHMENT,LAC Placements,Placements - independent fostering,Agency Placements - Out of  County
Cambridgeshire County Council,02-Sep-22,51301847687,"3,288.21",Eastern Family Services Ltd t/a Eastern Fostering Services,CARE ESTABLISHMENT,LAC Placements,Placements - independent fostering,Agency Placements - Out of  County
Cambridgeshire County Council,02-Sep-22,51301847547,"3,312.00",HARDWICK DENE,CARE ESTABLISHMENT,OPPD - Cost of Care - Huntingdon Blocks,Hunts - Short term blocks,Rehabilitation And Respite Care
Cambridgeshire County Council,02-Sep-22,51301847547,"3,312.00",HARDWICK DENE,CARE ESTABLISHMENT,OPPD - Cost of Care - Huntingdon Blocks,Hunts - Short term blocks,Rehabilitation And Respite Care
Cambridgeshire County Council,02-Sep-22,51301847547,"3,312.00",HARDWICK DENE,CARE ESTABLISHMENT,OPPD - Cost of Care - Huntingdon Blocks,Hunts - Short term blocks,Rehabilitation And Respite Care
Cambridgeshire County Council,02-Sep-22,51301847547,"3,312.00",HARDWICK DENE,CARE ESTABLISHMENT,OPPD - Cost of Care - Huntingdon Blocks,Hunts - Short term blocks,Rehabilitation And Respite Care
Cambridgeshire County Council,02-Sep-22,51301847584,"3,424.38",RADIS COMMUNITY CARE,CARE ESTABLISHMENT,OPPD - Cost of Care - City South - Over 65,Older People - City & South - Care,Supported Living
Cambridgeshire County Council,02-Sep-22,51301847584,"3,424.38",RADIS COMMUNITY CARE,CARE ESTABLISHMENT,OPPD - Cost of Care - City South - Over 65,Older People - City & South - Care,Supported Living
Cambridgeshire County Council,02-Sep-22,51301847584,"3,424.38",RADIS COMMUNITY CARE,CARE ESTABLISHMENT,OPPD - Cost of Care - City South - Over 65,Older People - City & South - Care,Supported Living
Cambridgeshire County Council,02-Sep-22,51301847584,"3,424.38",RADIS COMMUNITY CARE,CARE ESTABLISHMENT,OPPD - Cost of Care - City South - Over 65,Older People - City & South - Care,Supported Living
Cambridgeshire County Council,02-Sep-22,51301847584,"3,424.38",RADIS COMMUNITY CARE,CARE ESTABLISHMENT,OPPD - Cost of Care - City South - Over 65,Older People - City & South - Care,Supported Living
Cambridgeshire County Council,02-Sep-22,51301847584,"3,424.38",RADIS COMMUNITY CARE,CARE ESTABLISHMENT,OPPD - Cost of Care - City South - Over 65,Older People - City & South - Care,Supported Living
Cambridgeshire County Council,02-Sep-22,51301847584,"3,424.38",RADIS COMMUNITY CARE,CARE ESTABLISHMENT,OPPD - Cost of Care - City South - Over 65,Older People - City & South - Care,Supported Living
Cambridgeshire County Council,02-Sep-22,51301847584,"3,424.38",RADIS COMMUNITY CARE,CARE ESTABLISHMENT,OPPD - Cost of Care - City South - Over 65,Older People - City & South - Care,Supported Living
Cambridgeshire County Council,02-Sep-22,51301847584,"3,424.38",RADIS COMMUNITY CARE,CARE ESTABLISHMENT,OPPD - Cost of Care - City South - Over 65,Older People - City & South - Care,Supported Living
Cambridgeshire County Council,02-Sep-22,51301847584,"3,424.38",RADIS COMMUNITY CARE,CARE ESTABLISHMENT,OPPD - Cost of Care - City South - Over 65,Older People - City & South - Care,Supported Living
Cambridgeshire County Council,02-Sep-22,51301847584,"3,424.38",RADIS COMMUNITY CARE,CARE ESTABLISHMENT,OPPD - Cost of Care - City South - Over 65,Older People - City & South - Care,Supported Living
Cambridgeshire County Council,02-Sep-22,51301847584,"3,424.38",RADIS COMMUNITY CARE,CARE ESTABLISHMENT,OPPD - Cost of Care - City South - Over 65,Older People - City & South - Care,Supported Living
Cambridgeshire County Council,02-Sep-22,51301847584,"3,424.38",RADIS COMMUNITY CARE,CARE ESTABLISHMENT,OPPD - Cost of Care - City South - Over 65,Older People - City & South - Care,Supported Living
Cambridgeshire County Council,02-Sep-22,51301847584,"3,424.38",RADIS COMMUNITY CARE,CARE ESTABLISHMENT,OPPD - Cost of Care - City South - Over 65,Older People - City & South - Care,Supported Living
Cambridgeshire County Council,02-Sep-22,51301847584,"3,424.38",RADIS COMMUNITY CARE,CARE ESTABLISHMENT,OPPD - Cost of Care - City South - Over 65,Older People - City & South - Care,Supported Living
Cambridgeshire County Council,02-Sep-22,51301847584,"3,424.38",RADIS COMMUNITY CARE,CARE ESTABLISHMENT,OPPD - Cost of Care - City South - Over 65,Older People - City & South - Care,Supported Living
Cambridgeshire County Council,02-Sep-22,51301847584,"3,424.38",RADIS COMMUNITY CARE,CARE ESTABLISHMENT,OPPD - Cost of Care - City South - Over 65,Older People - City & South - Care,Supported Living
Cambridgeshire County Council,02-Sep-22,51301847584,"3,424.38",RADIS COMMUNITY CARE,CARE ESTABLISHMENT,OPPD - Cost of Care - City South - Over 65,Older People - City & South - Care,Supported Living
Cambridgeshire County Council,02-Sep-22,51301847584,"3,424.38",RADIS COMMUNITY CARE,CARE ESTABLISHMENT,OPPD - Cost of Care - City South - Over 65,Older People - City & South - Care,Supported Living
Cambridgeshire County Council,02-Sep-22,51301847541,"3,425.85",ETHELDRED HOUSE,CARE ESTABLISHMENT,OPPD - Cost of Care - City South Blocks,City and South - Long term blocks,Nursing Care
Cambridgeshire County Council,02-Sep-22,51301847541,"3,425.85",ETHELDRED HOUSE,CARE ESTABLISHMENT,OPPD - Cost of Care - City South Blocks,City and South - Long term blocks,Nursing Care
Cambridgeshire County Council,02-Sep-22,51301847541,"3,425.85",ETHELDRED HOUSE,CARE ESTABLISHMENT,OPPD - Cost of Care - City South Blocks,City and South - Long term blocks,Nursing Care
Cambridgeshire County Council,02-Sep-22,51301847541,"3,425.85",ETHELDRED HOUSE,CARE ESTABLISHMENT,OPPD - Cost of Care - City South Blocks,City and South - Long term blocks,Nursing Care
Cambridgeshire County Council,02-Sep-22,51301847544,"3,436.20",THE CAMBRIDGE NURSING CENTRE,CARE ESTABLISHMENT,OPPD - Cost of Care - City South Blocks,City and South - Long term blocks,Nursing Care
Cambridgeshire County Council,02-Sep-22,51301847544,"3,436.20",THE CAMBRIDGE NURSING CENTRE,CARE ESTABLISHMENT,OPPD - Cost of Care - City South Blocks,City and South - Long term blocks,Nursing Care
Cambridgeshire County Council,02-Sep-22,51301847544,"3,436.20",THE CAMBRIDGE NURSING CENTRE,CARE ESTABLISHMENT,OPPD - Cost of Care - City South Blocks,City and South - Long term blocks,Nursing Care
Cambridgeshire County Council,02-Sep-22,51301847544,"3,436.20",THE CAMBRIDGE NURSING CENTRE,CARE ESTABLISHMENT,OPPD - Cost of Care - City South Blocks,City and South - Long term blocks,Nursing Care
Cambridgeshire County Council,02-Sep-22,51301847544,"3,436.20",THE CAMBRIDGE NURSING CENTRE,CARE ESTABLISHMENT,OPPD - Cost of Care - City South Blocks,City and South - Long term blocks,Nursing Care
Cambridgeshire County Council,02-Sep-22,51301847544,"3,436.20",THE CAMBRIDGE NURSING CENTRE,CARE ESTABLISHMENT,OPPD - Cost of Care - City South Blocks,City and South - Long term blocks,Nursing Care
Cambridgeshire County Council,02-Sep-22,51301847544,"3,436.20",THE CAMBRIDGE NURSING CENTRE,CARE ESTABLISHMENT,OPPD - Cost of Care - City South Blocks,City and South - Long term blocks,Nursing Care
Cambridgeshire County Council,02-Sep-22,51301847544,"3,436.20",THE CAMBRIDGE NURSING CENTRE,CARE ESTABLISHMENT,OPPD - Cost of Care - City South Blocks,City and South - Long term blocks,Nursing Care
Cambridgeshire County Council,02-Sep-22,51301847544,"3,436.20",THE CAMBRIDGE NURSING CENTRE,CARE ESTABLISHMENT,OPPD - Cost of Care - City South Blocks,City and South - Long term blocks,Nursing Care
Cambridgeshire County Council,02-Sep-22,51301847544,"3,436.20",THE CAMBRIDGE NURSING CENTRE,CARE ESTABLISHMENT,OPPD - Cost of Care - City South Blocks,City and South - Long term blocks,Nursing Care
Cambridgeshire County Council,02-Sep-22,51301847544,"3,436.20",THE CAMBRIDGE NURSING CENTRE,CARE ESTABLISHMENT,OPPD - Cost of Care - City South Blocks,City and South - Long term blocks,Nursing Care
Cambridgeshire County Council,02-Sep-22,51301847553,"3,452.05",Beaumont HEALTHCARE LTD,CARE ESTABLISHMENT,Commissioning - Dom Cars,Hunts - Dom Blocks,Domiciliary Care
Cambridgeshire County Council,02-Sep-22,51301847553,"3,452.05",Beaumont HEALTHCARE LTD,CARE ESTABLISHMENT,Commissioning - Dom Cars,Hunts - Dom Blocks,Domiciliary Care
Cambridgeshire County Council,02-Sep-22,51301847553,"3,452.05",Beaumont HEALTHCARE LTD,CARE ESTABLISHMENT,Commissioning - Dom Cars,Hunts - Dom Blocks,Domiciliary Care
Cambridgeshire County Council,02-Sep-22,51301847553,"3,452.05",Beaumont HEALTHCARE LTD,CARE ESTABLISHMENT,Commissioning - Dom Cars,Hunts - Dom Blocks,Domiciliary Care
Cambridgeshire County Council,02-Sep-22,51301847695,"3,454.29",APEX Fostering,CARE ESTABLISHMENT,LAC Placements,Placements - independent fostering,Agency Placements - Out of  County
Cambridgeshire County Council,02-Sep-22,51301847586,"3,467.19",RADIS COMMUNITY CARE,CARE ESTABLISHMENT,OPPD - Cost of Care - Huntingdon - Over 65,Hunts OP Team - Care,Supported Living
Cambridgeshire County Council,02-Sep-22,51301847586,"3,467.19",RADIS COMMUNITY CARE,CARE ESTABLISHMENT,OPPD - Cost of Care - Huntingdon - Over 65,Hunts OP Team - Care,Supported Living
Cambridgeshire County Council,02-Sep-22,51301847586,"3,467.19",RADIS COMMUNITY CARE,CARE ESTABLISHMENT,OPPD - Cost of Care - Huntingdon - Over 65,Hunts OP Team - Care,Supported Living
Cambridgeshire County Council,02-Sep-22,51301847586,"3,467.19",RADIS COMMUNITY CARE,CARE ESTABLISHMENT,OPPD - Cost of Care - Huntingdon - Over 65,Hunts OP Team - Care,Supported Living
Cambridgeshire County Council,02-Sep-22,51301847586,"3,467.19",RADIS COMMUNITY CARE,CARE ESTABLISHMENT,OPPD - Cost of Care - Huntingdon - Over 65,Hunts OP Team - Care,Supported Living
Cambridgeshire County Council,02-Sep-22,51301847586,"3,467.19",RADIS COMMUNITY CARE,CARE ESTABLISHMENT,OPPD - Cost of Care - Huntingdon - Over 65,Hunts OP Team - Care,Supported Living
Cambridgeshire County Council,02-Sep-22,51301847586,"3,467.19",RADIS COMMUNITY CARE,CARE ESTABLISHMENT,OPPD - Cost of Care - Huntingdon - Over 65,Hunts OP Team - Care,Supported Living
Cambridgeshire County Council,02-Sep-22,51301847586,"3,467.19",RADIS COMMUNITY CARE,CARE ESTABLISHMENT,OPPD - Cost of Care - Huntingdon - Over 65,Hunts OP Team - Care,Supported Living
Cambridgeshire County Council,02-Sep-22,51301847586,"3,467.19",RADIS COMMUNITY CARE,CARE ESTABLISHMENT,OPPD - Cost of Care - Huntingdon - Over 65,Hunts OP Team - Care,Supported Living
Cambridgeshire County Council,02-Sep-22,51301847586,"3,467.19",RADIS COMMUNITY CARE,CARE ESTABLISHMENT,OPPD - Cost of Care - Huntingdon - Over 65,Hunts OP Team - Care,Supported Living
Cambridgeshire County Council,02-Sep-22,51301847586,"3,467.19",RADIS COMMUNITY CARE,CARE ESTABLISHMENT,OPPD - Cost of Care - Huntingdon - Over 65,Hunts OP Team - Care,Supported Living
Cambridgeshire County Council,02-Sep-22,51301847586,"3,467.19",RADIS COMMUNITY CARE,CARE ESTABLISHMENT,OPPD - Cost of Care - Huntingdon - Over 65,Hunts OP Team - Care,Supported Living
Cambridgeshire County Council,02-Sep-22,51301847586,"3,467.19",RADIS COMMUNITY CARE,CARE ESTABLISHMENT,OPPD - Cost of Care - Huntingdon - Over 65,Hunts OP Team - Care,Supported Living
Cambridgeshire County Council,02-Sep-22,51301847586,"3,467.19",RADIS COMMUNITY CARE,CARE ESTABLISHMENT,OPPD - Cost of Care - Huntingdon - Over 65,Hunts OP Team - Care,Supported Living
Cambridgeshire County Council,02-Sep-22,51301847586,"3,467.19",RADIS COMMUNITY CARE,CARE ESTABLISHMENT,OPPD - Cost of Care - Huntingdon - Over 65,Hunts OP Team - Care,Supported Living
Cambridgeshire County Council,02-Sep-22,51301847586,"3,467.19",RADIS COMMUNITY CARE,CARE ESTABLISHMENT,OPPD - Cost of Care - Huntingdon - Over 65,Hunts OP Team - Care,Supported Living
Cambridgeshire County Council,02-Sep-22,51301847586,"3,467.19",RADIS COMMUNITY CARE,CARE ESTABLISHMENT,OPPD - Cost of Care - Huntingdon - Over 65,Hunts OP Team - Care,Supported Living
